Business Unit Description,Expense Code,Expense Code Description,GL Date,Document No,Invoice No,Invoiced Value,Supplier Name,Address Book No,Proclass Details Level 1,Thomson Classification Description
PURCHASING LEARNING DISABILITI,9180,OTHER CLIENT EXPENDITURE      ,02/01/2015,3761979,J1044086 040115          ,261.00,REDACTED PERSONAL DATA,332870,,HOME CARE SERVICES            
ON STREET CAR PARKING         ,4190,RESIDENTS PARKING PERMITS     ,02/01/2015,3762112,ERS INVOICE112155        ,432.00,REDACTED PERSONAL DATA,618591,Unclassified Non Trade,OUT OF SCOPE FOR SIC MONITORIN
RGF 4                         ,8440,FEE EXPENSES                  ,02/01/2015,3762113,ERS INVOICE112156        ,29231.08,YELLOW ARCH STUDIOS LTD                 ,511706,,MUSIC PUBLISHERS              
OFF STREET CAR PARKS          ,6210,RENTS                         ,02/01/2015,3748922,S0010944                 ,32500.00,HOMES & COMMUNITIES AGENCY              ,320560,,DEVELOPMENT AGENCIES          
CAR PARKING MANAGEMENT        ,8540,SECURITY SERVICES             ,02/01/2015,3750526,R141130-42               ,3338.54,COBALT TELEPHONE TECHNOLOGIES LTD       ,525994,,COMPUTER SYSTEMS & SOFTWARE (D
CAR PARKING MANAGEMENT        ,6030,REPAIRS AND MTCE - RESPONSIVE ,02/01/2015,3756153,11414,780.00,ELITE SECURITY SYSTEMS                  ,445002,,SECURITY SERVICES             
SUPPORTED HOUSING             ,8050,FURNITURE PURCHASES           ,02/01/2015,3758734,TK109354                 ,499.00,THOMAS KNEALE & CO. LTD.                ,441585,,"BEDS, BEDDING & BLANKETS      "
SUPPORTED HOUSING             ,8050,FURNITURE PURCHASES           ,02/01/2015,3758770,TK109344                 ,7293.54,THOMAS KNEALE & CO. LTD.                ,441585,,"BEDS, BEDDING & BLANKETS      "
SUPPORTED HOUSING             ,8050,ELECTRICAL GOODS              ,02/01/2015,3760754,CMD2479809               ,377.50,DOMESTIC APPLIANCE DISTRIBUTORS         ,527171,,ELECTRICAL GOODS - SALES      
PARTNERSHIP & GRANT AID MH    ,9160,PARTNERSHIP CONTRACTS         ,02/01/2015,3760984,455,7425.00,SHEFFIELD CITIZENS ADVICE AND LAW CENTRE,588762,,COUNSELLING & ADVICE SERVICES 
INCOME MANAGEMENT             ,9140,CO-OP RENT PAYMENT CARDS      ,02/01/2015,3761267,10221,600.49,PSC SYSTEMS                             ,525464,,DIRECT MAIL                   
KENNELLING                    ,8010,EQUIPMENT PURCHASE AND REPAIR ,02/01/2015,3761277,11880,292.00,ROBERT ACTON PRODUCT DEVELOPMENTS/BAGO  ,514101,,CLEANING CONTRACTORS EQUIPMENT
OTHER REPAIRS & FEES          ,6030,REPAIRS TO TENANTED PROPERTIES,02/01/2015,3761301,15688,350.00,AMBER VALLEY WATER SERVICES             ,386647,,WATER TREATMENT EQUIPMENT & SE
MEDICO LEGAL CENTRE           ,5750,TRAINING EXPENDITURE          ,02/01/2015,3761305,2605190,1233.86,PULSE HEALTHCARE LIMITED                ,616685,,EMPLOYMENT & RECRUITMENT AGENC
AREA NORTH                    ,8560,GOING LOCAL                   ,02/01/2015,3761429,6966,346.00,DIO-MET FABRICATIONS LTD                ,393119,,ARCHITECTURAL IRONMONGERS     
MEDICO LEGAL CENTRE           ,5750,TRAINING EXPENDITURE          ,02/01/2015,3761466,2612479,1001.22,PULSE HEALTHCARE LIMITED                ,616685,,EMPLOYMENT & RECRUITMENT AGENC
BRINDLEY CARS                 ,7060,EXTERNAL VEHICLE HIRE         ,02/01/2015,3761846,32359,1289.96,SHEFFIELD COMMUNITY TRANSPORT (WORKSHOP),297061,,CHARITIES & VOLUNTARY ORGANISA
OTHER REPAIRS & FEES          ,6030,OTHER RESPONSIVE REPAIRS      ,02/01/2015,3761865,MAL-IN14515              ,324.78,MICRO ALARMS LTD                        ,206861,,SECURITY EQUIPMENT INSTALLERS 
BRINDLEY CARS                 ,7060,EXTERNAL VEHICLE HIRE         ,02/01/2015,3761866,32360,1486.03,SHEFFIELD COMMUNITY TRANSPORT (WORKSHOP),297061,,CHARITIES & VOLUNTARY ORGANISA
ALDINE HOUSE                  ,6030,REPAIRS AND MTCE - RESPONSIVE ,02/01/2015,3761906,210945134,423.62,MITIE TFM LTD                           ,370338,,FACILITIES MANAGEMENT         
STANIFORTH ROAD WORKSHOPS     ,8110,"CLOTHING, UNIFORM AND LAUNDRY ",02/01/2015,3761944,SN1892250                ,271.08,BERENDSEN UK LTD                        ,330548,,LINEN HIRE SERVICES           
SHEFFIELD FIRST PARTNERSHIP   ,8240,CONFERENCE EXPENSES           ,02/01/2015,3761950,8758,350.00,ELECTRIC WORKS                          ,512542,,BUSINESS CENTRES              
STANIFORTH ROAD WORKSHOPS     ,7010,ROUTINE VEHICLE REPAIR & MTCE ,02/01/2015,3762055,A9980103865              ,4358.02,ATS EUROMASTER LTD                      ,545966,,TYRE DEALERS                  
SEN TAXIS                     ,7060,EXTERNAL VEHICLE HIRE         ,02/01/2015,3762074,78607,4201.20, DIAL A CAB                             ,598412,,TAXIS & PRIVATE HIRE          
STANIFORTH ROAD WORKSHOPS     ,7010,ROUTINE VEHICLE REPAIR & MTCE ,02/01/2015,3761933,14877,449.53,RODDISONS RECOVERY                      ,517591,,COMMERCIAL VEHICLE BREAKDOWN &
STANIFORTH ROAD WORKSHOPS     ,7010,ROUTINE VEHICLE REPAIR & MTCE ,02/01/2015,3761939,8457,902.84,GPG 2000 LTD                            ,416225,,CAR BODY REPAIRS              
STANIFORTH ROAD WORKSHOPS     ,7010,ROUTINE VEHICLE REPAIR & MTCE ,02/01/2015,3761946,8477,584.50,GPG 2000 LTD                            ,416225,,CAR BODY REPAIRS              
STANIFORTH ROAD WORKSHOPS     ,7010,ROUTINE VEHICLE REPAIR & MTCE ,02/01/2015,3761947,8458,370.00,GPG 2000 LTD                            ,416225,,CAR BODY REPAIRS              
PURCHASING LEARNING DISABILITI,9180,OTHER CLIENT EXPENDITURE      ,02/01/2015,3761968,J1044075 040115          ,261.00,REDACTED PERSONAL DATA,328030,,HOME CARE SERVICES            
PURCHASING LEARNING DISABILITI,9180,OTHER CLIENT EXPENDITURE      ,02/01/2015,3761969,J1044076 040115          ,261.00,REDACTED PERSONAL DATA,206291,,HOME CARE SERVICES            
PURCHASING LEARNING DISABILITI,9180,OTHER CLIENT EXPENDITURE      ,02/01/2015,3761970,J1044077 040115          ,550.00,REDACTED PERSONAL DATA,328070,,HOME CARE SERVICES            
PURCHASING LEARNING DISABILITI,9180,OTHER CLIENT EXPENDITURE      ,02/01/2015,3761971,J1044078 040115          ,261.00,REDACTED PERSONAL DATA,328077,,HOME CARE SERVICES            
PURCHASING LEARNING DISABILITI,9180,OTHER CLIENT EXPENDITURE      ,02/01/2015,3761972,J1044079 040115          ,797.00,REDACTED PERSONAL DATA,408112,,HOME CARE SERVICES            
PURCHASING                    ,9180,OTHER CLIENT EXPENDITURE      ,02/01/2015,3761973,J1044080 040115          ,261.00,REDACTED PERSONAL DATA,328091,,HOME CARE SERVICES            
PURCHASING LEARNING DISABILITI,9180,OTHER CLIENT EXPENDITURE      ,02/01/2015,3761973,J1044080 040115          ,261.00,REDACTED PERSONAL DATA,328091,,HOME CARE SERVICES            
PURCHASING LEARNING DISABILITI,9180,OTHER CLIENT EXPENDITURE      ,02/01/2015,3761974,J1044081 040115          ,261.00,REDACTED PERSONAL DATA,328101,,HOME CARE SERVICES            
PURCHASING                    ,9180,OTHER CLIENT EXPENDITURE      ,02/01/2015,3761974,J1044081 040115          ,265.00,REDACTED PERSONAL DATA,328101,,HOME CARE SERVICES            
PURCHASING LEARNING DISABILITI,9180,OTHER CLIENT EXPENDITURE      ,02/01/2015,3761975,J1044082 040115          ,261.00,REDACTED PERSONAL DATA,436605,,HOME CARE SERVICES            
PURCHASING LEARNING DISABILITI,9180,OTHER CLIENT EXPENDITURE      ,02/01/2015,3761976,J1044083 040115          ,261.00,REDACTED PERSONAL DATA,594718,Unclassified Non Trade,OUT OF SCOPE FOR SIC MONITORIN
PURCHASING LEARNING DISABILITI,9180,OTHER CLIENT EXPENDITURE      ,02/01/2015,3761977,J1044084 040115          ,550.00,REDACTED PERSONAL DATA,369406,,HOME CARE SERVICES            
PURCHASING LEARNING DISABILITI,9180,OTHER CLIENT EXPENDITURE      ,02/01/2015,3761978,J1044085 040115          ,275.00,REDACTED PERSONAL DATA,208144,,HOME CARE SERVICES            
PURCHASING LEARNING DISABILITI,9180,OTHER CLIENT EXPENDITURE      ,02/01/2015,3761980,J1044087 040115          ,275.00,REDACTED PERSONAL DATA,333138,,HOME CARE SERVICES            
PURCHASING LEARNING DISABILITI,9180,OTHER CLIENT EXPENDITURE      ,02/01/2015,3761981,J1044088 040115          ,463.70,REDACTED PERSONAL DATA,333307,,HOME CARE SERVICES            
PURCHASING LEARNING DISABILITI,9180,OTHER CLIENT EXPENDITURE      ,02/01/2015,3761982,J1044089 040115          ,261.00,REDACTED PERSONAL DATA,333400,,HOME CARE SERVICES            
PURCHASING LEARNING DISABILITI,9180,OTHER CLIENT EXPENDITURE      ,02/01/2015,3761983,J1044090 040115          ,261.00,REDACTED PERSONAL DATA,501798,,HOME CARE SERVICES            
PURCHASING LEARNING DISABILITI,9180,OTHER CLIENT EXPENDITURE      ,02/01/2015,3761984,J1044091 040115          ,261.00,REDACTED PERSONAL DATA,328095,,HOME CARE SERVICES            
PURCHASING LEARNING DISABILITI,9180,OTHER CLIENT EXPENDITURE      ,02/01/2015,3761985,J1044092 040115          ,261.00,REDACTED PERSONAL DATA,526062,,HOME CARE SERVICES            
PURCHASING LEARNING DISABILITI,9180,OTHER CLIENT EXPENDITURE      ,02/01/2015,3761986,J1044093 040115          ,261.00,REDACTED PERSONAL DATA,553116,Unclassified Non Trade,OUT OF SCOPE FOR SIC MONITORIN
PURCHASING LEARNING DISABILITI,9180,OTHER CLIENT EXPENDITURE      ,02/01/2015,3761987,J1044073 040115          ,261.00,REDACTED PERSONAL DATA,596745,Unclassified Non Trade,OUT OF SCOPE FOR SIC MONITORIN
PURCHASING LEARNING DISABILITI,9180,OTHER CLIENT EXPENDITURE      ,02/01/2015,3761988,J1044074 040115          ,811.00,REDACTED PERSONAL DATA,332448,,HOME CARE SERVICES            
PURCHASING                    ,9190,DIRECT PAYMENTS               ,02/01/2015,3761991,J1044613                 ,990.00,REDACTED PERSONAL DATA,556296,Social Community Care,CAREFIRST DIRECT PAYMENTS     
PURCHASING LEARNING DISABILITI,9190,DIRECT PAYMENTS               ,02/01/2015,3761992,J1044613                 ,2920.29,REDACTED PERSONAL DATA,562178,Social Community Care,CAREFIRST DIRECT PAYMENTS     
ADULT SOCIAL CARE PURCHASING  ,9190,DIRECT PAYMENTS               ,02/01/2015,3761992,J1044613                 ,701.05,REDACTED PERSONAL DATA,562178,Social Community Care,CAREFIRST DIRECT PAYMENTS     
CARERS SPECIAL GRANT          ,9190,DIRECT PAYMENTS               ,02/01/2015,3761993,J1044613                 ,1206.87,REDACTED PERSONAL DATA,571344,Social Community Care,CAREFIRST DIRECT PAYMENTS     
PDSI PURCHASING               ,9190,DIRECT PAYMENTS               ,02/01/2015,3761994,J1044613                 ,389.60,REDACTED PERSONAL DATA,571404,Social Community Care,CAREFIRST DIRECT PAYMENTS     
PURCHASING                    ,9190,DIRECT PAYMENTS               ,02/01/2015,3761995,J1044613                 ,1224.16,THE ROWAN ORGANISATION MANAGED ACCOUNTS ,585750,Social Community Care,CAREFIRST DIRECT PAYMENTS     
PURCHASING                    ,9190,DIRECT PAYMENTS               ,02/01/2015,3761997,J1044613                 ,1870.33,REDACTED PERSONAL DATA,618938,Social Community Care,CAREFIRST DIRECT PAYMENTS     
CARELEAVER SUPPORT            ,9440,CARELEAVERS                   ,02/01/2015,3762013,PTC2753P                 ,796.66,REDACTED PERSONAL DATA,547777,Social Community Care,CAREFIRST DIRECT PAYMENTS     
CARELEAVER SUPPORT            ,9440,CARELEAVERS                   ,02/01/2015,3762015,PTC2754P                 ,873.32,REDACTED PERSONAL DATA,573956,Unclassified Non Trade,OUT OF SCOPE FOR SIC MONITORIN
CARELEAVER SUPPORT            ,9440,CARELEAVERS                   ,02/01/2015,3762019,PTC31704P                ,570.00,REDACTED PERSONAL DATA,618981,Unclassified Non Trade,OUT OF SCOPE FOR SIC MONITORIN
LDD PLACEMENTS AUG14-JUL15    ,9120,OTHER AGENCIES                ,05/01/2015,3762388,ERS INVOICE112185        ,600.00,INTERACT SHEFFIELD SALT                 ,599731,,SPEECH & LANGUAGE THERAPISTS  
ENGINEERING CENTRE            ,8440,FEE EXPENSES                  ,05/01/2015,3762398,ERS INVOICE112195        ,410.22,INTEREST COLLECTIONS LIMITED            ,619305,,DEBT COLLECTION AGENCIES      
MCA SUPPORT TEAM              ,8440,FEE EXPENSES                  ,05/01/2015,3762401,ERS INVOICE112202        ,288.65,REDACTED PERSONAL DATA,597770,Unclassified Non Trade,OUT OF SCOPE FOR SIC MONITORIN
CLAIMS                        ,8740,MOTOR VEHICLE                 ,05/01/2015,3762479,ERS INVOICE112204        ,631.32,UK INSURANCE LIMITED                    ,619300,Unclassified Non Trade,OUT OF SCOPE FOR SIC MONITORIN
CLAIMS                        ,8740,MOTOR VEHICLE                 ,05/01/2015,3762480,ERS INVOICE112205        ,1070.64,MINSTER LAW LTD                         ,443510,,SOLICITORS                    
CLAIMS                        ,8740,MOTOR VEHICLE                 ,05/01/2015,3762481,ERS INVOICE112206        ,300.00,REDACTED PERSONAL DATA,619356,Unclassified Non Trade,OUT OF SCOPE FOR SIC MONITORIN
SHORT BREAKS FUNDING FOR DISAB,8440,FEE EXPENSES                  ,05/01/2015,3762482,ERS INVOICE112207        ,400.00,REDACTED PERSONAL DATA,538087,Unclassified Non Trade,OUT OF SCOPE FOR SIC MONITORIN
SHORT BREAKS FUNDING FOR DISAB,8440,FEE EXPENSES                  ,05/01/2015,3762483,ERS INVOICE112208        ,400.00,REDACTED PERSONAL DATA,535263,Unclassified Non Trade,OUT OF SCOPE FOR SIC MONITORIN
SHORT BREAKS FUNDING FOR DISAB,8440,FEE EXPENSES                  ,05/01/2015,3762484,ERS INVOICE112209        ,400.00,REDACTED PERSONAL DATA,590112,Unclassified Non Trade,OUT OF SCOPE FOR SIC MONITORIN
SHORT BREAKS FUNDING FOR DISAB,8440,FEE EXPENSES                  ,05/01/2015,3762485,ERS INVOICE112210        ,400.00,REDACTED PERSONAL DATA,588547,Unclassified Non Trade,OUT OF SCOPE FOR SIC MONITORIN
SHORT BREAKS FUNDING FOR DISAB,8440,FEE EXPENSES                  ,05/01/2015,3762486,ERS INVOICE112211        ,400.00,REDACTED PERSONAL DATA,548419,Unclassified Non Trade,OUT OF SCOPE FOR SIC MONITORIN
SHORT BREAKS FUNDING FOR DISAB,8440,FEE EXPENSES                  ,05/01/2015,3762487,ERS INVOICE112212        ,400.00,REDACTED PERSONAL DATA,570733,Unclassified Non Trade,OUT OF SCOPE FOR SIC MONITORIN
SHORT BREAKS FUNDING FOR DISAB,8440,FEE EXPENSES                  ,05/01/2015,3762488,ERS INVOICE112213        ,400.00,REDACTED PERSONAL DATA,573022,Unclassified Non Trade,OUT OF SCOPE FOR SIC MONITORIN
SHORT BREAKS FUNDING FOR DISAB,8440,FEE EXPENSES                  ,05/01/2015,3762489,ERS INVOICE112214        ,400.00,REDACTED PERSONAL DATA,576739,Unclassified Non Trade,OUT OF SCOPE FOR SIC MONITORIN
SHORT BREAKS FUNDING FOR DISAB,8440,FEE EXPENSES                  ,05/01/2015,3762490,ERS INVOICE112215        ,400.00,REDACTED PERSONAL DATA,589073,Unclassified Non Trade,OUT OF SCOPE FOR SIC MONITORIN
SHORT BREAKS FUNDING FOR DISAB,8440,FEE EXPENSES                  ,05/01/2015,3762491,ERS INVOICE112216        ,400.00,REDACTED PERSONAL DATA,563864,Unclassified Non Trade,OUT OF SCOPE FOR SIC MONITORIN
SHORT BREAKS FUNDING FOR DISAB,8440,FEE EXPENSES                  ,05/01/2015,3762492,ERS INVOICE112217        ,400.00,REDACTED PERSONAL DATA,570738,Unclassified Non Trade,OUT OF SCOPE FOR SIC MONITORIN
SHORT BREAKS FUNDING FOR DISAB,8440,FEE EXPENSES                  ,05/01/2015,3762493,ERS INVOICE112218        ,400.00,REDACTED PERSONAL DATA,542419,Unclassified Non Trade,OUT OF SCOPE FOR SIC MONITORIN
SHORT BREAKS FUNDING FOR DISAB,8440,FEE EXPENSES                  ,05/01/2015,3762494,ERS INVOICE112219        ,400.00,REDACTED PERSONAL DATA,575838,Unclassified Non Trade,OUT OF SCOPE FOR SIC MONITORIN
SHORT BREAKS FUNDING FOR DISAB,8440,FEE EXPENSES                  ,05/01/2015,3762495,ERS INVOICE112220        ,400.00,REDACTED PERSONAL DATA,537393,Unclassified Non Trade,OUT OF SCOPE FOR SIC MONITORIN
SHORT BREAKS FUNDING FOR DISAB,8440,FEE EXPENSES                  ,05/01/2015,3762496,ERS INVOICE112221        ,400.00,REDACTED PERSONAL DATA,570629,Unclassified Non Trade,OUT OF SCOPE FOR SIC MONITORIN
SHORT BREAKS FUNDING FOR DISAB,8440,FEE EXPENSES                  ,05/01/2015,3762497,ERS INVOICE112222        ,400.00,REDACTED PERSONAL DATA,531640,Unclassified Non Trade,OUT OF SCOPE FOR SIC MONITORIN
SHORT BREAKS FUNDING FOR DISAB,8440,FEE EXPENSES                  ,05/01/2015,3762498,ERS INVOICE112223        ,400.00,REDACTED PERSONAL DATA,570736,Unclassified Non Trade,OUT OF SCOPE FOR SIC MONITORIN
SHORT BREAKS FUNDING FOR DISAB,8440,FEE EXPENSES                  ,05/01/2015,3762499,ERS INVOICE112224        ,400.00,REDACTED PERSONAL DATA,590917,Unclassified Non Trade,OUT OF SCOPE FOR SIC MONITORIN
SHORT BREAKS FUNDING FOR DISAB,8440,FEE EXPENSES                  ,05/01/2015,3762500,ERS INVOICE112225        ,400.00,REDACTED PERSONAL DATA,585502,Unclassified Non Trade,OUT OF SCOPE FOR SIC MONITORIN
SHORT BREAKS FUNDING FOR DISAB,8440,FEE EXPENSES                  ,05/01/2015,3762501,ERS INVOICE112226        ,400.00,REDACTED PERSONAL DATA,559209,Unclassified Non Trade,OUT OF SCOPE FOR SIC MONITORIN
SHORT BREAKS FUNDING FOR DISAB,8440,FEE EXPENSES                  ,05/01/2015,3762502,ERS INVOICE112227        ,400.00,REDACTED PERSONAL DATA,555260,Unclassified Non Trade,OUT OF SCOPE FOR SIC MONITORIN
SHORT BREAKS FUNDING FOR DISAB,8440,FEE EXPENSES                  ,05/01/2015,3762503,ERS INVOICE112228        ,400.00,REDACTED PERSONAL DATA,575909,Unclassified Non Trade,OUT OF SCOPE FOR SIC MONITORIN
SHORT BREAKS FUNDING FOR DISAB,8440,FEE EXPENSES                  ,05/01/2015,3762504,ERS INVOICE112229        ,400.00,REDACTED PERSONAL DATA,586461,Unclassified Non Trade,OUT OF SCOPE FOR SIC MONITORIN
SHORT BREAKS FUNDING FOR DISAB,8440,FEE EXPENSES                  ,05/01/2015,3762505,ERS INVOICE112230        ,400.00,REDACTED PERSONAL DATA,512186,Unclassified Non Trade,OUT OF SCOPE FOR SIC MONITORIN
SHORT BREAKS FUNDING FOR DISAB,8440,FEE EXPENSES                  ,05/01/2015,3762506,ERS INVOICE112231        ,400.00,REDACTED PERSONAL DATA,588546,Unclassified Non Trade,OUT OF SCOPE FOR SIC MONITORIN
SHORT BREAKS FUNDING FOR DISAB,8440,FEE EXPENSES                  ,05/01/2015,3762507,ERS INVOICE112232        ,400.00,REDACTED PERSONAL DATA,586596,Unclassified Non Trade,OUT OF SCOPE FOR SIC MONITORIN
SHORT BREAKS FUNDING FOR DISAB,8440,FEE EXPENSES                  ,05/01/2015,3762508,ERS INVOICE112233        ,400.00,REDACTED PERSONAL DATA,575192,Unclassified Non Trade,OUT OF SCOPE FOR SIC MONITORIN
SHORT BREAKS FUNDING FOR DISAB,8440,FEE EXPENSES                  ,05/01/2015,3762509,ERS INVOICE112234        ,400.00,REDACTED PERSONAL DATA,570281,Unclassified Non Trade,OUT OF SCOPE FOR SIC MONITORIN
SHORT BREAKS FUNDING FOR DISAB,8440,FEE EXPENSES                  ,05/01/2015,3762510,ERS INVOICE112235        ,400.00,REDACTED PERSONAL DATA,540411,Unclassified Non Trade,OUT OF SCOPE FOR SIC MONITORIN
SHORT BREAKS FUNDING FOR DISAB,8440,FEE EXPENSES                  ,05/01/2015,3762511,ERS INVOICE112236        ,400.00,REDACTED PERSONAL DATA,536243,Unclassified Non Trade,OUT OF SCOPE FOR SIC MONITORIN
SHORT BREAKS FUNDING FOR DISAB,8440,FEE EXPENSES                  ,05/01/2015,3762512,ERS INVOICE112237        ,400.00,REDACTED PERSONAL DATA,571593,Unclassified Non Trade,OUT OF SCOPE FOR SIC MONITORIN
SHORT BREAKS FUNDING FOR DISAB,8440,FEE EXPENSES                  ,05/01/2015,3762513,ERS INVOICE112238        ,400.00,REDACTED PERSONAL DATA,587946,Unclassified Non Trade,OUT OF SCOPE FOR SIC MONITORIN
SHORT BREAKS FUNDING FOR DISAB,8440,FEE EXPENSES                  ,05/01/2015,3762514,ERS INVOICE112239        ,400.00,REDACTED PERSONAL DATA,572753,Unclassified Non Trade,OUT OF SCOPE FOR SIC MONITORIN
SHORT BREAKS FUNDING FOR DISAB,8440,FEE EXPENSES                  ,05/01/2015,3762515,ERS INVOICE112240        ,400.00,REDACTED PERSONAL DATA,587510,Unclassified Non Trade,OUT OF SCOPE FOR SIC MONITORIN
SHORT BREAKS FUNDING FOR DISAB,8440,FEE EXPENSES                  ,05/01/2015,3762516,ERS INVOICE112241        ,400.00,REDACTED PERSONAL DATA,575914,Unclassified Non Trade,OUT OF SCOPE FOR SIC MONITORIN
SHORT BREAKS FUNDING FOR DISAB,8440,FEE EXPENSES                  ,05/01/2015,3762517,ERS INVOICE112242        ,400.00,REDACTED PERSONAL DATA,557572,Unclassified Non Trade,OUT OF SCOPE FOR SIC MONITORIN
SHORT BREAKS FUNDING FOR DISAB,8440,FEE EXPENSES                  ,05/01/2015,3762518,ERS INVOICE112243        ,400.00,REDACTED PERSONAL DATA,573075,Unclassified Non Trade,OUT OF SCOPE FOR SIC MONITORIN
SHORT BREAKS FUNDING FOR DISAB,8440,FEE EXPENSES                  ,05/01/2015,3762519,ERS INVOICE112244        ,400.00,REDACTED PERSONAL DATA,544823,Unclassified Non Trade,OUT OF SCOPE FOR SIC MONITORIN
SHORT BREAKS FUNDING FOR DISAB,8440,FEE EXPENSES                  ,05/01/2015,3762520,ERS INVOICE112245        ,400.00,REDACTED PERSONAL DATA,590139,Unclassified Non Trade,OUT OF SCOPE FOR SIC MONITORIN
IN HOUSE FOSTER PLACEMENT     ,9270,IN-HOUSE FOSTERING            ,05/01/2015,3762522,ERS INVOICE112247        ,618.00,REDACTED PERSONAL DATA,591754,Unclassified Non Trade,OUT OF SCOPE FOR SIC MONITORIN
LDD PLACEMENTS AUG14-JUL15    ,9120,OTHER AGENCIES                ,05/01/2015,3762523,ERS INVOICE112248        ,528.00,REDACTED PERSONAL DATA,588262,,EDUCATIONAL SERVICES          
OUT OF CITY GUM               ,9030,HEALTH                        ,05/01/2015,3734127,2400000419,1246.92,KINGSTON HOSPITAL NHSFT                 ,596851,,PUBLIC HEALTH SUPPLIERS       
CASTLE MARKET DECOMMISSIONING ,1193,CONSULTANTS FEES              ,05/01/2015,3735686,INV069314                ,1610.00,CONSTANT SECURITY SERVICES LIMITED      ,571090,,SECURITY SERVICES             
CASTLE MARKET DECOMMISSIONING ,1193,CONSULTANTS FEES              ,05/01/2015,3735689,INV069313                ,2334.35,CONSTANT SECURITY SERVICES LIMITED      ,571090,,SECURITY SERVICES             
PROVIDER CONTRACT AUG14-JUL15 ,9120,OTHER AGENCIES                ,05/01/2015,3747593,1075,766.50,SHEFFIELD ASSOCIATION FOR THE VOLUNTARY ,350936,,CHARITIES & VOLUNTARY ORGANISA
URBAN NATURE PARKS            ,1183,PURCHASE OF EQUIPMENT         ,05/01/2015,3750623,5603,1867.00,SWILLINGTON TRAILER CENTRE              ,506104,,TRAILERS - RENTAL & LEASING   
TRANSPORT AUTHORITY GENERAL   ,8450,AUDIT FEES                    ,05/01/2015,3751275,5500950484,4200.00,KPMG LLP FEES ACCOUNT                   ,327162,,ACCOUNTANTS                   
LTP MAIN BLOCK                ,1188,T&E OTHER CAPITAL COSTS       ,05/01/2015,3751357,110806,167481.27,SHEFFIELD CITY COUNCIL                  ,516704,,LOCAL GOVERNMENT              
CATERING PREMISES & EQUIPMENT ,8010,EQUIPMENT PURCHASE AND REPAIR ,05/01/2015,3754140,8600,365.00,DENBY CATERING EQUIPMENT LIMITED        ,580220,,CATERING EQUIPMENT            
TREE TEAM                     ,6370,GROUNDS MTCE AND ARBORICULTURE,05/01/2015,3754655,1748,580.00,SHEFFIELD TREE CARE                     ,462546,,TREE WORK & FORESTRY SERVICES 
SECURITY SERVICES             ,6030,REPAIRS AND MTCE - RESPONSIVE ,05/01/2015,3754809,S-00000767078-C          ,7911.55,G4S SECURE SOLUTIONS (UK) LTD           ,208284,,SECURITY SERVICES             
PROVIDER CONTRACT AUG13-JUL14 ,9120,OTHER AGENCIES                ,05/01/2015,3755391,4057,904.50,HEELEY DEVELOPMENT TRUST                ,363241,,CHARITIES & VOLUNTARY ORGANISA
SHEFFIELD HOMES TREES         ,6370,GROUNDS MTCE AND ARBORICULTURE,05/01/2015,3755707,133,1075.00,J B HIBBERD LIMITED                     ,510434,,TREE WORK & FORESTRY SERVICES 
MOORFOOT LEARNING CENTRE      ,8040,LEARNING RESOURCES            ,05/01/2015,3755745,121455,275.00,QUALSAFE LIMITED                        ,441282,,FIRST AID TRAINING            
SCHOOL SPORTS                 ,8440,FEE EXPENSES                  ,05/01/2015,3756198,AT108765                 ,2640.00,ASHLEY TRAVEL LTD                       ,439136,,MINI BUSES - HIRE & LEASING   
VEHICLE MANAGEMENT            ,7020,VEHICLE FUEL COSTS            ,05/01/2015,3756272,E2003958144              ,1040.25,ALLSTAR BUSINESS SOLUTIONS LTD          ,444333,,CAR & TRUCK LEASING & CONTRACT
ENERGY -SCHEME                ,6150,ELECTRICITY - INVOICE         ,05/01/2015,3756300,2714-019                 ,211302.80,NPOWER                                  ,578562,,GAS SUPPLIERS                 
SHEFFIELD HOMES TREES         ,6370,GROUNDS MTCE AND ARBORICULTURE,05/01/2015,3757620,1599,783.00,DRONFIELD TREE SERVICES LTD             ,405525,,TREE WORK & FORESTRY SERVICES 
SHEFFIELD HOMES TREES         ,6370,GROUNDS MTCE AND ARBORICULTURE,05/01/2015,3757621,1600,2787.00,DRONFIELD TREE SERVICES LTD             ,405525,,TREE WORK & FORESTRY SERVICES 
OUTDOOR EDUCATION             ,7010,ROUTINE VEHICLE REPAIR & MTCE ,05/01/2015,3757642,8114,295.70,LOVERS LEAP GARAGE                      ,445105,,GUEST HOUSES                  
RESPONSIVE HM&E               ,6020,LEGIONELLA MONITORING         ,05/01/2015,3757733,10783124,1364.61,INTERSERVE FS (UK) LTD                  ,437082,,CLEANING SERVICES - COMMERCIAL
SCHOOL SPORTS                 ,8440,FEE EXPENSES                  ,05/01/2015,3757742,3034682,720.00,7 HILLS LEISURE TRUST                   ,566500,,SPORTS GROUND & STADIUM CONTRA
COMMERCIAL DIRECTOR           ,8440,FEE EXPENSES                  ,05/01/2015,3757944,86188,5250.00,MICHAEL PAGE UK LIMITED                 ,347153,,EMPLOYMENT & RECRUITMENT AGENC
OUTDOOR EDUCATION             ,8010,EQUIPMENT PURCHASE AND REPAIR ,05/01/2015,3758080,2.01E+13,400.00,COTSWOLD OUTDOOR                        ,520233,,OUTDOOR CLOTHING & EQUIPMENT  
PERFORMANCE & RESEARCH        ,8550,OTHER SERVICES                ,05/01/2015,3758119,HEX54000511358           ,2000.00,EXPERIAN LTD                            ,417758,,CREDIT REFERENCE AGENCIES     
OUT OF CITY GUM               ,9030,HEALTH                        ,05/01/2015,3758620,68074,576.84,ROTHERHAM DONCASTER & SOUTH HUMBER NHS F,587509,,PUBLIC HEALTH SUPPLIERS       
URBAN NATURE PARKS            ,1165,NC&A OTHER                    ,05/01/2015,3758764,210653,3539.00,K BARRIERS LTD                          ,369497,,"FENCE, GATE & BARRIER SUPPLIER"
ELECTORAL REGISTRATION        ,8400,PUBLICATIONS AND PERIODICALS  ,05/01/2015,3758765,801862278,316.00, THOMSON REUTERS                        ,340190,,INFORMATION SERVICES          
BRT NORTH: TINSLEY LINK (WP21 ,1192,DESIGN FEES                   ,05/01/2015,3758953,90392597,33224.32,AMEY OW LTD (SHEFFIELD)                 ,593700,,ENGINEERS - CONSULTING        
BRT NORTH: TINSLEY LINK (WP21 ,1192,DESIGN FEES                   ,05/01/2015,3758956,549088,2773.65,TURNER & TOWNSEND                       ,421729,,BUILDING CONSULTANTS          
NORFOLK PARK PMY REPLACEMENT  ,1193,CONSULTANTS FEES              ,05/01/2015,3758959,548968,3350.00,TURNER & TOWNSEND                       ,421729,,BUILDING CONSULTANTS          
GREYSTONES EXPANSION          ,1193,CONSULTANTS FEES              ,05/01/2015,3758960,548967,2850.00,TURNER & TOWNSEND                       ,421729,,BUILDING CONSULTANTS          
HALLAM RECONFIGURATION        ,1193,CONSULTANTS FEES              ,05/01/2015,3758961,548966,2400.00,TURNER & TOWNSEND                       ,421729,,BUILDING CONSULTANTS          
PROVIDER CONTRACT AUG13-JUL14 ,9120,OTHER AGENCIES                ,05/01/2015,3758983,3685/4055                ,2110.50,HEELEY DEVELOPMENT TRUST                ,363241,,CHARITIES & VOLUNTARY ORGANISA
LANDSCAPE SERVICES            ,8020,EQUIPMENT LEASE/ RENTAL/ HIRE ,05/01/2015,3760751,756967,3200.00,RUSSELL GROUP GROUNDCARE                ,516234,,HORTICULTURAL EQUIPMENT MAINTE
CITY CENTRE PROMOTIONAL PLAN  ,8440,FEE EXPENSES                  ,05/01/2015,3760800,41991,800.00,FIRE & POLICE MUSEUM                    ,297992,,MUSEUMS                       
POLICY AND IMPROVEMENT        ,8440,FEE EXPENSES                  ,05/01/2015,3760805,TI02009                  ,1703.76,LANGUAGELINE SOLUTIONS                  ,206348,,TRANSLATORS & INTERPRETERS    
LSE SUB-CONTRACTORS           ,9120,OTHER AGENCIES                ,05/01/2015,3760899,8249,3000.00,HEELEY CITY FARM                        ,301277,,CHARITIES & VOLUNTARY ORGANISA
COMMERCIAL DIRECTOR           ,8440,FEE EXPENSES                  ,05/01/2015,3760913,43100,1112.50,VELOCITY TECHNOLOGY SOLUTIONS UK LTD    ,488950,,COMPUTER SYSTEMS & SOFTWARE (D
EVENTS IN PARKS               ,8200,EVENTS EXPENDITURE            ,05/01/2015,3760919,514,3375.00,EVENTS SOLUTION LTD                     ,403612,,"MARQUEES, TENTS & PORTABLE FLO"
PROVIDER CONTRACT AUG13-JUL14 ,9120,OTHER AGENCIES                ,05/01/2015,3760931,SOARCO/1492/SOARCO/1645  ,410.50,SOAR                                    ,413073,,EDUCATIONAL TRAINING PROVIDERS
PROVIDER CONTRACT AUG13-JUL14 ,9120,OTHER AGENCIES                ,05/01/2015,3760995,1415_148                 ,286.85,REACH SOUTH SHEFFIELD                   ,394371,,CHARITIES & VOLUNTARY ORGANISA
PROVIDER CONTRACT AUG13-JUL14 ,9120,OTHER AGENCIES                ,05/01/2015,3761009,43438,440.00,LOCAL                                   ,299197,,COMMUNITY CENTRES             
LDD PLACEMENTS AUG14-JUL15    ,9120,OTHER AGENCIES                ,05/01/2015,3761036,699,270.00,MOORWOOD EQUINE                         ,618952,,"RIDING SCHOOLS, LIVERY STABLES"
TRANSPORT FLEET MANAGEMENT    ,7040,OTHER VEHICLE RUNNING COSTS   ,05/01/2015,3761043,YF465216                 ,13759.10,BURROWS TOYOTA                          ,440072,,CAR DEALERS                   
LDD PLACEMENTS AUG14-JUL15    ,9120,OTHER AGENCIES                ,05/01/2015,3761069,3312,270.00,WORK LTD                                ,350089,,TRAINING SERVICES             
SANCTUARY SCHEME              ,8060,MATERIALS AND SUPPLIES GENERAL,05/01/2015,3761101,36536,545.50,THE SAFETY LETTERBOX COMPANY            ,501188,,MAILING HOUSES                
LANDSCAPE SERVICES            ,8530,TIPPING CHARGES               ,05/01/2015,3761245,47082,2277.72,MHH CONTRACTING LTD                     ,205329,,EXCAVATION & GROUNDWORK CONTRA
PARKS OPS EAST & NORTH EAST   ,8060,MATERIALS AND SUPPLIES GENERAL,05/01/2015,3761273,5/1069/25LM/40813        ,958.00,WILDSCAPES LTD                          ,472494,,LANDSCAPE ARCHITECTS & DESIGNE
CITY DEAL                     ,9120,OTHER AGENCIES                ,05/01/2015,3761304,100818,5992.50,BW CONSULTANTS                          ,586227,,BUSINESS & MANAGEMENT CONSULTA
DISADVANTAGED AREA FUNDING    ,9120,OTHER AGENCIES                ,05/01/2015,3761310,2701,12592.56,ZEST                                    ,507419,,SOCIAL SERVICES               
DISADVANTAGED AREA FUNDING    ,9120,OTHER AGENCIES                ,05/01/2015,3761311,SOARCO/1636              ,6296.28,SOAR                                    ,413073,,EDUCATIONAL TRAINING PROVIDERS
CITY DEAL                     ,8440,FEE EXPENSES                  ,05/01/2015,3761320,10109,301.00,THE STUDIO ACADEMY LTD                  ,618670,,TRAINING SERVICES             
HEAD OF SERVICE               ,8350,MISCELLANEOUS EXPENSES        ,05/01/2015,3761325,548971,21433.76,TURNER & TOWNSEND                       ,421729,,BUILDING CONSULTANTS          
DISADVANTAGED AREA FUNDING    ,9120,OTHER AGENCIES                ,05/01/2015,3761328,2747,2266.66,MANOR AND CASTLE DEVELOPMENT TRUST      ,486881,,YOUTH ORGANISATIONS & CENTRES 
URBAN NATURE PARKS            ,1165,NC&A OTHER                    ,05/01/2015,3761332,10/5644/25LM/40813       ,2647.25,SHEFFIELD WILDLIFE TRUST                ,347103,,CHARITIES & VOLUNTARY ORGANISA
PERFORMANCE & RESEARCH        ,8550,OTHER SERVICES                ,05/01/2015,3761333,HEX43000511744           ,1000.00,EXPERIAN LTD                            ,417758,,CREDIT REFERENCE AGENCIES     
OUT OF CITY GUM               ,9030,HEALTH                        ,05/01/2015,3761336,82130420,1210.00,DONCASTER & BASSETLAW HOSPITALS  FOUNDAT,585509,,HOSPITALS                     
YOUTH JUSTICE SERVICE         ,6210,RENTS                         ,05/01/2015,3761342,726375,21875.00,DTZ YORKSHIRE BUILDING SOCIETY          ,408226,,COMMERCIAL PROPERTY AGENTS    
PUBLIC HEALTH - DPH           ,5750,TRAINING EXPENDITURE          ,05/01/2015,3761346,9687,250.00,NORTH WEST EMPLOYERS                    ,400125,,EMPLOYMENT & RECRUITMENT AGENC
ACTIVE NORTH PROJECT          ,1193,CONSULTANTS FEES              ,05/01/2015,3761360,549004,4406.00,TURNER & TOWNSEND                       ,421729,,BUILDING CONSULTANTS          
DISADVANTAGED AREA FUNDING    ,9120,OTHER AGENCIES                ,05/01/2015,3761362,7535,1285.71,SHEFFIELD FUTURES                       ,322702,,COUNSELLING & ADVICE SERVICES 
DON VALLEY SCHOOL             ,1194,OTHER FEES                    ,05/01/2015,3761363,548964,10900.00,TURNER & TOWNSEND                       ,421729,,BUILDING CONSULTANTS          
XMAS ILLUMINATIONS            ,8550,OTHER SERVICES                ,05/01/2015,3761370,EF30324                  ,3928.00,ELVEDON FARMS LTD                       ,409642,,CHRISTMAS GOODS               
RECRUITMENT AND RETENTION     ,5750,TRAINING EXPENDITURE          ,05/01/2015,3761371,73185,395.00,GOVNET COMMUNICATIONS                   ,380445,,PUBLISHERS                    
RECRUITMENT AND RETENTION     ,5750,TRAINING EXPENDITURE          ,05/01/2015,3761372,73601,395.00,GOVNET COMMUNICATIONS                   ,380445,,PUBLISHERS                    
BUSINESS IMPROVEMENT DIST-LDV ,8490,OTHER PROFESSIONAL FEES       ,05/01/2015,3761377,RSC/255                  ,11450.00,RIVER STEWARDSHIP COMPANY               ,547441,,CHARITIES & VOLUNTARY ORGANISA
BUSINESS IMPROVEMENT DIST-LDV ,8490,OTHER PROFESSIONAL FEES       ,05/01/2015,3761378,RSC/249                  ,4050.00,RIVER STEWARDSHIP COMPANY               ,547441,,CHARITIES & VOLUNTARY ORGANISA
DISADVANTAGED AREA FUNDING    ,9120,OTHER AGENCIES                ,05/01/2015,3761380,2700,5230.75,ZEST                                    ,507419,,SOCIAL SERVICES               
DISADVANTAGED AREA FUNDING    ,9120,OTHER AGENCIES                ,05/01/2015,3761381,2703,4852.73,ZEST                                    ,507419,,SOCIAL SERVICES               
DISADVANTAGED AREA FUNDING    ,9120,OTHER AGENCIES                ,05/01/2015,3761382,2748,5666.65,MANOR AND CASTLE DEVELOPMENT TRUST      ,486881,,YOUTH ORGANISATIONS & CENTRES 
DISADVANTAGED AREA FUNDING    ,9120,OTHER AGENCIES                ,05/01/2015,3761384,7534,5142.84,SHEFFIELD FUTURES                       ,322702,,COUNSELLING & ADVICE SERVICES 
DISADVANTAGED AREA FUNDING    ,9120,OTHER AGENCIES                ,05/01/2015,3761390,7533,2892.84,SHEFFIELD FUTURES                       ,322702,,COUNSELLING & ADVICE SERVICES 
DISADVANTAGED AREA FUNDING    ,9120,OTHER AGENCIES                ,05/01/2015,3761393,2704,2142.85,ZEST                                    ,507419,,SOCIAL SERVICES               
GENERAL ADMINISTRATION        ,5750,TRAINING EXPENDITURE          ,05/01/2015,3761404,15/11306                 ,320.00,ACAS                                    ,297626,,TRADE UNIONS                  
STATUTORY ADVERTISING         ,8420,ADVERTISING AND PUBL-INVOICED ,05/01/2015,3761405,2457857,282.97,SHEFFIELD NEWSPAPERS LTD                ,208391,,NEWSPAPER & MAGAZINE PUBLISHER
STATUTORY ADVERTISING         ,8420,ADVERTISING AND PUBL-INVOICED ,05/01/2015,3761406,2457881,282.97,SHEFFIELD NEWSPAPERS LTD                ,208391,,NEWSPAPER & MAGAZINE PUBLISHER
STATUTORY ADVERTISING         ,8420,ADVERTISING AND PUBL-INVOICED ,05/01/2015,3761407,2457886,311.27,SHEFFIELD NEWSPAPERS LTD                ,208391,,NEWSPAPER & MAGAZINE PUBLISHER
HOUSING INDEPENDENCE SERVICE  ,8400,PUBLICATIONS AND PERIODICALS  ,05/01/2015,3761412,M22761                   ,250.00,SITRA (SERVICES)                        ,328791,,CHARITIES & VOLUNTARY ORGANISA
STATUTORY ADVERTISING         ,8420,ADVERTISING AND PUBL-INVOICED ,05/01/2015,3761422,2457786,282.97,SHEFFIELD NEWSPAPERS LTD                ,208391,,NEWSPAPER & MAGAZINE PUBLISHER
STATUTORY ADVERTISING         ,8420,ADVERTISING AND PUBL-INVOICED ,05/01/2015,3761423,2457691,282.97,SHEFFIELD NEWSPAPERS LTD                ,208391,,NEWSPAPER & MAGAZINE PUBLISHER
STATUTORY ADVERTISING         ,8420,ADVERTISING AND PUBL-INVOICED ,05/01/2015,3761424,2457687,282.97,SHEFFIELD NEWSPAPERS LTD                ,208391,,NEWSPAPER & MAGAZINE PUBLISHER
STATUTORY ADVERTISING         ,8420,ADVERTISING AND PUBL-INVOICED ,05/01/2015,3761426,2457565,311.27,SHEFFIELD NEWSPAPERS LTD                ,208391,,NEWSPAPER & MAGAZINE PUBLISHER
BUSINESS SUPPORT              ,5720,RECRUITMENT ADVERTISING       ,05/01/2015,3761427,TARINV/15337956          ,1093.75,TIMES EDUCATIONAL SUPPLEMENT            ,297123,,NEWSPAPER & MAGAZINE PUBLISHER
STATUTORY ADVERTISING         ,8420,ADVERTISING AND PUBL-INVOICED ,05/01/2015,3761456,2457424,339.56,SHEFFIELD NEWSPAPERS LTD                ,208391,,NEWSPAPER & MAGAZINE PUBLISHER
STATUTORY ADVERTISING         ,8420,ADVERTISING AND PUBL-INVOICED ,05/01/2015,3761457,2463636,2185.42,SHEFFIELD NEWSPAPERS LTD                ,208391,,NEWSPAPER & MAGAZINE PUBLISHER
STATUTORY ADVERTISING         ,8420,ADVERTISING AND PUBL-INVOICED ,05/01/2015,3761458,2463494,728.47,SHEFFIELD NEWSPAPERS LTD                ,208391,,NEWSPAPER & MAGAZINE PUBLISHER
STATUTORY ADVERTISING         ,8420,ADVERTISING AND PUBL-INVOICED ,05/01/2015,3761459,2457804,396.16,SHEFFIELD NEWSPAPERS LTD                ,208391,,NEWSPAPER & MAGAZINE PUBLISHER
STATUTORY ADVERTISING         ,8420,ADVERTISING AND PUBL-INVOICED ,05/01/2015,3761460,2457806,367.86,SHEFFIELD NEWSPAPERS LTD                ,208391,,NEWSPAPER & MAGAZINE PUBLISHER
TRANSPORT FLEET MANAGEMENT    ,8070,STOCKS AND STORES             ,05/01/2015,3761464,3590451,21142.96,CARLTON FUELS                           ,466741,,FUEL DEALERS                  
CHILDCARE VOUCHER SCHEME      ,5790,EMPLOYEE EXPENSES-INVOICED    ,05/01/2015,3761465,465903,888.07,REDACTED PERSONAL DATA,552506,,CHILDCARE SERVICES            
AGENCY STAFF                  ,5610,AGENCY STAFF - INVOICE        ,05/01/2015,3761472,CE0227474897C1           ,149454.36,REED                                    ,341818,,EMPLOYMENT & RECRUITMENT AGENC
DOUGLAS ROAD                  ,1173,INFR MAIN CONTRACT            ,05/01/2015,3761788,2905,1920.00,ANDERSON TREE CARE LTD                  ,316084,,TREE WORK & FORESTRY SERVICES 
WOODLANDS                     ,8260,WOODLAND DEVELOPMENT EXPENSES ,05/01/2015,3761789,6475,1484.00,PARK HILL TRAINING LTD                  ,617561,,TRAINING SERVICES             
GRAVES PARK - ANIMAL FARM INC ,8060,MATERIALS AND SUPPLIES GENERAL,05/01/2015,3761847,323346,263.01,ARGO FEEDS LTD                          ,203028,,PET FOODS & ANIMAL FEEDS      
HOUSING EMPLOYABILITY PROJECT ,6030,REPAIRS TO TENANTED PROPERTIES,05/01/2015,3761859,923618381,325.75,ARCO LTD                                ,203022,,SAFETY EQUIPMENT & CLOTHING   
GRAVES PARK - ANIMAL FARM INC ,8060,MATERIALS AND SUPPLIES GENERAL,05/01/2015,3761864,322628,750.49,ARGO FEEDS LTD                          ,203028,,PET FOODS & ANIMAL FEEDS      
YOUTH JUSTICE SERVICE         ,9120,OTHER AGENCIES                ,05/01/2015,3761873,120,12500.00,REMEDI                                  ,329612,,CHARITIES & VOLUNTARY ORGANISA
MOORFOOT LEARNING CENTRE      ,8490,OTHER PROFESSIONAL FEES       ,05/01/2015,3761876,2810007402,445.50,YORKSHIRE AMBULANCE SERVICE NHS TRUST   ,329215,,HOSPITALS                     
TRANSPORT FLEET PASSENGER SERV,8110,"CLOTHING, UNIFORM AND LAUNDRY ",05/01/2015,3761883,923637624,295.62,ARCO LTD                                ,203022,,SAFETY EQUIPMENT & CLOTHING   
MOORFOOT LEARNING CENTRE      ,8490,OTHER PROFESSIONAL FEES       ,05/01/2015,3761915,2810007403,445.50,YORKSHIRE AMBULANCE SERVICE NHS TRUST   ,329215,,HOSPITALS                     
YOUTH JUSTICE SERVICE         ,9120,OTHER AGENCIES                ,05/01/2015,3761931,122,28750.00,REMEDI                                  ,329612,,CHARITIES & VOLUNTARY ORGANISA
SECURE PLACEMENTS             ,9270,SECURE PLACEMENTS - REMAND    ,05/01/2015,3761940,SII008092                ,1580.00,YOUTH JUSTICE BOARD FOR                 ,346047,,CENTRAL GOVERNMENT            
CARE PROCEEDINGS (LEGAL FEES) ,8470,LEGAL FEES                    ,05/01/2015,3761958,916102,600.00,REDACTED PERSONAL DATA,504926,,BARRISTERS                    
CARE PROCEEDINGS (LEGAL FEES) ,8470,LEGAL FEES                    ,05/01/2015,3761959,903261,900.00,KATE MORLEY                             ,599526,,BARRISTERS                    
CARE PROCEEDINGS (LEGAL FEES) ,8470,LEGAL FEES                    ,05/01/2015,3761960,911427,600.00,REDACTED PERSONAL DATA,504926,,BARRISTERS                    
CARE PROCEEDINGS (LEGAL FEES) ,8470,LEGAL FEES                    ,05/01/2015,3761961,921425,600.00,OLIVIA WEIR                             ,616302,,BARRISTERS                    
LDD PLACEMENTS AUG14-JUL15    ,8390,STATIONERY                    ,05/01/2015,3761962,257549334,828.00,YORKSHIRE PURCHASING ORGANISATION       ,295997,,PURCHASING SERVICES           
LOCALITY 1 MANAGEMENT+O/HEADS ,8010,EQUIPMENT PURCHASE AND REPAIR ,05/01/2015,3761963,257549332,325.80,YORKSHIRE PURCHASING ORGANISATION       ,295997,,PURCHASING SERVICES           
ECCLESFIELD SUPPORT UNIT      ,8540,SECURITY SERVICES             ,05/01/2015,3762022,445106,897.00,KING'S SECURITY SYSTEMS LIMITED         ,329808,,SECURITY EQUIPMENT INSTALLERS 
PURCHASING LEARNING DISABILITI,9190,EX POOL CLIENTS               ,05/01/2015,3762027,39885,191738.00,THE GUINNESS PARTNERSHIP LIMITED        ,385309,,"HOUSING ASSOCIATIONS, SOCIETIE"
MINOR WORKS & ADAPTATIONS     ,6020,REPAIRS AND MTCE - PROGRAMMED ,05/01/2015,3762038,1207,396.00,MR H S CUTTS NEIL CONSTRUCTION          ,453315,,BUILDING SERVICES             
SUPPORTED HOUSING             ,6020,VOID PAINTING INITIATIVE      ,05/01/2015,3762039,L12028                   ,1273.00,BELL GROUP (LEEDS)                      ,441427,,PAINTERS & DECORATORS         
MINOR WORKS & ADAPTATIONS     ,6030,REPAIRS AND MTCE - RESPONSIVE ,05/01/2015,3762040,1211,573.00,MR H S CUTTS NEIL CONSTRUCTION          ,453315,,BUILDING SERVICES             
MINOR WORKS & ADAPTATIONS     ,6020,REPAIRS AND MTCE - PROGRAMMED ,05/01/2015,3762041,1208,276.00,MR H S CUTTS NEIL CONSTRUCTION          ,453315,,BUILDING SERVICES             
SECURE PLACEMENTS             ,9270,SECURE PLACEMENTS - REMAND    ,05/01/2015,3762047,SII009371                ,4740.00,YOUTH JUSTICE BOARD FOR                 ,346047,,CENTRAL GOVERNMENT            
SECURE PLACEMENTS             ,9270,SECURE PLACEMENTS - REMAND    ,05/01/2015,3762049,SII009372                ,4740.00,YOUTH JUSTICE BOARD FOR                 ,346047,,CENTRAL GOVERNMENT            
SECURE PLACEMENTS             ,9270,SECURE PLACEMENTS - REMAND    ,05/01/2015,3762058,SII009373                ,4108.00,YOUTH JUSTICE BOARD FOR                 ,346047,,CENTRAL GOVERNMENT            
SECURE PLACEMENTS             ,9270,SECURE PLACEMENTS - REMAND    ,05/01/2015,3762059,SII009374                ,316.00,YOUTH JUSTICE BOARD FOR                 ,346047,,CENTRAL GOVERNMENT            
PURCHASING LEARNING DISABILITI,9190,EX POOL CLIENTS               ,05/01/2015,3762070,SI05/00011344            ,6912.00,DIMENSIONS (UK) LTD.                    ,386516,,DISABILITY & SPECIAL NEEDS - S
PURCHASING LEARNING DISABILITI,9190,EX POOL CLIENTS               ,05/01/2015,3762071,SI05/00011346            ,14976.00,DIMENSIONS (UK) LTD.                    ,386516,,DISABILITY & SPECIAL NEEDS - S
PURCHASING LEARNING DISABILITI,9190,EX POOL CLIENTS               ,05/01/2015,3762072,SI05/00011347            ,14976.00,DIMENSIONS (UK) LTD.                    ,386516,,DISABILITY & SPECIAL NEEDS - S
PURCHASING LEARNING DISABILITI,9190,EX POOL CLIENTS               ,05/01/2015,3762073,SI05/00011348            ,1209.98,DIMENSIONS (UK) LTD.                    ,386516,,DISABILITY & SPECIAL NEEDS - S
MOORFOOT LEARNING CENTRE      ,8490,OTHER PROFESSIONAL FEES       ,05/01/2015,3762083,2810007477,445.50,YORKSHIRE AMBULANCE SERVICE NHS TRUST   ,329215,,HOSPITALS                     
PURCHASING LEARNING DISABILITI,9190,EX POOL CLIENTS               ,05/01/2015,3762085,SI05/00011369            ,151868.26,DIMENSIONS (UK) LTD.                    ,386516,,DISABILITY & SPECIAL NEEDS - S
PURCHASING LEARNING DISABILITI,9190,EX POOL CLIENTS               ,05/01/2015,3762087,SI05/00011316            ,151868.26,DIMENSIONS (UK) LTD.                    ,386516,,DISABILITY & SPECIAL NEEDS - S
PURCHASING LEARNING DISABILITI,9190,EX POOL CLIENTS               ,05/01/2015,3762088,SI05/00011317            ,15481.05,DIMENSIONS (UK) LTD.                    ,386516,,DISABILITY & SPECIAL NEEDS - S
ECAMPUS                       ,8550,OTHER SERVICES                ,05/01/2015,3762283,141518,12528.59,SHEAF MANAGEMENT LTD                    ,618062,,SURVEYORS & VALUERS           
ESTATE & ENVIORMENTAL SERVICES,9120,OTHER AGENCIES                ,05/01/2015,3762284,3314030,1358.70,WM MORRISON SUPERMARKETS PLC            ,209577,,SUPERMARKETS                  
FREE TRAVEL PASSES - PRIMARY  ,9120,OTHER AGENCIES                ,05/01/2015,3762402,SL0068044                ,234406.45,SYPTE                                   ,208757,,BUS & COACH OPERATORS & STATIO
POST 16 TRAVEL PASSES         ,9430,SEN DISCRETIONARY             ,05/01/2015,3762409,30001104,125884.10,THE SHEFFIELD COLLEGE                   ,297611,,SCHOOLS & COLLEGES - FURTHER E
WINTER GARDEN                 ,6170,COMBINED HEAT AND POWER       ,05/01/2015,3762290,2113VEOL242101           ,672.02,ENER-G SWITCH2 LTD                      ,546534,,INSTRUMENTATION ENGINEERS     
CARERS SPECIAL GRANT          ,9190,DIRECT PAYMENTS               ,05/01/2015,3762279,J1044809                 ,1183.30,REDACTED PERSONAL DATA,587928,Social Community Care,CAREFIRST DIRECT PAYMENTS     
INDEPENDENT FOSTERING PLACEMEN,9270,INDEPENDENT FOSTERING         ,05/01/2015,3762206,NFA121571                ,3060.12,REDACTED PERSONAL DATA,432914,,ADOPTION & FOSTERING          
INDEPENDENT FOSTERING PLACEMEN,9270,INDEPENDENT FOSTERING         ,05/01/2015,3762207,NFA121572                ,2966.04,REDACTED PERSONAL DATA,432914,,ADOPTION & FOSTERING          
INDEPENDENT FOSTERING PLACEMEN,9270,INDEPENDENT FOSTERING         ,05/01/2015,3762208,NFA121573                ,2791.60,REDACTED PERSONAL DATA,432914,,ADOPTION & FOSTERING          
INDEPENDENT FOSTERING PLACEMEN,9270,INDEPENDENT FOSTERING         ,05/01/2015,3762209,NFA121574                ,2966.04,REDACTED PERSONAL DATA,432914,,ADOPTION & FOSTERING          
INDEPENDENT FOSTERING PLACEMEN,9270,INDEPENDENT FOSTERING         ,05/01/2015,3762210,NFA121575                ,3060.12,REDACTED PERSONAL DATA,432914,,ADOPTION & FOSTERING          
INDEPENDENT FOSTERING PLACEMEN,9270,INDEPENDENT FOSTERING         ,05/01/2015,3762211,NFA121576                ,2940.00,REDACTED PERSONAL DATA,432914,,ADOPTION & FOSTERING          
INDEPENDENT FOSTERING PLACEMEN,9270,INDEPENDENT FOSTERING         ,05/01/2015,3762212,NFA121577                ,2940.00,REDACTED PERSONAL DATA,432914,,ADOPTION & FOSTERING          
INDEPENDENT FOSTERING PLACEMEN,9270,INDEPENDENT FOSTERING         ,05/01/2015,3762213,NFA121578                ,3120.04,REDACTED PERSONAL DATA,432914,,ADOPTION & FOSTERING          
INDEPENDENT FOSTERING PLACEMEN,9270,INDEPENDENT FOSTERING         ,05/01/2015,3762214,NFA121579                ,3120.04,REDACTED PERSONAL DATA,432914,,ADOPTION & FOSTERING          
INDEPENDENT FOSTERING PLACEMEN,9270,INDEPENDENT FOSTERING         ,05/01/2015,3762215,NFA121581                ,2791.60,REDACTED PERSONAL DATA,432914,,ADOPTION & FOSTERING          
CWD INDEPENDENT PLACEMENTS    ,9270,CARELEAVERS ACCOMMODATION     ,05/01/2015,3762216,SRO1188131               ,1176.00,THE NATIONAL AUTISTIC SOCIETY           ,334778,,CHARITIES & VOLUNTARY ORGANISA
CWD INDEPENDENT PLACEMENTS    ,9270,CARELEAVERS ACCOMMODATION     ,05/01/2015,3762217,SRO1188132               ,1176.00,THE NATIONAL AUTISTIC SOCIETY           ,334778,,CHARITIES & VOLUNTARY ORGANISA
INDEPENDENT PLACEMENTS        ,9310,PARENTAL OR TRIBUNAL PLACEMENT,05/01/2015,3762218,SRO2187011A              ,17560.34,THE NATIONAL AUTISTIC SOCIETY           ,334778,,CHARITIES & VOLUNTARY ORGANISA
CWD INDEPENDENT PLACEMENTS    ,9270,INDEPENDENT RESIDENTIAL PMENT ,05/01/2015,3762219,19267,10080.00,DONCASTER DEAF TRUST                    ,564762,Unclassified Non Trade,OUT OF SCOPE FOR SIC MONITORIN
CONTACT CONTRACTS             ,9280,CONTACT                       ,05/01/2015,3762268,7805,285.58,PROGRESSIVE CARE LTD                    ,343548,,CHILDREN'S HOMES              
 LUNCH CLUB GRANT             ,8180,GRANTS                        ,05/01/2015,3762298,MPA20150105196 1         ,725.00,BANNER CROSS LUNCHEON & FRIENDSHIP CLUB ,326250,,PLACES OF WORSHIP             
 LUNCH CLUB GRANT             ,8180,GRANTS                        ,05/01/2015,3762299,MPA20150105196 10        ,945.00,GREYSTONES LUNCH CLUB                   ,295226,,CHARITIES & VOLUNTARY ORGANISA
 LUNCH CLUB GRANT             ,8180,GRANTS                        ,05/01/2015,3762301,MPA20150105196 12        ,616.00,ADLINGTON LUNCHEON CLUB                 ,295201,,CHARITIES & VOLUNTARY ORGANISA
 LUNCH CLUB GRANT             ,8180,GRANTS                        ,05/01/2015,3762302,MPA20150105196 13        ,1244.00,DARNALL LUNCH CLUB                      ,295216,,CHARITIES & VOLUNTARY ORGANISA
 LUNCH CLUB GRANT             ,8180,GRANTS                        ,05/01/2015,3762304,MPA20150105196 15        ,2010.00,THE LIMES LUNCHEON CLUB                 ,295165,,CHARITIES & VOLUNTARY ORGANISA
 LUNCH CLUB GRANT             ,8180,GRANTS                        ,05/01/2015,3762305,MPA20150105196 16        ,641.00,DUKE STREET COMMUNITY CENTRE            ,375030,,COMMUNITY CENTRES             
 LUNCH CLUB GRANT             ,8180,GRANTS                        ,05/01/2015,3762306,MPA20150105196 17        ,991.00,ST OSWALDS LUNCHEON CLUB                ,385325,,CHARITIES & VOLUNTARY ORGANISA
 LUNCH CLUB GRANT             ,8180,GRANTS                        ,05/01/2015,3762308,MPA20150105196 19        ,2250.00,BIRLEY SPA LUNCH CLUB                   ,295206,,CHARITIES & VOLUNTARY ORGANISA
 LUNCH CLUB GRANT             ,8180,GRANTS                        ,05/01/2015,3762309,MPA20150105196 2         ,670.00,CHRIST CHURCH PITSMOOR LUNCH CLUB       ,321910,,CHARITIES & VOLUNTARY ORGANISA
 LUNCH CLUB GRANT             ,8180,GRANTS                        ,05/01/2015,3762310,MPA20150105196 20        ,336.00,THE KINGS CENTRE LUNCH CLUB             ,295164,,CHARITIES & VOLUNTARY ORGANISA
 LUNCH CLUB GRANT             ,8180,GRANTS                        ,05/01/2015,3762311,MPA20150105196 21        ,332.00,MICHAEL CHURCH LOWEDGES THURS LUNCH CLUB,295189,,CHARITIES & VOLUNTARY ORGANISA
 LUNCH CLUB GRANT             ,8180,GRANTS                        ,05/01/2015,3762312,MPA20150105196 22        ,714.00,ST JOHN'S ABBEYDALE LUNCH CLUB          ,385324,,CHARITIES & VOLUNTARY ORGANISA
 LUNCH CLUB GRANT             ,8180,GRANTS                        ,05/01/2015,3762313,MPA20150105196 23        ,640.00,GRAPEVINE CENTRE LUNCHEON CLUB          ,295190,,CHARITIES & VOLUNTARY ORGANISA
 LUNCH CLUB GRANT             ,8180,GRANTS                        ,05/01/2015,3762314,MPA20150105196 24        ,702.00,PITSMOOR LUNCH CLUB                     ,295194,,CHARITIES & VOLUNTARY ORGANISA
 LUNCH CLUB GRANT             ,8180,GRANTS                        ,05/01/2015,3762315,MPA20150105196 25        ,1228.00,THE SALVATION ARMY SHEFFIELD CASTLE     ,327783,,"HOUSING ASSOCIATIONS, SOCIETIE"
 LUNCH CLUB GRANT             ,8180,GRANTS                        ,05/01/2015,3762316,MPA20150105196 26        ,264.00,DORE METHODIST LUNCH CLUB               ,295219,,CHARITIES & VOLUNTARY ORGANISA
 LUNCH CLUB GRANT             ,8180,GRANTS                        ,05/01/2015,3762317,MPA20150105196 27        ,534.00,WADSLEY CHURCH LUNCH CLUB               ,295167,,CHARITIES & VOLUNTARY ORGANISA
 LUNCH CLUB GRANT             ,8180,GRANTS                        ,05/01/2015,3762318,MPA20150105196 28        ,902.00,SHIREGREEN UNITED REFORMED CHURCH       ,295203,,PLACES OF WORSHIP             
 LUNCH CLUB GRANT             ,8180,GRANTS                        ,05/01/2015,3762319,MPA20150105196 29        ,719.00,ST TIMOTHY'S LUNCH CLUB                 ,295163,,CHARITIES & VOLUNTARY ORGANISA
 LUNCH CLUB GRANT             ,8180,GRANTS                        ,05/01/2015,3762320,MPA20150105196 3         ,1009.00,CROSSPOOL LUNCH CLUB                    ,321911,,CHARITIES & VOLUNTARY ORGANISA
 LUNCH CLUB GRANT             ,8180,GRANTS                        ,05/01/2015,3762321,MPA20150105196 30        ,755.00,MEERSBROOK PARK LUNCH CLUB              ,363027,,CHARITIES & VOLUNTARY ORGANISA
 LUNCH CLUB GRANT             ,8180,GRANTS                        ,05/01/2015,3762322,MPA20150105196 31        ,990.00,ST BARTHOLOMEWS LUNCH CLUB              ,384447,,CHARITIES & VOLUNTARY ORGANISA
 LUNCH CLUB GRANT             ,8180,GRANTS                        ,05/01/2015,3762323,MPA20150105196 32        ,886.00,ST LEONARD'S LUNCH CLUB                 ,296991,,CHARITIES & VOLUNTARY ORGANISA
 LUNCH CLUB GRANT             ,8180,GRANTS                        ,05/01/2015,3762324,MPA20150105196 33        ,1006.00,ST MARY'S LUNCH CLUB                    ,322012,,CHARITIES & VOLUNTARY ORGANISA
 LUNCH CLUB GRANT             ,8180,GRANTS                        ,05/01/2015,3762325,MPA20150105196 34        ,556.00,TINSLEY COMMUNITY CENTRE LUNCH CLUB     ,297105,,CHARITIES & VOLUNTARY ORGANISA
 LUNCH CLUB GRANT             ,8180,GRANTS                        ,05/01/2015,3762326,MPA20150105196 35        ,1349.00,ST MARY'S HANDSWORTH LUNCH CLUB         ,300780,,CHARITIES & VOLUNTARY ORGANISA
 LUNCH CLUB GRANT             ,8180,GRANTS                        ,05/01/2015,3762327,MPA20150105196 36        ,997.00,WILLIAM TEMPLE LUNCH CLUB               ,299806,,CHARITIES & VOLUNTARY ORGANISA
 LUNCH CLUB GRANT             ,8180,GRANTS                        ,05/01/2015,3762329,MPA20150105196 38        ,2336.00,FOXHILL & BIRLEY CARR LIVE AT HOME SCHEM,349900,,CHARITIES & VOLUNTARY ORGANISA
 LUNCH CLUB GRANT             ,8180,GRANTS                        ,05/01/2015,3762330,MPA20150105196 39        ,1575.00,LOWER SHIREGREEN LUNCH CLUB             ,299896,,CHARITIES & VOLUNTARY ORGANISA
 LUNCH CLUB GRANT             ,8180,GRANTS                        ,05/01/2015,3762332,MPA20150105196 40        ,308.00,ST MARKS LUNCH & FRIENDSHIP CLUB        ,301346,,PLACES OF WORSHIP             
 LUNCH CLUB GRANT             ,8180,GRANTS                        ,05/01/2015,3762335,MPA20150105196 43        ,353.00,LOWEDGES LUNCH CLUB                     ,353522,,CHARITIES & VOLUNTARY ORGANISA
 LUNCH CLUB GRANT             ,8180,GRANTS                        ,05/01/2015,3762336,MPA20150105196 44        ,1344.00,FRECHEVILLE PARISH DAY CENTRE           ,348612,,LOCAL GOVERNMENT              
 LUNCH CLUB GRANT             ,8180,GRANTS                        ,05/01/2015,3762337,MPA20150105196 45        ,659.00,WESLEY HALL LUNCH CLUB                  ,511866,,CHARITIES & VOLUNTARY ORGANISA
 LUNCH CLUB GRANT             ,8180,GRANTS                        ,05/01/2015,3762338,MPA20150105196 46        ,995.00,MOSBOROUGH LUNCH & SOCIAL CLUB          ,510333,,"CLUBS & ASSOCIATIONS - SOCIAL,"
 LUNCH CLUB GRANT             ,8180,GRANTS                        ,05/01/2015,3762339,MPA20150105196 47        ,854.00,THE THURSDAY CLUB                       ,451641,,CHARITIES & VOLUNTARY ORGANISA
 LUNCH CLUB GRANT             ,8180,GRANTS                        ,05/01/2015,3762340,MPA20150105196 48        ,331.00,CHURCH ON THE CORNER                    ,362765,,PLACES OF WORSHIP             
 LUNCH CLUB GRANT             ,8180,GRANTS                        ,05/01/2015,3762341,MPA20150105196 49        ,548.00,MANOR LODGE LUNCHEON CLUB               ,545135,,CHARITIES & VOLUNTARY ORGANISA
 LUNCH CLUB GRANT             ,8180,GRANTS                        ,05/01/2015,3762342,MPA20150105196 5         ,789.00,HALLAM METHODIST LUNCH CLUB             ,321917,,CHARITIES & VOLUNTARY ORGANISA
 LUNCH CLUB GRANT             ,8180,GRANTS                        ,05/01/2015,3762344,MPA20150105196 51        ,288.00,PARSON CROSS COMMUNITY DEVELOPMENT FORUM,385089,,CHARITIES & VOLUNTARY ORGANISA
 LUNCH CLUB GRANT             ,8180,GRANTS                        ,05/01/2015,3762346,MPA20150105196 6         ,517.00,HANDY HANDS GROUP                       ,384446,,CHARITIES & VOLUNTARY ORGANISA
 LUNCH CLUB GRANT             ,8180,GRANTS                        ,05/01/2015,3762347,MPA20150105196 7         ,284.00,OUGHTIBRIDGE & DISTRICT LUNCH CLUB      ,325339,,CHARITIES & VOLUNTARY ORGANISA
 LUNCH CLUB GRANT             ,8180,GRANTS                        ,05/01/2015,3762349,MPA20150105196 9         ,889.00,WOODSEATS METHODIST LUNCH CLUB          ,325667,,CHARITIES & VOLUNTARY ORGANISA
ADULT SOCIAL CARE PURCHASING  ,9210,CONTINUING NURSING CARE       ,05/01/2015,3762204,J1044442 040115          ,3339.14,HAZELDENE NURSING HOME                  ,340163,,NURSING HOMES                 
ADULT SOCIAL CARE PURCHASING  ,9200,CONTINUING RESIDENTIAL CARE   ,05/01/2015,3762205,J1044800 040115          ,1074.23,HC ONE (HEAD OFFICE)                    ,208451,,NURSING HOMES                 
DISABLED GRANTS               ,1165,NC&A OTHER                    ,06/01/2015,3763044,ERS INVOICE112249        ,2294.77,EASIBATHE                               ,538552,,BATHROOM EQUIPMENT & FITTINGS 
DISABLED GRANTS               ,1165,NC&A OTHER                    ,06/01/2015,3763045,ERS INVOICE112250        ,1966.00,STANNAH LIFT SERVICES LTD.              ,208625,,STAIRLIFTS - MNFRS & INSTALLER
DISABLED GRANTS               ,1165,NC&A OTHER                    ,06/01/2015,3763046,ERS INVOICE112251        ,2161.00,STANNAH LIFT SERVICES LTD.              ,208625,,STAIRLIFTS - MNFRS & INSTALLER
SSCB                          ,8490,OTHER PROFESSIONAL FEES       ,06/01/2015,3763047,ERS INVOICE112252        ,900.00,MOHAMMAD ISMAIL                         ,477091,,BUSINESS & MANAGEMENT CONSULTA
ADULT SOCIAL CARE PURCHASING  ,8470,LEGAL FEES                    ,06/01/2015,3763048,ERS INVOICE112254        ,400.00,COURT OF PROTECTION                     ,491870,,COURTS                        
NE LINCS - SUB REGION HAL     ,1194,OTHER FEES                    ,06/01/2015,3763056,ERS INVOICE112262        ,8500.00,REDACTED PERSONAL DATA,565068,Unclassified Non Trade,OUT OF SCOPE FOR SIC MONITORIN
CLAIMS                        ,8740,MOTOR VEHICLE                 ,06/01/2015,3763114,ERS INVOICE112265        ,2736.00,REDACTED PERSONAL DATA,619359,Unclassified Non Trade,OUT OF SCOPE FOR SIC MONITORIN
SOUTH                         ,9120,OTHER AGENCIES                ,06/01/2015,3763138,ERS INVOICE112294        ,285.20,LOWEDGES HEALTH WALK GROUP              ,597578,Unclassified Non Trade,OUT OF SCOPE FOR SIC MONITORIN
HEAD OF SERVICE               ,8390,STATIONERY                    ,06/01/2015,3732315,257318581/257436756      ,286.55,YORKSHIRE PURCHASING ORGANISATION       ,295997,,PURCHASING SERVICES           
SUCCESSFUL FAMILIES PROGRAMME ,8440,FEE EXPENSES                  ,06/01/2015,3732540,SOARCO/1588              ,3328.33,SOAR                                    ,413073,,EDUCATIONAL TRAINING PROVIDERS
YOUNG CARERS PROJECT          ,9030,HEALTH                        ,06/01/2015,3747057,41976,27250.00,SHEFFIELD YOUNG CARERS PROJECT          ,581513,,PUBLIC HEALTH SUPPLIERS       
SUCCESSFUL FAMILIES PROGRAMME ,8440,FEE EXPENSES                  ,06/01/2015,3748804,17105,8233.33,FAMILY ACTION                           ,469656,,COUNSELLING & ADVICE SERVICES 
PEI STRATEGY DEVELOP PERFORM  ,8440,FEE EXPENSES                  ,06/01/2015,3748821,17104,3500.00,FAMILY ACTION                           ,469656,,COUNSELLING & ADVICE SERVICES 
SUCCESSFUL FAMILIES PROGRAMME ,8440,FEE EXPENSES                  ,06/01/2015,3749087,247,6341.83,MANOR CASTLE DEVELOPMENT TRUST          ,451957,,DEVELOPMENT AGENCIES          
AUDIT FEES                    ,8440,FEE EXPENSES                  ,06/01/2015,3751425,3101474,650.00,CIPFA                                   ,360709,,INSTITUTES - PROFESSIONAL     
PURCHASING LEARNING DISABILITI,4080,FEES & CHARGES                ,06/01/2015,3752603,236896,12379.20, NORTHAMPTONSHIRE COUNTY COUNCIL�       ,585084,,RESIDENTIAL CARE HOMES        
CITY DEAL                     ,8440,FEE EXPENSES                  ,06/01/2015,3752612,SME02                    ,6230.00,CANNON PUBLIC RELATIONS LIMITED         ,616255,,PUBLIC RELATIONS CONSULTANTS  
MOORFOOT                      ,1194,OTHER FEES                    ,06/01/2015,3753072,752900,2507.84,PICKFORDS                               ,573763,,REMOVALS - OVERSEAS           
CATERING CONTRACT             ,8270,SUBSCRIPTIONS                 ,06/01/2015,3753546,00002409/15              ,393.96,LACA EASTERN REGION                     ,488028,,LOCAL GOVERNMENT              
INWARD INVESTMENT             ,8420,ADVERTISING AND PUBLICITY     ,06/01/2015,3756100,103407,645.48,SHEFFIELD CITY COUNCIL                  ,596179,,LOCAL GOVERNMENT              
YOUTH JUSTICE SERVICE         ,9120,OTHER AGENCIES                ,06/01/2015,3756178,109,16253.00,REMEDI                                  ,329612,,CHARITIES & VOLUNTARY ORGANISA
CONSTRUCTION DESIGN CENTRE    ,8490,EXAM FEES                     ,06/01/2015,3757613,451052,1000.00,CONSTRUCTION SKILLS                     ,487810,,BUSINESS & TRADE ORGANISATIONS
VALUE ADDED                   ,7140,PUBLIC TRANSPORT COSTS        ,06/01/2015,3757628,01/5211936               ,289.88,CO-OPERATIVE TRAVEL MANAGEMENT          ,440689,,TRAVEL AGENTS & HOLIDAY COMPAN
COORDINATION & LICENSES       ,7140,PUBLIC TRANSPORT COSTS        ,06/01/2015,3757732,502609,254.15,STAGECOACH SUPERTRAM MAINTENANCE LTD    ,367504,,BUS & COACH OPERATORS & STATIO
PURCHASING LEARNING DISABILITI,4080,FEES & CHARGES                ,06/01/2015,3757943,AC/9/270572              ,9191.00,H F TRUST LIMITED                       ,362078,,CHARITIES & VOLUNTARY ORGANISA
CLAIMS                        ,8470,LEGAL FEES                    ,06/01/2015,3758088,2004974,18367.00,BERRYMANS LACE MAWER                    ,530263,,SOLICITORS                    
INWARD INVESTMENT             ,8240,CONFERENCE EXPENSES           ,06/01/2015,3758483,4072/2954                ,1500.00,VERANO MARKETING LIMITED                ,560194,,ADVERTISING - AGENCIES        
COMMUNITY ENGAGE & GOVERNANCE ,9120,OTHER AGENCIES                ,06/01/2015,3758728,454,262.00,PRIMARY AV LTD                          ,545996,,AUDIO-VISUAL PRODUCTION & PRES
CAPACITY PLANNING & DEV       ,8440,FEE EXPENSES                  ,06/01/2015,3758836,RINV/00001456            ,15208.48,SHEFFIELD LEP LIMITED                   ,471227,,LEASING SERVICES              
ROWAN EXPANSION               ,1193,CONSULTANTS FEES              ,06/01/2015,3758955,549055,26001.86,TURNER & TOWNSEND                       ,421729,,BUILDING CONSULTANTS          
HOMES & LOANS TEAM            ,5750,TRAINING EXPENDITURE          ,06/01/2015,3760749,CLS185321                ,537.50,THE CHARTERED INSTITUTE OF LEGAL EXECUTI,316434,,INSTITUTES - PROFESSIONAL     
INWARD INVESTMENT             ,8240,CONFERENCE EXPENSES           ,06/01/2015,3760775,1746,4960.00,VCA CONSULTANCY LIMITED                 ,433931,,TOUR OPERATORS                
PEACE GARDENS                 ,8060,MATERIALS AND SUPPLIES GENERAL,06/01/2015,3760943,923572989,323.83,ARCO LTD                                ,203022,,SAFETY EQUIPMENT & CLOTHING   
COMMUNITY SUPPORT SERVICE     ,9180,OTHER CLIENT EXPENDITURE      ,06/01/2015,3761090,974,355.50,SHEFFIELD CITY TAXIS LTD                ,301182,,TAXIS & PRIVATE HIRE          
SUPPORTED HOUSING             ,8050,FURNITURE PURCHASES           ,06/01/2015,3761120,SIN065215                ,3025.00,WHITELEAF FURNITURE LTD                 ,441448,,FURNITURE MNFRS - HOME & OFFIC
C & YP 5-19                   ,9030,HEALTH                        ,06/01/2015,3761243,4000409016,3000.00,SHEFFIELD TEACHING HOSPITALS NHS FND TST,583240,,PUBLIC HEALTH SUPPLIERS       
MINOR WORKS & ADAPTATIONS     ,6020,REPAIRS AND MTCE - PROGRAMMED ,06/01/2015,3761255,62306,255.00,G B ALLEN                               ,204993,,PLUMBERS                      
CLAIMS                        ,8470,LEGAL FEES                    ,06/01/2015,3761258,01-14-0053531/1/SHEF03   ,1600.00,KENNEDYS LAW LLP                        ,543971,,SOLICITORS                    
CLAIMS                        ,8470,LEGAL FEES                    ,06/01/2015,3761260,01-14-0051852/1/SHEF03   ,1244.50,KENNEDYS LAW LLP                        ,543971,,SOLICITORS                    
CLAIMS                        ,8470,LEGAL FEES                    ,06/01/2015,3761262,01-14-0051884/1/SHEF03   ,310.50,KENNEDYS LAW LLP                        ,543971,,SOLICITORS                    
APS - MANOR CENTRE            ,8540,SECURITY SERVICES             ,06/01/2015,3761263,4916589,766.76,CHUBB ELECTRONIC SECURITY               ,415902,,SECURITY SERVICES             
INWARD INVESTMENT             ,8420,ADVERTISING AND PUBLICITY     ,06/01/2015,3761282,190807,1320.00, SALES OPERATIONS UK LIMITED            ,596029,,BUSINESS & MANAGEMENT CONSULTA
CLAIMS                        ,8470,LEGAL FEES                    ,06/01/2015,3761292,01-14-0053530/1/SHEF03   ,444.15,KENNEDYS LAW LLP                        ,543971,,SOLICITORS                    
CLAIMS                        ,8470,LEGAL FEES                    ,06/01/2015,3761296,01-14-0051589/1/SHE114   ,700.00,KENNEDYS LAW LLP                        ,543971,,SOLICITORS                    
CLAIMS                        ,8470,LEGAL FEES                    ,06/01/2015,3761300,01-14-005109/1/1-SHEF02  ,275.00,KENNEDYS LAW LLP                        ,543971,,SOLICITORS                    
CLAIMS                        ,8470,LEGAL FEES                    ,06/01/2015,3761306,01-14-0051262/1/SHE114   ,796.50,KENNEDYS LAW LLP                        ,543971,,SOLICITORS                    
CLAIMS                        ,8470,LEGAL FEES                    ,06/01/2015,3761315,01-14-0051394/1/SHEF03   ,1713.50,KENNEDYS LAW LLP                        ,543971,,SOLICITORS                    
PROVIDER MAN/INC FINANCE CHARG,8440,FEE EXPENSES                  ,06/01/2015,3761331,SHEF14097                ,1620.00, CARE-EX SERVICES LTD T/A CONCER        ,598087,,SOCIAL SERVICES               
CLAIMS                        ,8470,LEGAL FEES                    ,06/01/2015,3761347,01-14-0051088/1/SHEF03   ,4932.50,KENNEDYS LAW LLP                        ,543971,,SOLICITORS                    
MINOR WORKS & ADAPTATIONS     ,6020,REPAIRS AND MTCE - PROGRAMMED ,06/01/2015,3761353,62303,256.00,G B ALLEN                               ,204993,,PLUMBERS                      
CLAIMS                        ,8470,LEGAL FEES                    ,06/01/2015,3761373,01-14-0050679/1/SHEF03   ,750.00,KENNEDYS LAW LLP                        ,543971,,SOLICITORS                    
CLAIMS                        ,8470,LEGAL FEES                    ,06/01/2015,3761374,01-14-0055007/1/SHEF03   ,350.00,KENNEDYS LAW LLP                        ,543971,,SOLICITORS                    
CLAIMS                        ,8470,LEGAL FEES                    ,06/01/2015,3761375,01-14-0055006/1/SHEF14   ,350.00,KENNEDYS LAW LLP                        ,543971,,SOLICITORS                    
CLAIMS                        ,8470,LEGAL FEES                    ,06/01/2015,3761376,01-14-0054952/1/SHEF14   ,627.79,KENNEDYS LAW LLP                        ,543971,,SOLICITORS                    
LA MUSIC SERVICES             ,6280,HIRE OF PREMISES              ,06/01/2015,3761419,INV000099                ,450.00,DO NOT USE - FORGE VALLEY COMM SCHOOL   ,586221,,SCHOOLS - SPORTS & LEISURE ACT
ADAPTATIONS                   ,1157,DWELLINGS MAIN CONTRACT       ,06/01/2015,3761421,5054066,1360.59,PRISM MEDICAL UK WESTHOLME DIVISION     ,209483,,DISABILITY EQUIPMENT - MNFRS &
SHEFFIELD TRADING STANDARDS   ,8010,EQUIPMENT PURCHASE AND REPAIR ,06/01/2015,3761802,54375,267.85,IML LABELS & SYSTEMS LTD                ,205715,,LABELS & TAGS                 
APS - MANOR CENTRE            ,8010,EQUIPMENT PURCHASE AND REPAIR ,06/01/2015,3761875,923637256,708.00,ARCO LTD                                ,203022,,SAFETY EQUIPMENT & CLOTHING   
SHORT BREAKS FUNDING FOR DISAB,9120,OTHER AGENCIES                ,06/01/2015,3761897,1998,333.63,GREENTOP CIRCUS CENTRE                  ,326509,,ENTERTAINMENT AGENCIES        
HOUSING EMPLOYABILITY PROJECT ,6030,REPAIRS TO TENANTED PROPERTIES,06/01/2015,3761909,134,340.00,J B HIBBERD LIMITED                     ,510434,,TREE WORK & FORESTRY SERVICES 
BARKERS POOL                  ,6030,REPAIRS AND MTCE - RESPONSIVE ,06/01/2015,3761948,935882,1000.00,DEXTER ENGINEERING                      ,547269,,ENGINE REBUILDING & RECONDITIO
RUSHEY MEADOWS                ,8010,EQUIPMENT PURCHASE AND REPAIR ,06/01/2015,3762042,5640787RI                ,333.32,ARGOS SUPERSTORE                        ,203030,,CATALOGUE SHOWROOMS           
SOCIAL CARE TAXIS             ,7060,EXTERNAL VEHICLE HIRE         ,06/01/2015,3762045,1259-SC                  ,6108.40,SHEFFIELD CITY TAXIS LTD                ,301182,,TAXIS & PRIVATE HIRE          
SEN TAXIS                     ,7060,EXTERNAL VEHICLE HIRE         ,06/01/2015,3762046,1259-SEN                 ,2669.80,SHEFFIELD CITY TAXIS LTD                ,301182,,TAXIS & PRIVATE HIRE          
FOOD HYGIENE                  ,8350,MISCELLANEOUS EXPENSES        ,06/01/2015,3762052,180628,363.80,OSBORNE RICHARDSON LTD                  ,504174,,EMPLOYMENT & RECRUITMENT AGENC
FOOD HYGIENE                  ,8350,MISCELLANEOUS EXPENSES        ,06/01/2015,3762054,180626,251.90,OSBORNE RICHARDSON LTD                  ,504174,,EMPLOYMENT & RECRUITMENT AGENC
CAR PARKING MANAGEMENT        ,6390,STREET CLEANING               ,06/01/2015,3762060,90-120131                ,2459.00,D H MANSFIELD LIMITED                   ,578011,,CAR BREAKDOWN & RECOVERY SERVI
ICAM                          ,8440,FEE EXPENSES                  ,06/01/2015,3762089,C322649                  ,299.20,ROSSENDALES COLLECT LTD                 ,477656,,BAILIFFS                      
ICAM                          ,8440,FEE EXPENSES                  ,06/01/2015,3762090,C322720                  ,2414.55,ROSSENDALES COLLECT LTD                 ,477656,,BAILIFFS                      
COMMUNICATIONS                ,8550,OTHER SERVICES                ,06/01/2015,3762142,INV170520                ,466.40,A PINDER LTD                            ,202627,,COPYING & DUPLICATING SERVICES
COMMUNICATIONS                ,8550,OTHER SERVICES                ,06/01/2015,3762143,INV170521                ,459.20,A PINDER LTD                            ,202627,,COPYING & DUPLICATING SERVICES
REDVERS HOUSE                 ,6240,PREMISES INSURANCE            ,06/01/2015,3762282,726851,7797.49,DTZ DEBENHAM TIE LEUNG                  ,392019,,COMMERCIAL PROPERTY AGENTS    
STANIFORTH ROAD WORKSHOPS     ,8270,SUBSCRIPTIONS                 ,06/01/2015,3762365,165378,750.00,AUTODATA LIMITED                        ,483201,,PUBLISHERS                    
HOUSING EMPLOYABILITY PROJECT ,6030,REPAIRS TO TENANTED PROPERTIES,06/01/2015,3762375,923646105,291.81,ARCO LTD                                ,203022,,SAFETY EQUIPMENT & CLOTHING   
SUPPORTED HOUSING             ,8050,FLOOR COVERINGS               ,06/01/2015,3762415,15275,18481.00,PYRAMID CARPETS                         ,243612,,CARPETS & RUGS - RETAIL       
CHAUCER SQUARE MAINTENANCE    ,1194,OTHER FEES                    ,06/01/2015,3762454,SC170                    ,551.39,SALVINS CLEANING MANAGEMENT SERVICES    ,573891,,CLEANING SERVICES - COMMERCIAL
MINIBUSES - TENDERED          ,7060,EXTERNAL VEHICLE HIRE         ,06/01/2015,3762456,42005,4829.50,ACTIVE RESPONSE TRANSPORT LTD           ,587118,,MINI BUSES - HIRE & LEASING   
ADAPTATIONS                   ,1157,DWELLINGS MAIN CONTRACT       ,06/01/2015,3762458,174/30947                ,300.00,REDACTED PERSONAL DATA,311727,,ESTATE AGENTS                 
INWARD INVESTMENT             ,8230,HOSPITALITY                   ,06/01/2015,3762711,8597,406.50,ELECTRIC WORKS                          ,512542,,BUSINESS CENTRES              
PARKS GENERAL                 ,6370,GROUNDS MTCE AND ARBORICULTURE,06/01/2015,3762919,DM2014/35                ,5973.25,COMMONWEALTH WAR GRAVES COMMISSION      ,336472,,GRAVE & CEMETERY MAINTENANCE  
STANIFORTH ROAD DEPOT         ,8540,SECURITY SERVICES             ,06/01/2015,3762920,INV069780                ,5743.49,CONSTANT SECURITY SERVICES LIMITED      ,501937,,SECURITY SERVICES             
BCPD                          ,8350,MISCELLANEOUS EXPENSES        ,06/01/2015,3762969,252603222,1860.00,AHMEDIA LTD.                            ,618674,,LOCAL GOVERNMENT              
CITY DEAL                     ,9120,OTHER AGENCIES                ,06/01/2015,3762970,20392697,18400.00,DONCASTER MBC                           ,369105,,LOCAL GOVERNMENT              
URBAN NATURE PARKS            ,1165,NC&A OTHER                    ,06/01/2015,3762999,263,1800.00,HN WOODLAND & ESTATE MANAGEMENT         ,317072,,TREE WORK & FORESTRY SERVICES 
INWARD INVESTMENT             ,8600,MOBILE TELEPHONES             ,06/01/2015,3763063,670158868/1              ,305.00,VODAFONE LIMITED (CORPORATE)            ,209321,,MOBILE PHONES                 
INWARD INVESTMENT             ,8600,MOBILE TELEPHONES             ,06/01/2015,3763064,670158868/1              ,305.00,VODAFONE LIMITED (CORPORATE)            ,209321,,MOBILE PHONES                 
ADULT SOCIAL CARE PURCHASING  ,9190,DIRECT PAYMENTS               ,06/01/2015,3762819,J1045211                 ,395.07,REDACTED PERSONAL DATA,462403,Social Community Care,CAREFIRST DIRECT PAYMENTS     
PDSI PURCHASING               ,4260,DIRECT PAYMENTS               ,06/01/2015,3762820,J1045211                 ,387.48,REDACTED PERSONAL DATA,553048,Social Community Care,CAREFIRST DIRECT PAYMENTS     
ADULT SOCIAL CARE PURCHASING  ,9190,DIRECT PAYMENTS               ,06/01/2015,3762820,J1045211                 ,1326.69,REDACTED PERSONAL DATA,553048,Social Community Care,CAREFIRST DIRECT PAYMENTS     
ADULT SOCIAL CARE PURCHASING  ,9190,DIRECT PAYMENTS               ,06/01/2015,3762821,J1045211                 ,573.00,REDACTED PERSONAL DATA,556454,Social Community Care,CAREFIRST DIRECT PAYMENTS     
EQUIPMENT                     ,9190,DIRECT PAYMENTS               ,06/01/2015,3762823,J1045211                 ,315.00,REDACTED PERSONAL DATA,619357,Social Community Care,CAREFIRST DIRECT PAYMENTS     
PURCHASING LEARNING DISABILITI,9250,INDEPENDENT DAY CARE          ,06/01/2015,3762825,T00470                   ,6745.76,THE ADSETTS PARTNERSHIP C/O AUTISM PLUS ,330606,,CHARITIES & VOLUNTARY ORGANISA
PURCHASING LEARNING DISABILITI,9250,INDEPENDENT DAY CARE          ,06/01/2015,3762826,T00471                   ,6745.76,THE ADSETTS PARTNERSHIP C/O AUTISM PLUS ,330606,,CHARITIES & VOLUNTARY ORGANISA
PURCHASING LEARNING DISABILITI,9250,INDEPENDENT DAY CARE          ,06/01/2015,3762827,T00472                   ,2013.92,THE ADSETTS PARTNERSHIP C/O AUTISM PLUS ,330606,,CHARITIES & VOLUNTARY ORGANISA
PURCHASING LEARNING DISABILITI,9210,FUNDED NURSING CARE (INCOME)  ,06/01/2015,3762828,T00473                   ,402.80,THE ADSETTS PARTNERSHIP C/O AUTISM PLUS ,330606,,CHARITIES & VOLUNTARY ORGANISA
PURCHASING LEARNING DISABILITI,9250,INDEPENDENT DAY CARE          ,06/01/2015,3762828,T00473                   ,1611.12,THE ADSETTS PARTNERSHIP C/O AUTISM PLUS ,330606,,CHARITIES & VOLUNTARY ORGANISA
PURCHASING LEARNING DISABILITI,9250,INDEPENDENT DAY CARE          ,06/01/2015,3762829,T00475                   ,2013.92,THE ADSETTS PARTNERSHIP C/O AUTISM PLUS ,330606,,CHARITIES & VOLUNTARY ORGANISA
PURCHASING LEARNING DISABILITI,9250,INDEPENDENT DAY CARE          ,06/01/2015,3762830,T00476                   ,1749.72,THE ADSETTS PARTNERSHIP C/O AUTISM PLUS ,330606,,CHARITIES & VOLUNTARY ORGANISA
PURCHASING LEARNING DISABILITI,9190,FUNDED HOME SUPPORT           ,06/01/2015,3762831,11350,6672.80,NEW ERA HOUSING AUTHORITY               ,505956,,"HOUSING ASSOCIATIONS, SOCIETIE"
PURCHASING LEARNING DISABILITI,9190,CITYWIDE SPOT                 ,06/01/2015,3762832,11360,2498.20,NEW ERA HOUSING AUTHORITY               ,505956,,"HOUSING ASSOCIATIONS, SOCIETIE"
PURCHASING LEARNING DISABILITI,9190,FUNDED HOME SUPPORT           ,06/01/2015,3762832,11360,1891.52,NEW ERA HOUSING AUTHORITY               ,505956,,"HOUSING ASSOCIATIONS, SOCIETIE"
PURCHASING LEARNING DISABILITI,9190,FUNDED HOME SUPPORT           ,06/01/2015,3762833,11361,7343.84,NEW ERA HOUSING AUTHORITY               ,505956,,"HOUSING ASSOCIATIONS, SOCIETIE"
PURCHASING LEARNING DISABILITI,9190,CITYWIDE SPOT                 ,06/01/2015,3762834,857,2008.50,CAMPHILL VILLAGE TRUST                  ,203704,,CHARITIES & VOLUNTARY ORGANISA
PURCHASING LEARNING DISABILITI,9190,FUNDED HOME SUPPORT           ,06/01/2015,3762842,T00464                   ,4535.52,THE ADSETTS PARTNERSHIP C/O AUTISM PLUS ,330606,,CHARITIES & VOLUNTARY ORGANISA
PURCHASING LEARNING DISABILITI,9190,CITYWIDE SPOT                 ,06/01/2015,3762842,T00464                   ,4422.80,THE ADSETTS PARTNERSHIP C/O AUTISM PLUS ,330606,,CHARITIES & VOLUNTARY ORGANISA
PURCHASING LEARNING DISABILITI,9190,CITYWIDE SPOT                 ,06/01/2015,3762844,T00465                   ,9462.32,THE ADSETTS PARTNERSHIP C/O AUTISM PLUS ,330606,,CHARITIES & VOLUNTARY ORGANISA
PURCHASING LEARNING DISABILITI,9190,CITYWIDE SPOT                 ,06/01/2015,3762845,T00466                   ,8454.32,THE ADSETTS PARTNERSHIP C/O AUTISM PLUS ,330606,,CHARITIES & VOLUNTARY ORGANISA
PURCHASING LEARNING DISABILITI,9190,CITYWIDE SPOT                 ,06/01/2015,3762846,T00467                   ,5372.32,THE ADSETTS PARTNERSHIP C/O AUTISM PLUS ,330606,,CHARITIES & VOLUNTARY ORGANISA
PURCHASING LEARNING DISABILITI,9190,FUNDED HOME SUPPORT           ,06/01/2015,3762846,T00467                   ,5808.08,THE ADSETTS PARTNERSHIP C/O AUTISM PLUS ,330606,,CHARITIES & VOLUNTARY ORGANISA
PURCHASING                    ,9190,CITYWIDE SPOT                 ,06/01/2015,3762847,T00468                   ,506.52,THE ADSETTS PARTNERSHIP C/O AUTISM PLUS ,330606,,CHARITIES & VOLUNTARY ORGANISA
PURCHASING LEARNING DISABILITI,9190,FUNDED HOME SUPPORT           ,06/01/2015,3762849,T00474                   ,996.52,THE ADSETTS PARTNERSHIP C/O AUTISM PLUS ,330606,,CHARITIES & VOLUNTARY ORGANISA
PURCHASING LEARNING DISABILITI,9190,CITYWIDE SPOT                 ,06/01/2015,3762849,T00474                   ,1131.80,THE ADSETTS PARTNERSHIP C/O AUTISM PLUS ,330606,,CHARITIES & VOLUNTARY ORGANISA
PURCHASING LEARNING DISABILITI,9190,FUNDED HOME SUPPORT           ,06/01/2015,3762850,11351,846.40,NEW ERA HOUSING AUTHORITY               ,505956,,"HOUSING ASSOCIATIONS, SOCIETIE"
PURCHASING LEARNING DISABILITI,9190,CITYWIDE SPOT                 ,06/01/2015,3762850,11351,8411.20,NEW ERA HOUSING AUTHORITY               ,505956,,"HOUSING ASSOCIATIONS, SOCIETIE"
PURCHASING LEARNING DISABILITI,9190,FUNDED HOME SUPPORT           ,06/01/2015,3762852,T00477                   ,5152.00,THE ADSETTS PARTNERSHIP C/O AUTISM PLUS ,330606,,CHARITIES & VOLUNTARY ORGANISA
PURCHASING LEARNING DISABILITI,9190,FUNDED HOME SUPPORT           ,06/01/2015,3762860,11352,2297.00,NEW ERA HOUSING AUTHORITY               ,505956,,"HOUSING ASSOCIATIONS, SOCIETIE"
PURCHASING LEARNING DISABILITI,9190,CITYWIDE SPOT                 ,06/01/2015,3762860,11352,2232.52,NEW ERA HOUSING AUTHORITY               ,505956,,"HOUSING ASSOCIATIONS, SOCIETIE"
PURCHASING LEARNING DISABILITI,9190,CITYWIDE SPOT                 ,06/01/2015,3762861,20174551,440.00,MENCAP HOMECARE                         ,361858,,CHARITIES & VOLUNTARY ORGANISA
PURCHASING LEARNING DISABILITI,9190,CITYWIDE SPOT                 ,06/01/2015,3762862,2074510,880.00,MENCAP HOMECARE                         ,361858,,CHARITIES & VOLUNTARY ORGANISA
PURCHASING LEARNING DISABILITI,9190,CITYWIDE SPOT                 ,06/01/2015,3762863,11353,2281.60,NEW ERA HOUSING AUTHORITY               ,505956,,"HOUSING ASSOCIATIONS, SOCIETIE"
PURCHASING LEARNING DISABILITI,9190,FUNDED HOME SUPPORT           ,06/01/2015,3762863,11353,1031.68,NEW ERA HOUSING AUTHORITY               ,505956,,"HOUSING ASSOCIATIONS, SOCIETIE"
PURCHASING LEARNING DISABILITI,9190,CITYWIDE SPOT                 ,06/01/2015,3762864,2074511,3773.36,MENCAP HOMECARE                         ,361858,,CHARITIES & VOLUNTARY ORGANISA
PURCHASING LEARNING DISABILITI,9190,CITYWIDE SPOT                 ,06/01/2015,3762865,2074512,1725.76,MENCAP HOMECARE                         ,361858,,CHARITIES & VOLUNTARY ORGANISA
PURCHASING LEARNING DISABILITI,9190,CITYWIDE SPOT                 ,06/01/2015,3762866,2074513,2119.20,MENCAP HOMECARE                         ,361858,,CHARITIES & VOLUNTARY ORGANISA
PURCHASING LEARNING DISABILITI,9190,CITYWIDE SPOT                 ,06/01/2015,3762867,2074514,546.96,MENCAP HOMECARE                         ,361858,,CHARITIES & VOLUNTARY ORGANISA
PURCHASING LEARNING DISABILITI,9190,CITYWIDE SPOT                 ,06/01/2015,3762868,2074515,660.00,MENCAP HOMECARE                         ,361858,,CHARITIES & VOLUNTARY ORGANISA
PURCHASING LEARNING DISABILITI,9190,CITYWIDE SPOT                 ,06/01/2015,3762869,2074516,4012.00,MENCAP HOMECARE                         ,361858,,CHARITIES & VOLUNTARY ORGANISA
PURCHASING LEARNING DISABILITI,9190,CITYWIDE SPOT                 ,06/01/2015,3762870,2074517,880.00,MENCAP HOMECARE                         ,361858,,CHARITIES & VOLUNTARY ORGANISA
PURCHASING LEARNING DISABILITI,9190,CITYWIDE SPOT                 ,06/01/2015,3762871,2074518,880.00,MENCAP HOMECARE                         ,361858,,CHARITIES & VOLUNTARY ORGANISA
PURCHASING LEARNING DISABILITI,9190,CITYWIDE SPOT                 ,06/01/2015,3762872,2074519,880.00,MENCAP HOMECARE                         ,361858,,CHARITIES & VOLUNTARY ORGANISA
PURCHASING LEARNING DISABILITI,9190,CITYWIDE SPOT                 ,06/01/2015,3762873,2074520,1128.96,MENCAP HOMECARE                         ,361858,,CHARITIES & VOLUNTARY ORGANISA
PURCHASING LEARNING DISABILITI,9190,CITYWIDE SPOT                 ,06/01/2015,3762874,11354,7343.84,NEW ERA HOUSING AUTHORITY               ,505956,,"HOUSING ASSOCIATIONS, SOCIETIE"
PURCHASING LEARNING DISABILITI,9190,FUNDED HOME SUPPORT           ,06/01/2015,3762875,2074521,1698.44,MENCAP HOMECARE                         ,361858,,CHARITIES & VOLUNTARY ORGANISA
PURCHASING LEARNING DISABILITI,9190,CITYWIDE SPOT                 ,06/01/2015,3762876,2074522,880.00,MENCAP HOMECARE                         ,361858,,CHARITIES & VOLUNTARY ORGANISA
PURCHASING LEARNING DISABILITI,9190,FUNDED HOME SUPPORT           ,06/01/2015,3762877,2074523,1935.20,MENCAP HOMECARE                         ,361858,,CHARITIES & VOLUNTARY ORGANISA
PURCHASING LEARNING DISABILITI,9190,CITYWIDE SPOT                 ,06/01/2015,3762878,2074524,880.00,MENCAP HOMECARE                         ,361858,,CHARITIES & VOLUNTARY ORGANISA
PURCHASING LEARNING DISABILITI,9190,CITYWIDE SPOT                 ,06/01/2015,3762879,2074525,880.00,MENCAP HOMECARE                         ,361858,,CHARITIES & VOLUNTARY ORGANISA
PURCHASING LEARNING DISABILITI,9190,CITYWIDE SPOT                 ,06/01/2015,3762880,2074526,880.00,MENCAP HOMECARE                         ,361858,,CHARITIES & VOLUNTARY ORGANISA
PURCHASING LEARNING DISABILITI,9190,CITYWIDE SPOT                 ,06/01/2015,3762881,2074527,880.00,MENCAP HOMECARE                         ,361858,,CHARITIES & VOLUNTARY ORGANISA
PURCHASING LEARNING DISABILITI,9190,CITYWIDE SPOT                 ,06/01/2015,3762882,2074528,1400.60,MENCAP HOMECARE                         ,361858,,CHARITIES & VOLUNTARY ORGANISA
PURCHASING LEARNING DISABILITI,9190,CITYWIDE SPOT                 ,06/01/2015,3762883,2074529,453.56,MENCAP HOMECARE                         ,361858,,CHARITIES & VOLUNTARY ORGANISA
PURCHASING LEARNING DISABILITI,9190,CITYWIDE SPOT                 ,06/01/2015,3762884,2074530,660.00,MENCAP HOMECARE                         ,361858,,CHARITIES & VOLUNTARY ORGANISA
PURCHASING LEARNING DISABILITI,9190,CITYWIDE SPOT                 ,06/01/2015,3762885,11355,4903.00,NEW ERA HOUSING AUTHORITY               ,505956,,"HOUSING ASSOCIATIONS, SOCIETIE"
PURCHASING LEARNING DISABILITI,9190,FUNDED HOME SUPPORT           ,06/01/2015,3762885,11355,1713.88,NEW ERA HOUSING AUTHORITY               ,505956,,"HOUSING ASSOCIATIONS, SOCIETIE"
PURCHASING LEARNING DISABILITI,9190,CITYWIDE SPOT                 ,06/01/2015,3762886,2074531,1654.60,MENCAP HOMECARE                         ,361858,,CHARITIES & VOLUNTARY ORGANISA
PURCHASING LEARNING DISABILITI,9190,CITYWIDE SPOT                 ,06/01/2015,3762887,2074532,880.00,MENCAP HOMECARE                         ,361858,,CHARITIES & VOLUNTARY ORGANISA
PURCHASING LEARNING DISABILITI,9190,CITYWIDE SPOT                 ,06/01/2015,3762888,2074533,880.00,MENCAP HOMECARE                         ,361858,,CHARITIES & VOLUNTARY ORGANISA
PURCHASING LEARNING DISABILITI,9190,CITYWIDE SPOT                 ,06/01/2015,3762889,2074534,979.40,MENCAP HOMECARE                         ,361858,,CHARITIES & VOLUNTARY ORGANISA
PURCHASING LEARNING DISABILITI,9190,CITYWIDE SPOT                 ,06/01/2015,3762890,2074535,1339.32,MENCAP HOMECARE                         ,361858,,CHARITIES & VOLUNTARY ORGANISA
PURCHASING LEARNING DISABILITI,9190,CITYWIDE SPOT                 ,06/01/2015,3762891,2074537,880.00,MENCAP HOMECARE                         ,361858,,CHARITIES & VOLUNTARY ORGANISA
PURCHASING LEARNING DISABILITI,9190,CITYWIDE SPOT                 ,06/01/2015,3762892,2074538,1027.20,MENCAP HOMECARE                         ,361858,,CHARITIES & VOLUNTARY ORGANISA
PURCHASING LEARNING DISABILITI,9190,CITYWIDE SPOT                 ,06/01/2015,3762893,2074539,2207.12,MENCAP HOMECARE                         ,361858,,CHARITIES & VOLUNTARY ORGANISA
PURCHASING LEARNING DISABILITI,9190,FUNDED HOME SUPPORT           ,06/01/2015,3762894,2074540,1239.00,MENCAP HOMECARE                         ,361858,,CHARITIES & VOLUNTARY ORGANISA
PURCHASING LEARNING DISABILITI,9190,CITYWIDE SPOT                 ,06/01/2015,3762895,2074541,880.00,MENCAP HOMECARE                         ,361858,,CHARITIES & VOLUNTARY ORGANISA
PURCHASING LEARNING DISABILITI,9190,CITYWIDE SPOT                 ,06/01/2015,3762896,11356,8580.24,NEW ERA HOUSING AUTHORITY               ,505956,,"HOUSING ASSOCIATIONS, SOCIETIE"
PURCHASING LEARNING DISABILITI,9190,CITYWIDE SPOT                 ,06/01/2015,3762897,2074542,648.20,MENCAP HOMECARE                         ,361858,,CHARITIES & VOLUNTARY ORGANISA
PURCHASING LEARNING DISABILITI,9190,CITYWIDE SPOT                 ,06/01/2015,3762899,2074544,2832.00,MENCAP HOMECARE                         ,361858,,CHARITIES & VOLUNTARY ORGANISA
PURCHASING LEARNING DISABILITI,9190,CITYWIDE SPOT                 ,06/01/2015,3762900,2074545,414.52,MENCAP HOMECARE                         ,361858,,CHARITIES & VOLUNTARY ORGANISA
PURCHASING LEARNING DISABILITI,9190,CITYWIDE SPOT                 ,06/01/2015,3762901,2074546,880.00,MENCAP HOMECARE                         ,361858,,CHARITIES & VOLUNTARY ORGANISA
PURCHASING LEARNING DISABILITI,9190,CITYWIDE SPOT                 ,06/01/2015,3762902,2074547,1606.00,MENCAP HOMECARE                         ,361858,,CHARITIES & VOLUNTARY ORGANISA
PURCHASING LEARNING DISABILITI,9190,CITYWIDE SPOT                 ,06/01/2015,3762903,2074548,906.04,MENCAP HOMECARE                         ,361858,,CHARITIES & VOLUNTARY ORGANISA
PURCHASING LEARNING DISABILITI,9190,CITYWIDE SPOT                 ,06/01/2015,3762904,2074549,783.32,MENCAP HOMECARE                         ,361858,,CHARITIES & VOLUNTARY ORGANISA
PURCHASING LEARNING DISABILITI,9190,CITYWIDE SPOT                 ,06/01/2015,3762906,2074552,677.64,MENCAP HOMECARE                         ,361858,,CHARITIES & VOLUNTARY ORGANISA
PURCHASING LEARNING DISABILITI,9190,CITYWIDE SPOT                 ,06/01/2015,3762907,11358,7343.84,NEW ERA HOUSING AUTHORITY               ,505956,,"HOUSING ASSOCIATIONS, SOCIETIE"
PURCHASING LEARNING DISABILITI,9190,CITYWIDE SPOT                 ,06/01/2015,3762908,2074553,673.56,MENCAP HOMECARE                         ,361858,,CHARITIES & VOLUNTARY ORGANISA
PURCHASING LEARNING DISABILITI,9190,CITYWIDE SPOT                 ,06/01/2015,3762911,26945,3677.49,SPECTRUM SOCIAL CARE LTD                ,328608,,EMPLOYMENT & RECRUITMENT AGENC
PURCHASING LEARNING DISABILITI,9190,CITYWIDE SPOT                 ,06/01/2015,3762912,3630000568,1504.00,CRAEGMOOR SYI LINCOLN                   ,567316,,RESIDENTIAL CARE HOMES        
PURCHASING LEARNING DISABILITI,9190,FUNDED HOME SUPPORT           ,06/01/2015,3762913,11359,2362.32,NEW ERA HOUSING AUTHORITY               ,505956,,"HOUSING ASSOCIATIONS, SOCIETIE"
NORTH SA - CIN S17            ,9280,CONTACT                       ,06/01/2015,3762794,1316,253.13,SHEFFIELD CHILDREN'S CENTRE             ,311908,,NURSERIES & CRECHES           
CONTACT CONTRACTS             ,9280,CONTACT                       ,06/01/2015,3762804,7826,312.40,PROGRESSIVE CARE LTD                    ,343548,,CHILDREN'S HOMES              
ADULT SOCIAL CARE PURCHASING  ,9200,CONTINUING RESIDENTIAL CARE   ,06/01/2015,3762713,J1032723 040115          ,1599.68,PARK LODGE CARE HOME                    ,361949,,RESIDENTIAL CARE HOMES        
ADULT SOCIAL CARE PURCHASING  ,4260,RESIDENTIAL COSTS RECOVERED   ,06/01/2015,3762714,J1032744 040115          ,332.16,THE GREEN                               ,361956,,NURSING HOMES                 
ADULT SOCIAL CARE PURCHASING  ,4260,RESIDENTIAL COSTS RECOVERED   ,06/01/2015,3762715,J1034642 040115          ,1158.75,JASMIN COURT NURSING HOME               ,361764,,NURSING HOMES                 
ADULT SOCIAL CARE PURCHASING  ,4260,NURSING COSTS RECOVERED       ,06/01/2015,3762715,J1034642 040115          ,2820.11,JASMIN COURT NURSING HOME               ,361764,,NURSING HOMES                 
PURCHASING                    ,4260,RESIDENTIAL COSTS RECOVERED   ,06/01/2015,3762716,J1044799 040115          ,596.03,THE KNOWLE                              ,362158,,RESIDENTIAL CARE HOMES        
ADULT SOCIAL CARE PURCHASING  ,4260,RESIDENTIAL COSTS RECOVERED   ,06/01/2015,3762717,J1044802 040115          ,602.53,LEAHYRST RESIDENTIAL CARE HOME          ,361842,,RESIDENTIAL CARE HOMES        
ADULT SOCIAL CARE PURCHASING  ,4260,RESIDENTIAL COSTS RECOVERED   ,06/01/2015,3762718,J1044803 040115          ,892.92,DARNALL VIEW RESIDENTIAL HOME           ,362170,,RESIDENTIAL CARE HOMES        
ADULT SOCIAL CARE PURCHASING  ,4260,RESIDENTIAL COSTS RECOVERED   ,06/01/2015,3762719,J1044804 040115          ,321.18,HARTWELL HOUSE                          ,361785,,NURSING HOMES                 
ADULT SOCIAL CARE PURCHASING  ,4260,RESIDENTIAL COSTS RECOVERED   ,06/01/2015,3762721,J1044807 040115          ,1281.75,ROSEBERRY CARE CENTRES GB LTD           ,362099,,RESIDENTIAL CARE HOMES        
ADULT SOCIAL CARE PURCHASING  ,9200,CONTINUING RESIDENTIAL CARE   ,06/01/2015,3762722,J1044954 010215          ,1596.00,GRANGEWOOD LODGE RESIDENTIAL HOME       ,589034,,RESIDENTIAL CARE HOMES        
PURCHASING LEARNING DISABILITI,9200,CONTINUING RESIDENTIAL CARE   ,06/01/2015,3762723,J1044959 010215          ,3735.96,MOORCROFT HOUSE                         ,361927,,RESIDENTIAL CARE HOMES        
ADULT SOCIAL CARE PURCHASING  ,9200,CONTINUING RESIDENTIAL CARE   ,06/01/2015,3762724,J1044966 010215          ,4372.00,JASMIN COURT NURSING HOME               ,361764,,NURSING HOMES                 
PURCHASING LEARNING DISABILITI,9210,CONTINUING NURSING CARE       ,06/01/2015,3762724,J1044966 010215          ,1472.24,JASMIN COURT NURSING HOME               ,361764,,NURSING HOMES                 
ADULT SOCIAL CARE PURCHASING  ,9210,CONTINUING NURSING CARE       ,06/01/2015,3762724,J1044966 010215          ,14076.00,JASMIN COURT NURSING HOME               ,361764,,NURSING HOMES                 
PURCHASING LEARNING DISABILITI,9200,CONTINUING RESIDENTIAL CARE   ,06/01/2015,3762725,J1044972 010215          ,1385.88,EAST BANK ROAD (258A)                   ,362007,,RESIDENTIAL CARE HOMES        
ADULT SOCIAL CARE PURCHASING  ,9200,CONTINUING RESIDENTIAL CARE   ,06/01/2015,3762725,J1044972 010215          ,1521.68,EAST BANK ROAD (258A)                   ,362007,,RESIDENTIAL CARE HOMES        
PURCHASING LEARNING DISABILITI,9200,CONTINUING RESIDENTIAL CARE   ,06/01/2015,3762726,J1044973 010215          ,11649.88,EAST BANK ROAD (458A)                   ,361789,,RESIDENTIAL CARE HOMES        
ADULT SOCIAL CARE PURCHASING  ,9200,CONTINUING RESIDENTIAL CARE   ,06/01/2015,3762726,J1044973 010215          ,2734.08,EAST BANK ROAD (458A)                   ,361789,,RESIDENTIAL CARE HOMES        
PURCHASING LEARNING DISABILITI,9200,CONTINUING RESIDENTIAL CARE   ,06/01/2015,3762727,J1044988 010215          ,2824.00,THE KNOWLE                              ,362158,,RESIDENTIAL CARE HOMES        
PURCHASING                    ,9200,CONTINUING RESIDENTIAL CARE   ,06/01/2015,3762727,J1044988 010215          ,15775.20,THE KNOWLE                              ,362158,,RESIDENTIAL CARE HOMES        
ADULT SOCIAL CARE PURCHASING  ,9200,CONTINUING RESIDENTIAL CARE   ,06/01/2015,3762728,J1044989 010215          ,1599.68,PARK LODGE CARE HOME                    ,361949,,RESIDENTIAL CARE HOMES        
ADULT SOCIAL CARE PURCHASING  ,9210,CONTINUING NURSING CARE       ,06/01/2015,3762729,J1044991 010215          ,14545.20,FULWOOD LODGE NURSING HOME              ,361775,,NURSING HOMES                 
PURCHASING LEARNING DISABILITI,9210,CONTINUING NURSING CARE       ,06/01/2015,3762730,J1045004 010215          ,15131.96,ELMWOOD HOUSE NURSING HOME              ,362098,,NURSING HOMES                 
ADULT SOCIAL CARE PURCHASING  ,9200,CONTINUING RESIDENTIAL CARE   ,06/01/2015,3762731,J1045008 010215          ,5048.00,THE LODGE CARE CENTRE                   ,362092,,NURSING HOMES                 
ADULT SOCIAL CARE PURCHASING  ,9200,CONTINUING RESIDENTIAL CARE   ,06/01/2015,3762732,J1045009 010215          ,1412.00,THE GREEN                               ,361956,,NURSING HOMES                 
PURCHASING LEARNING DISABILITI,9200,CONTINUING RESIDENTIAL CARE   ,06/01/2015,3762733,J1045013 010215          ,12928.24, GUINNESS NORTHERN COUNTIES             ,362173,,RESIDENTIAL CARE HOMES        
PDSI PURCHASING               ,9200,CONTINUING RESIDENTIAL CARE   ,06/01/2015,3762733,J1045013 010215          ,1240.68, GUINNESS NORTHERN COUNTIES             ,362173,,RESIDENTIAL CARE HOMES        
ADULT SOCIAL CARE PURCHASING  ,9200,CONTINUING RESIDENTIAL CARE   ,06/01/2015,3762734,J1045019 010215          ,34528.00,LEAHYRST RESIDENTIAL CARE HOME          ,361842,,RESIDENTIAL CARE HOMES        
PURCHASING LEARNING DISABILITI,9200,CONTINUING RESIDENTIAL CARE   ,06/01/2015,3762735,J1045026 010215          ,2157.12,LINKAGE COMMUNITY TRUST                 ,362116,,CHARITIES & VOLUNTARY ORGANISA
PURCHASING LEARNING DISABILITI,9200,CONTINUING RESIDENTIAL CARE   ,06/01/2015,3762736,J1045027 010215          ,1580.00,EAGLE HOUSE CARE HOME                   ,361977,,RESIDENTIAL CARE HOMES        
ADULT SOCIAL CARE PURCHASING  ,9200,CONTINUING RESIDENTIAL CARE   ,06/01/2015,3762736,J1045027 010215          ,17531.92,EAGLE HOUSE CARE HOME                   ,361977,,RESIDENTIAL CARE HOMES        
PURCHASING                    ,9200,CONTINUING RESIDENTIAL CARE   ,06/01/2015,3762736,J1045027 010215          ,6143.16,EAGLE HOUSE CARE HOME                   ,361977,,RESIDENTIAL CARE HOMES        
ADULT SOCIAL CARE PURCHASING  ,9210,CONTINUING NURSING CARE       ,06/01/2015,3762736,J1045027 010215          ,13139.56,EAGLE HOUSE CARE HOME                   ,361977,,RESIDENTIAL CARE HOMES        
PURCHASING                    ,9210,CONTINUING NURSING CARE       ,06/01/2015,3762736,J1045027 010215          ,7268.32,EAGLE HOUSE CARE HOME                   ,361977,,RESIDENTIAL CARE HOMES        
ADULT SOCIAL CARE PURCHASING  ,9200,CONTINUING RESIDENTIAL CARE   ,06/01/2015,3762737,J1045034 010215          ,1752.00,KINGFIELD HOLT                          ,361766,,RESIDENTIAL CARE HOMES        
ADULT SOCIAL CARE PURCHASING  ,9200,CONTINUING RESIDENTIAL CARE   ,06/01/2015,3762738,J1045035 010215          ,2368.00,DARWIN HOUSE RESIDENTIAL CARE           ,361759,,RESIDENTIAL CARE HOMES        
ADULT SOCIAL CARE PURCHASING  ,9200,CONTINUING RESIDENTIAL CARE   ,06/01/2015,3762739,J1045036 010215          ,15180.00,HALLAMSHIRE REST HOME                   ,362093,,REST & RETIREMENT HOMES       
ADULT SOCIAL CARE PURCHASING  ,9200,CONTINUING RESIDENTIAL CARE   ,06/01/2015,3762740,J1045037 010215          ,20948.00,DARNALL VIEW RESIDENTIAL HOME           ,362170,,RESIDENTIAL CARE HOMES        
PURCHASING                    ,9200,CONTINUING RESIDENTIAL CARE   ,06/01/2015,3762741,J1045041 010215          ,1596.00,LOWER BOWSHAW VIEW NH                   ,362101,,NURSING HOMES                 
ADULT SOCIAL CARE PURCHASING  ,9200,CONTINUING RESIDENTIAL CARE   ,06/01/2015,3762741,J1045041 010215          ,7852.00,LOWER BOWSHAW VIEW NH                   ,362101,,NURSING HOMES                 
ADULT SOCIAL CARE PURCHASING  ,9210,CONTINUING NURSING CARE       ,06/01/2015,3762741,J1045041 010215          ,9576.00,LOWER BOWSHAW VIEW NH                   ,362101,,NURSING HOMES                 
ADULT SOCIAL CARE PURCHASING  ,9200,CONTINUING RESIDENTIAL CARE   ,06/01/2015,3762742,J1045043 010215          ,19076.00,HARTWELL HOUSE                          ,361785,,NURSING HOMES                 
PURCHASING                    ,9200,CONTINUING RESIDENTIAL CARE   ,06/01/2015,3762743,J1045060 010215          ,10102.64,FITZWILLIAM LODGE NH (PD)               ,361908,,NURSING HOMES                 
ADULT SOCIAL CARE PURCHASING  ,9200,CONTINUING RESIDENTIAL CARE   ,06/01/2015,3762744,J1045064 010215          ,1848.00,DOVE COURT RESIDENTIAL HOME             ,362096,,RESIDENTIAL CARE HOMES        
PURCHASING                    ,9200,CONTINUING RESIDENTIAL CARE   ,06/01/2015,3762745,J1045087 010215          ,23785.96,TOGETHER                                ,361880,,CHARITIES & VOLUNTARY ORGANISA
ADULT SOCIAL CARE PURCHASING  ,9200,CONTINUING RESIDENTIAL CARE   ,06/01/2015,3762746,J1045090 010215          ,1580.00,HOLMEWOOD MANOR                         ,362148,,RESIDENTIAL CARE HOMES        
PDSI PURCHASING               ,9200,CONTINUING RESIDENTIAL CARE   ,06/01/2015,3762747,J1045091 010215          ,2586.68,HENLEIGH HALL                           ,362109,,NURSING HOMES                 
PDSI PURCHASING               ,9210,CONTINUING NURSING CARE       ,06/01/2015,3762747,J1045091 010215          ,4093.48,HENLEIGH HALL                           ,362109,,NURSING HOMES                 
ADULT SOCIAL CARE PURCHASING  ,9210,CONTINUING NURSING CARE       ,06/01/2015,3762747,J1045091 010215          ,15640.00,HENLEIGH HALL                           ,362109,,NURSING HOMES                 
PURCHASING LEARNING DISABILITI,9200,CONTINUING RESIDENTIAL CARE   ,06/01/2015,3762748,J1045094 010215          ,2540.00,ROSEBERRY CARE CENTRES GB LTD           ,362099,,RESIDENTIAL CARE HOMES        
ADULT SOCIAL CARE PURCHASING  ,9200,CONTINUING RESIDENTIAL CARE   ,06/01/2015,3762748,J1045094 010215          ,49556.00,ROSEBERRY CARE CENTRES GB LTD           ,362099,,RESIDENTIAL CARE HOMES        
PURCHASING                    ,9200,CONTINUING RESIDENTIAL CARE   ,06/01/2015,3762748,J1045094 010215          ,3143.32,ROSEBERRY CARE CENTRES GB LTD           ,362099,,RESIDENTIAL CARE HOMES        
PURCHASING                    ,9210,CONTINUING NURSING CARE       ,06/01/2015,3762748,J1045094 010215          ,6494.24,ROSEBERRY CARE CENTRES GB LTD           ,362099,,RESIDENTIAL CARE HOMES        
PDSI PURCHASING               ,9210,CONTINUING NURSING CARE       ,06/01/2015,3762748,J1045094 010215          ,16469.96,ROSEBERRY CARE CENTRES GB LTD           ,362099,,RESIDENTIAL CARE HOMES        
ADULT SOCIAL CARE PURCHASING  ,9210,CONTINUING NURSING CARE       ,06/01/2015,3762748,J1045094 010215          ,58322.48,ROSEBERRY CARE CENTRES GB LTD           ,362099,,RESIDENTIAL CARE HOMES        
ADULT SOCIAL CARE PURCHASING  ,9200,CONTINUING RESIDENTIAL CARE   ,06/01/2015,3762749,J1045095 010215          ,17271.00,ROSEBERRY CARE CENTRES GB LTD           ,361904,,NURSING HOMES                 
ADULT SOCIAL CARE PURCHASING  ,9210,CONTINUING NURSING CARE       ,06/01/2015,3762749,J1045095 010215          ,11452.00,ROSEBERRY CARE CENTRES GB LTD           ,361904,,NURSING HOMES                 
PURCHASING LEARNING DISABILITI,9200,CONTINUING RESIDENTIAL CARE   ,06/01/2015,3762750,J1045109 010215          ,7979.16,LITTLE ARCHES RESIDENTIAL HOME          ,361869,,RESIDENTIAL CARE HOMES        
ADULT SOCIAL CARE PURCHASING  ,9200,CONTINUING RESIDENTIAL CARE   ,06/01/2015,3762751,J1045132 010215          ,1548.00,HIGHGROVE CARE HOME                     ,397555,,RESIDENTIAL CARE HOMES        
ADULT SOCIAL CARE PURCHASING  ,9200,CONTINUING RESIDENTIAL CARE   ,06/01/2015,3762752,J1045139 010215          ,1592.00,MEADOW SANDS                            ,417909,,RESIDENTIAL CARE HOMES        
PURCHASING                    ,9210,CONTINUING NURSING CARE       ,06/01/2015,3762753,J1045142 010215          ,4472.84,BARCHESTER HEALTHCARE                   ,424741,,RESIDENTIAL CARE HOMES        
ADULT SOCIAL CARE PURCHASING  ,9210,CONTINUING NURSING CARE       ,06/01/2015,3762754,J1045152 010215          ,7384.52,DEARNEVALE                              ,444825,,RESIDENTIAL CARE HOMES        
PURCHASING                    ,9200,CONTINUING RESIDENTIAL CARE   ,06/01/2015,3762755,J1045154 010215          ,34093.36,LISTER AVENUE PROJECT                   ,368348,,"HOUSING ASSOCIATIONS, SOCIETIE"
ADULT SOCIAL CARE PURCHASING  ,9200,CONTINUING RESIDENTIAL CARE   ,06/01/2015,3762755,J1045154 010215          ,1499.16,LISTER AVENUE PROJECT                   ,368348,,"HOUSING ASSOCIATIONS, SOCIETIE"
PURCHASING LEARNING DISABILITI,9200,CONTINUING RESIDENTIAL CARE   ,06/01/2015,3762756,J1045159 010215          ,7409.88,GRETTON HOUSE                           ,461869,,NURSING HOMES                 
PURCHASING LEARNING DISABILITI,9200,CONTINUING RESIDENTIAL CARE   ,06/01/2015,3762757,J1045162 010215          ,3571.24,HOLLY HOUSE                             ,464393,,RESIDENTIAL CARE HOMES        
PURCHASING LEARNING DISABILITI,9210,CONTINUING NURSING CARE       ,06/01/2015,3762758,J1045163 010215          ,15305.80,THE LODGE                               ,475754,,RESIDENTIAL CARE HOMES        
PURCHASING LEARNING DISABILITI,9200,CONTINUING RESIDENTIAL CARE   ,06/01/2015,3762759,J1045164 010215          ,7732.56,THE GLADES HEALTH CARE LTD              ,475753,,NURSING HOMES                 
PURCHASING LEARNING DISABILITI,9200,CONTINUING RESIDENTIAL CARE   ,06/01/2015,3762760,J1045168 010215          ,13745.16,JANE HOUSE  LTD                         ,492184,,RESIDENTIAL CARE HOMES        
ADULT SOCIAL CARE PURCHASING  ,9200,CONTINUING RESIDENTIAL CARE   ,06/01/2015,3762761,J1045179 010215          ,1548.00,EMYVALE HOUSE                           ,517628,,RESIDENTIAL CARE HOMES        
ADULT SOCIAL CARE PURCHASING  ,9200,CONTINUING RESIDENTIAL CARE   ,06/01/2015,3762762,J1045180 010215          ,1616.80,TRUST CARE LTD                          ,519365,,RESIDENTIAL CARE HOMES        
PURCHASING LEARNING DISABILITI,9200,CONTINUING RESIDENTIAL CARE   ,06/01/2015,3762763,J1045183 010215          ,4616.44,THE MEWS                                ,525602,,RESIDENTIAL CARE HOMES        
PURCHASING LEARNING DISABILITI,9200,CONTINUING RESIDENTIAL CARE   ,06/01/2015,3762764,J1045187 010215          ,3571.40,MOORVIEW HOUSE                          ,546067,,RESIDENTIAL CARE HOMES        
ADULT SOCIAL CARE PURCHASING  ,9200,CONTINUING RESIDENTIAL CARE   ,06/01/2015,3762765,J1045193 010215          ,1604.00,MILLFIELD                               ,557481,,NURSING HOMES                 
PURCHASING                    ,9200,CONTINUING RESIDENTIAL CARE   ,06/01/2015,3762766,J1045195 010215          ,1784.32,KINGSBURY HOUSE                         ,559159,,RESIDENTIAL CARE HOMES        
ADULT SOCIAL CARE PURCHASING  ,9200,CONTINUING RESIDENTIAL CARE   ,06/01/2015,3762767,J1045203 010215          ,26188.00,HERRIES LODGE CARE HOME                 ,566537,,RESIDENTIAL CARE HOMES        
ADULT SOCIAL CARE PURCHASING  ,9200,CONTINUING RESIDENTIAL CARE   ,06/01/2015,3762768,J1045204 010215          ,1673.40,BUPA CARE SERVICES                      ,568893,,RESIDENTIAL CARE HOMES        
PURCHASING                    ,9200,CONTINUING RESIDENTIAL CARE   ,06/01/2015,3762769,J1045205 010215          ,5431.80,MOORVILLE RESIDENTIAL                   ,569422,,RESIDENTIAL CARE HOMES        
ADULT SOCIAL CARE PURCHASING  ,9200,SHORT TERM RESIDENTIAL CARE   ,06/01/2015,3762770,J1034608 071214          ,1918.57,LEAHYRST RESIDENTIAL CARE HOME          ,361842,,RESIDENTIAL CARE HOMES        
ADULT SOCIAL CARE PURCHASING  ,9210,SHORT TERM NURSING CARE       ,06/01/2015,3762771,J1034614 071214          ,1519.14,ROSEBERRY CARE CENTRES GB LTD           ,362099,,RESIDENTIAL CARE HOMES        
ADULT SOCIAL CARE PURCHASING  ,9200,SHORT TERM RESIDENTIAL CARE   ,06/01/2015,3762772,J1044868 040115          ,1241.43,LEAHYRST RESIDENTIAL CARE HOME          ,361842,,RESIDENTIAL CARE HOMES        
ADULT SOCIAL CARE PURCHASING  ,9200,SHORT TERM RESIDENTIAL CARE   ,06/01/2015,3762773,J1044870 040115          ,1128.57,HAZELDENE NURSING HOME                  ,340163,,NURSING HOMES                 
ADULT SOCIAL CARE PURCHASING  ,9210,SHORT TERM NURSING CARE       ,06/01/2015,3762774,J1044873 040115          ,1343.86,ROSEBERRY CARE CENTRES GB LTD           ,362099,,RESIDENTIAL CARE HOMES        
SAFEGUARDING ADULTS           ,8440,FEE EXPENSES                  ,07/01/2015,3751463,69516,540.00,LANGUAGELINE SOLUTIONS                  ,206348,,TRANSLATORS & INTERPRETERS    
MCA SUPPORT TEAM              ,8440,FEE EXPENSES                  ,07/01/2015,3763500,ERS INVOICE112305        ,377.90,REDACTED PERSONAL DATA,507783,Unclassified Non Trade,OUT OF SCOPE FOR SIC MONITORIN
EP NORTH EAST LINC            ,1194,OTHER FEES                    ,07/01/2015,3763501,ERS INVOICE112307        ,326.00,EMPOWER                                 ,595284,Unclassified Non Trade,OUT OF SCOPE FOR SIC MONITORIN
ADOPTION SERVICE              ,9120,OTHER AGENCIES                ,07/01/2015,3763502,ERS INVOICE112308        ,454.12,REDACTED PERSONAL DATA,619355,,ADOPTION & FOSTERING          
VSP DELIVER                   ,9120,OTHER AGENCIES                ,07/01/2015,3763504,ERS INVOICE112311        ,1122.00,A MIND APART THEATRE COMPANY LTD        ,508180,,DRAMA SCHOOLS                 
VSP DELIVER                   ,9120,OTHER AGENCIES                ,07/01/2015,3763506,ERS INVOICE112313        ,1512.50,DIMENSIONS TRAINING SOLUTIONS           ,433070,,HAIRDRESSING SCHOOLS          
VSP DELIVER                   ,9120,OTHER AGENCIES                ,07/01/2015,3763507,ERS INVOICE112314        ,904.50,SHEFFIELD INDUSTRIAL MUSEUMS TRUST LTD  ,307272,,MUSEUMS                       
VSP DELIVER                   ,9120,OTHER AGENCIES                ,07/01/2015,3763508,ERS INVOICE112315        ,11154.00,ENDEAVOUR TRAINING                      ,347945,,TRAINING SERVICES             
VSP DELIVER                   ,9120,OTHER AGENCIES                ,07/01/2015,3763509,ERS INVOICE112316        ,4388.50,DONCASTER ROTH & DIST (MOTOR TRADES)GTA ,204434,,TRAINING CENTRES              
VSP DELIVER                   ,9120,OTHER AGENCIES                ,07/01/2015,3763510,ERS INVOICE112317        ,2110.50,HEELEY CITY FARM                        ,301277,,CHARITIES & VOLUNTARY ORGANISA
VSP DELIVER                   ,9120,OTHER AGENCIES                ,07/01/2015,3763511,ERS INVOICE112318        ,4648.50,HEELEY DEVELOPMENT TRUST                ,363241,,CHARITIES & VOLUNTARY ORGANISA
VSP DELIVER                   ,9120,OTHER AGENCIES                ,07/01/2015,3763512,ERS INVOICE112319        ,3517.50,IN2CHANGE SOUTH YORKS LTD               ,558793,,CHARITIES & VOLUNTARY ORGANISA
VSP DELIVER                   ,9120,OTHER AGENCIES                ,07/01/2015,3763514,ERS INVOICE112321        ,2906.25,THE SHEFFIELD COLLEGE                   ,297611,,SCHOOLS & COLLEGES - FURTHER E
VSP DELIVER                   ,9120,OTHER AGENCIES                ,07/01/2015,3763515,ERS INVOICE112322        ,3316.50,WHITE ROSE SCHOOLS LTD                  ,334662,,BEAUTY SCHOOLS                
VSP DELIVER                   ,9120,OTHER AGENCIES                ,07/01/2015,3763516,ERS INVOICE112323        ,1881.00,THE SHARKS                              ,540033,,SPORTS CLUBS & ASSOCIATIONS   
VSP DELIVER                   ,9120,OTHER AGENCIES                ,07/01/2015,3763517,ERS INVOICE112324        ,2310.00,SHEFFIELD WEDNESDAY ACADEMY             ,461589,,SPORTS CLUBS & ASSOCIATIONS   
VSP DELIVER                   ,9120,OTHER AGENCIES                ,07/01/2015,3763518,ERS INVOICE112325        ,2772.00,SOUTH YORKSHIRE & HALLAMSHIRE CYP       ,431967,,YOUTH ORGANISATIONS & CENTRES 
VSP DELIVER                   ,9120,OTHER AGENCIES                ,07/01/2015,3763519,ERS INVOICE112326        ,2083.50,SYTG LTD                                ,306547,,TRAINING CENTRES              
VSP DELIVER                   ,9120,OTHER AGENCIES                ,07/01/2015,3763520,ERS INVOICE112327        ,676.50,THE SOURCE AT MEADOWHALL                ,350485,,TRAINING CENTRES              
VSP DELIVER                   ,9120,OTHER AGENCIES                ,07/01/2015,3763521,ERS INVOICE112328        ,2914.50,WHIRLOW HALL FARM TRUST LTD             ,318019,,CHARITIES & VOLUNTARY ORGANISA
VSP DELIVER                   ,9120,OTHER AGENCIES                ,07/01/2015,3763522,ERS INVOICE112329        ,3531.00,Y A S Y                                 ,306981,,YOUTH ORGANISATIONS & CENTRES 
16 - 19 BURSARY FUNDS         ,8440,FEE EXPENSES                  ,07/01/2015,3763524,ERS INVOICE112331        ,300.00,REDACTED PERSONAL DATA,618846,Unclassified Non Trade,OUT OF SCOPE FOR SIC MONITORIN
OUTDOOR EDUCATION             ,8440,FEE EXPENSES                  ,07/01/2015,3763526,ERS INVOICE112333        ,280.00,MR ALEX EKINS                           ,501499,,OUTDOOR PURSUIT ORGANISERS & E
CORONIAL SERVICES             ,8440,PATHOLOGIST INVOICE           ,07/01/2015,3763531,ERS INVOICE112338        ,595.90,DR C A WILSON                           ,554965,,DOCTORS                       
CORONIAL SERVICES             ,8440,PATHOLOGIST INVOICE           ,07/01/2015,3763533,ERS INVOICE112340        ,595.90,DR C A WILSON                           ,554965,,DOCTORS                       
CORONIAL SERVICES             ,8440,PATHOLOGIST INVOICE           ,07/01/2015,3763534,ERS INVOICE112341        ,595.90,DR C A WILSON                           ,554965,,DOCTORS                       
CORONIAL SERVICES             ,8440,PATHOLOGIST INVOICE           ,07/01/2015,3763535,ERS INVOICE112342        ,276.90,MARTA COHEN LIMITED                     ,559400,,DOCTORS                       
CORONIAL SERVICES             ,8440,PATHOLOGIST INVOICE           ,07/01/2015,3763536,ERS INVOICE112343        ,484.00,DR MINI C VARGHESE                      ,567541,,DOCTORS                       
CORONIAL SERVICES             ,8440,PATHOLOGIST INVOICE           ,07/01/2015,3763538,ERS INVOICE112345        ,1443.70,REDACTED PERSONAL DATA,579914,Unclassified Non Trade,OUT OF SCOPE FOR SIC MONITORIN
LOAN REDEMPTIONS ACCOUNT      ,1103,GOVERNMENT GRANTS             ,07/01/2015,3763543,ERS INVOICE112350        ,7081.36,"BRADFORD COUNCIL CLIM, HOUS, EMP,SKILLS ",492479,,LOCAL GOVERNMENT              
DISABLED GRANTS               ,1165,NC&A OTHER                    ,07/01/2015,3763654,ERS INVOICE112351        ,4065.50,BANCROFT PLUMBING & HEATING LTD         ,398394,,PLUMBERS                      
DISABLED GRANTS               ,1165,NC&A OTHER                    ,07/01/2015,3763655,ERS INVOICE112352        ,2113.00,STANNAH LIFT SERVICES LTD.              ,208625,,STAIRLIFTS - MNFRS & INSTALLER
DISABLED GRANTS               ,1165,NC&A OTHER                    ,07/01/2015,3763656,ERS INVOICE112353        ,2438.00,STANNAH LIFT SERVICES LTD.              ,208625,,STAIRLIFTS - MNFRS & INSTALLER
DISABLED GRANTS               ,1165,NC&A OTHER                    ,07/01/2015,3763657,ERS INVOICE112354        ,3534.00,BANCROFT PLUMBING & HEATING LTD         ,398394,,PLUMBERS                      
DISABLED GRANTS               ,1165,NC&A OTHER                    ,07/01/2015,3763658,ERS INVOICE112355        ,2141.00,CLARK & PARTNERS LTD                    ,203928,,DISABILITY EQUIPMENT - MNFRS &
DISABLED GRANTS               ,1165,NC&A OTHER                    ,07/01/2015,3763659,ERS INVOICE112356        ,5891.00,WESTWOOD JOINERY & CONSTRUCTION LTD     ,558811,,CONSTRUCTION CONTRACTORS - GEN
DISABLED GRANTS               ,1165,NC&A OTHER                    ,07/01/2015,3763660,ERS INVOICE112357        ,3756.00,WOODSEATS PLUMBING CO LTD               ,209595,,PLUMBERS                      
DISABLED GRANTS               ,1165,NC&A OTHER                    ,07/01/2015,3763661,ERS INVOICE112358        ,4260.00,REDACTED PERSONAL DATA,505403,Unclassified Non Trade,OUT OF SCOPE FOR SIC MONITORIN
DISABLED GRANTS               ,1165,NC&A OTHER                    ,07/01/2015,3763662,ERS INVOICE112359        ,2375.00,CLARK & PARTNERS LTD                    ,203928,,DISABILITY EQUIPMENT - MNFRS &
23) SWYP ST SMOKING PROJECT   ,9030,HEALTH                        ,07/01/2015,3692617,717443,83333.00,SOUTH WEST YORKSHIRE PARTNERSHIP NHS FOU,581752,,PUBLIC HEALTH SUPPLIERS       
PUBLIC REALM OH AND SUPPORT   ,8550,OTHER SERVICES                ,07/01/2015,3697454,10878893,635.84,HSS HIRE SERVICE GROUP LTD              ,595334,,TRAINING SERVICES             
STADIA TECHNOLOGY PARK        ,6370,GROUNDS MTCE AND ARBORICULTURE,07/01/2015,3714460,5/1033/25LM/40813        ,428.57,WILDSCAPES LTD                          ,472494,,LANDSCAPE ARCHITECTS & DESIGNE
CENTRALISED SERVICES MAN      ,8010,EQUIPMENT PURCHASE AND REPAIR ,07/01/2015,3724650,14005,816.00,DIAMOND BUSINESS INTERIORS LTD          ,580977,,OFFICE FURNITURE & EQUIPMENT  
STADIA TECHNOLOGY PARK        ,6370,GROUNDS MTCE AND ARBORICULTURE,07/01/2015,3731819,5/1046/25LM/40813        ,428.57,WILDSCAPES LTD                          ,472494,,LANDSCAPE ARCHITECTS & DESIGNE
IS DEVELOPMENT - DE DEL       ,8620,COMPUTER & HARDWARE PURCHASES ,07/01/2015,3731934,10283,72641.36, ICT4 COLLABORATION                     ,386078,,EDUCATIONAL SERVICES          
STADIA TECHNOLOGY PARK        ,6370,GROUNDS MTCE AND ARBORICULTURE,07/01/2015,3742643,5/1059/25LM/40813        ,428.57,WILDSCAPES LTD                          ,472494,,LANDSCAPE ARCHITECTS & DESIGNE
BNDFC - SORBY HOUSE           ,6080,CONTRACT CLEANING             ,07/01/2015,3748242,2743,588.30,ATKIN & SON                             ,203113,,WINDOW CLEANERS               
MOORFOOT BUILDING             ,8030,EQUIPMENT MAINTENANCE CONTRACT,07/01/2015,3748360,101611,698.00,PLANT PLAN LTD                          ,385936,,FLORAL & PLANT DISPLAYS       
TOWN HALL                     ,8010,EQUIPMENT PURCHASE AND REPAIR ,07/01/2015,3748375,101612,1485.00,PLANT PLAN LTD                          ,385936,,FLORAL & PLANT DISPLAYS       
MOORFOOT BUILDING             ,6020,REPAIRS AND MTCE - PROGRAMMED ,07/01/2015,3748912,8521013578,323.68,VEOLIA ES (UK) LIMITED                  ,341639,,WASTE DISPOSAL SERVICES       
MOORFOOT BUILDING             ,6020,REPAIRS AND MTCE - PROGRAMMED ,07/01/2015,3748913,8521013588,994.08,VEOLIA ES (UK) LIMITED                  ,341639,,WASTE DISPOSAL SERVICES       
TOWN HALL                     ,6020,REPAIRS AND MTCE - PROGRAMMED ,07/01/2015,3748971,8521013587,797.97,VEOLIA ES (UK) LIMITED                  ,341639,,WASTE DISPOSAL SERVICES       
HEALTH TRAINERS               ,9030,HEALTH                        ,07/01/2015,3749048,2687,3382.00,NUCA TRADING AS ZEST                    ,581300,,PUBLIC HEALTH SUPPLIERS       
CRYSTAL PEAKS                 ,6190,WATER SERVICES                ,07/01/2015,3751255,00000004/6956/6955       ,1060.82,BRITEL FUND TRUSTEES LTD                ,566694,,LETTING AGENTS                
GOVERNOR SUPPORT TEAM         ,8020,EQUIPMENT LEASE/ RENTAL/ HIRE ,07/01/2015,3753633,753314,1559.40,PICKFORDS                               ,573763,,REMOVALS - OVERSEAS           
MCA SUPPORT TEAM              ,8440,FEE EXPENSES                  ,07/01/2015,3754672,430,11233.42,SHEFFIELD CITIZENS ADVICE AND LAW CENTRE,588762,,COUNSELLING & ADVICE SERVICES 
CC AMBASSADORS STREET CRIME   ,8110,"CLOTHING, UNIFORM AND LAUNDRY ",07/01/2015,3754792,923550134,836.74,ARCO LTD                                ,203022,,SAFETY EQUIPMENT & CLOTHING   
OFF THE SHELF                 ,7140,PUBLIC TRANSPORT COSTS        ,07/01/2015,3755374,558705,286.60,MERCURY TAXIS                           ,362003,,TAXIS & PRIVATE HIRE          
SCHOOLS ACCESS INITIATIVE     ,1183,PURCHASE OF EQUIPMENT         ,07/01/2015,3755718,124355,1877.00,G & S SMIRTHWAITE LTD                   ,204985,,DISABILITY EQUIPMENT - MNFRS &
PARKS COMMUNITY PARTNERSHIP   ,8180,GRANTS                        ,07/01/2015,3755741,5238,25000.00,THE GREEN ESTATE LTD                    ,511861,,CONSERVATION ORGANISATIONS    
24) EEQL                      ,9030,HEALTH                        ,07/01/2015,3755747,16,4367.00,EAST END QUALITY OF LIFE INITIATIVE     ,582951,,PUBLIC HEALTH SUPPLIERS       
COMMUNICATIONS                ,8550,OTHER SERVICES                ,07/01/2015,3756104,71211,2338.51,INTOPRINT (UK) LIMITED                  ,319560,,PRINTERS                      
MCA SUPPORT TEAM              ,8440,FEE EXPENSES                  ,07/01/2015,3756179,457,7881.32,SHEFFIELD CITIZENS ADVICE AND LAW CENTRE,588762,,COUNSELLING & ADVICE SERVICES 
MCA SUPPORT TEAM              ,8440,FEE EXPENSES                  ,07/01/2015,3756180,456,6575.80,SHEFFIELD CITIZENS ADVICE AND LAW CENTRE,588762,,COUNSELLING & ADVICE SERVICES 
ARCHAEOLOGY                   ,6280,HIRE OF PREMISES              ,07/01/2015,3756222,90329,2432.81,SHOWROOM                                ,449463,,CONFERENCE ROOMS & CENTRES    
MCA SUPPORT TEAM              ,8440,FEE EXPENSES                  ,07/01/2015,3757630,169952453,3711.75,SHEFFIELD CITIZENS ADVICE AND LAW CENTRE,588762,,COUNSELLING & ADVICE SERVICES 
STRATEGIC DEVELOPMENT MANAGER ,8440,FEE EXPENSES                  ,07/01/2015,3757941,5500925140,19900.00,KPMG LLP FEES ACCOUNT                   ,327162,,ACCOUNTANTS                   
MCA SUPPORT TEAM              ,8440,FEE EXPENSES                  ,07/01/2015,3757942,170,6740.00,SHEFFIELD CITIZENS ADVICE AND LAW CENTRE,588762,,COUNSELLING & ADVICE SERVICES 
SUPPORTED & TEMP ACCOM TEAM   ,6210,BED & BREAKFAST PAYMENTS      ,07/01/2015,3758125,2330,866.98,EARL MARSHALL GUEST HOUSE LTD           ,391589,,GUEST HOUSES                  
SUPPORTED & TEMP ACCOM TEAM   ,6210,BED & BREAKFAST PAYMENTS      ,07/01/2015,3758126,391,295.50,BURNGREAVE B & B                        ,466986,,GUEST HOUSES                  
NEW PMY - SKINNERTHORPE       ,1183,PURCHASE OF EQUIPMENT         ,07/01/2015,3758657,SINV8915                 ,960.04,OASIS COMMUNITY LEARNING                ,587977,Unclassified Non Trade,OUT OF SCOPE FOR SIC MONITORIN
ADULT PROTECTION TRAINING     ,8440,FEE EXPENSES                  ,07/01/2015,3758658,22740,250.00,OPEN COLLEGE NETWORK YORKSHIRE & HUMBER ,591789,,SCHOOLS & COLLEGES - FURTHER E
VISION SUPPORT SERVICE        ,8040,LEARNING RESOURCES            ,07/01/2015,3761115,OP/I611593               ,461.50,RNIB SERVICES LTD                       ,340080,,CHARITIES & VOLUNTARY ORGANISA
NEW PMY - WATERMEAD           ,1183,PURCHASE OF EQUIPMENT         ,07/01/2015,3758673,SINV9006                 ,534.39,OASIS COMMUNITY LEARNING                ,587977,Unclassified Non Trade,OUT OF SCOPE FOR SIC MONITORIN
DISABLED ACCESS ADAPTATIONS   ,8010,EQUIPMENT PURCHASE AND REPAIR ,07/01/2015,3758769,7402172186,966.68,DELL CORPORATION LTD                    ,339740,,COMPUTER MNFRS                
BUSINESS INTELLIGENCE         ,8440,FEE EXPENSES                  ,07/01/2015,3758807,116041,461.50,CARTER BROWN                            ,417243,,PSYCHOLOGISTS                 
VISION SUPPORT SERVICE        ,8040,LEARNING RESOURCES            ,07/01/2015,3758849,257533260,334.90,YORKSHIRE PURCHASING ORGANISATION       ,295997,,PURCHASING SERVICES           
STRUCTURES                    ,5610,AGENCY STAFF                  ,07/01/2015,3758958,548969,8004.22,TURNER & TOWNSEND                       ,421729,,BUILDING CONSULTANTS          
MADE                          ,8250,MARKETING EXPENSES            ,07/01/2015,3758984,1412-04                  ,500.00,SERO CONSULTING LTD                     ,434360,,BUSINESS & MANAGEMENT CONSULTA
SAFER COMMUNITIES PARTNERSHIP ,9120,OTHER AGENCIES                ,07/01/2015,3760758,3008609,3388.97,VICTIM SUPPORT                          ,505353,,CHARITIES & VOLUNTARY ORGANISA
SWAN COMMISSIONED             ,1147,DEMOLITION                    ,07/01/2015,3760771,25160,475.00,DEMEX LTD                               ,204333,,DEMOLITION & DISMANTLING CONTR
ARBOURTHORNE 5M'S REFURB      ,1147,DEMOLITION                    ,07/01/2015,3760771,25160,665.00,DEMEX LTD                               ,204333,,DEMOLITION & DISMANTLING CONTR
SHEFFIELD HOMES TREES         ,6370,GROUNDS MTCE AND ARBORICULTURE,07/01/2015,3761029,1601,3474.00,DRONFIELD TREE SERVICES LTD             ,405525,,TREE WORK & FORESTRY SERVICES 
SHEFFIELD HOMES TREES         ,6370,GROUNDS MTCE AND ARBORICULTURE,07/01/2015,3761030,1602,1640.00,DRONFIELD TREE SERVICES LTD             ,405525,,TREE WORK & FORESTRY SERVICES 
COMMUNITY FORESTRY            ,8060,MATERIALS AND SUPPLIES GENERAL,07/01/2015,3761032,3437,431.00,A HILL & SONS LIMITED                   ,493604,,"NURSERYMEN - TREES, SHRUBS & B"
COUNTRYSIDE EXT FUNDED PROJ.  ,8060,MATERIALS AND SUPPLIES GENERAL,07/01/2015,3761033,20762,2525.00,SHELLEY SIGNS LTD                       ,308690,,SIGNS & NAMEPLATES            
MOORFOOT LEARNING CENTRE      ,8440,FEE EXPENSES                  ,07/01/2015,3761076,14060066,583.33,KIER SHEFFIELD LLP                      ,352687,,PROPERTY MAINTENANCE & REPAIRS
MOORFOOT LEARNING CENTRE      ,8440,FEE EXPENSES                  ,07/01/2015,3761078,14060065,583.33,KIER SHEFFIELD LLP                      ,352687,,PROPERTY MAINTENANCE & REPAIRS
MOORFOOT LEARNING CENTRE      ,8440,FEE EXPENSES                  ,07/01/2015,3761079,14060064,700.00,KIER SHEFFIELD LLP                      ,352687,,PROPERTY MAINTENANCE & REPAIRS
SHEFFIELD HOMES HR            ,5750,TRAINING EXPENDITURE          ,07/01/2015,3761081,14060063,583.33,KIER SHEFFIELD LLP                      ,352687,,PROPERTY MAINTENANCE & REPAIRS
PUBLIC HEALTH - DPH           ,8350,MISCELLANEOUS EXPENSES        ,07/01/2015,3761096,SIN069799                ,1835.00,OXFORD DIAGNOSTIC LABORATORIES LTD      ,598250,,LABORATORIES                  
PURCHASING LEARNING DISABILITI,9250,INDEPENDENT DAY CARE          ,07/01/2015,3763241,6687,320.00,ENABLE (SHEFFIELD)                      ,329346,,CHARITIES & VOLUNTARY ORGANISA
PUBLIC HEALTH - DPH           ,8350,MISCELLANEOUS EXPENSES        ,07/01/2015,3761244,4000409017,1000.00,SHEFFIELD TEACHING HOSPITALS NHS FND TST,583240,,PUBLIC HEALTH SUPPLIERS       
STADIA TECHNOLOGY PARK        ,6370,GROUNDS MTCE AND ARBORICULTURE,07/01/2015,3761251,5/1068/25LM/40813        ,428.57,WILDSCAPES LTD                          ,472494,,LANDSCAPE ARCHITECTS & DESIGNE
ECOLOGY                       ,8440,FEE EXPENSES                  ,07/01/2015,3761272,6000025830,2345.00,LAND REGISTRY COMMERCIAL SERVICES       ,516570,,LOCAL GOVERNMENT              
MINOR WORKS & ADAPTATIONS     ,6020,REPAIRS AND MTCE - PROGRAMMED ,07/01/2015,3761295,7116,300.00,T & T CONSTRUCTION                      ,208772,,CONSTRUCTION CONTRACTORS - GEN
THE MOOR INDOOR MARKET        ,8020,EQUIPMENT LEASE/ RENTAL/ HIRE ,07/01/2015,3761309,INV-0104                 ,268.76,FOX AUDIO HIRE LTD                      ,306816,,SOUND EQUIPMENT HIRE & INSTALL
TREE TEAM                     ,6370,GROUNDS MTCE AND ARBORICULTURE,07/01/2015,3761330,1753,3280.00,SHEFFIELD TREE CARE                     ,462546,,TREE WORK & FORESTRY SERVICES 
TREES & WOODLAND EDUCATION    ,6370,GROUNDS MTCE AND ARBORICULTURE,07/01/2015,3761361,10/5645/25LM/40813       ,2096.16,SHEFFIELD WILDLIFE TRUST                ,347103,,CHARITIES & VOLUNTARY ORGANISA
23) SWYP ST SMOKING PROJECT   ,9030,HEALTH                        ,07/01/2015,3761369,91308944499,5000.00,WAKEFIELD MDC                           ,301741,,LOCAL GOVERNMENT              
MINOR WORKS & ADAPTATIONS     ,6020,REPAIRS AND MTCE - PROGRAMMED ,07/01/2015,3761387,7123,375.00,T & T CONSTRUCTION                      ,208772,,CONSTRUCTION CONTRACTORS - GEN
THE MOOR INDOOR MARKET        ,6090,WASTE DISPOSAL                ,07/01/2015,3761409,MO265                    ,600.00,R L DEAR (WASTE MERCHANTS) LTD          ,360135,,WASTE MERCHANTS               
TREE TEAM                     ,6370,GROUNDS MTCE AND ARBORICULTURE,07/01/2015,3761766,907,864.00,BENEFICIAL TREE CARE LTD                ,590620,,TREE WORK & FORESTRY SERVICES 
TREE TEAM                     ,6370,GROUNDS MTCE AND ARBORICULTURE,07/01/2015,3761768,908,360.00,BENEFICIAL TREE CARE LTD                ,590620,,TREE WORK & FORESTRY SERVICES 
TREE TEAM                     ,6370,GROUNDS MTCE AND ARBORICULTURE,07/01/2015,3761781,2922,540.00,ANDERSON TREE CARE LTD                  ,316084,,TREE WORK & FORESTRY SERVICES 
COMMUNICATIONS                ,8550,OTHER SERVICES                ,07/01/2015,3761851,145997,470.00,J W NORTHEND LIMITED                    ,328423,,PRINTERS                      
SHEFFIELD HOMES TREES         ,6370,GROUNDS MTCE AND ARBORICULTURE,07/01/2015,3761852,906,1328.00,BENEFICIAL TREE CARE LTD                ,590620,,TREE WORK & FORESTRY SERVICES 
SHORT BREAKS FUNDING FOR DISAB,9120,OTHER AGENCIES                ,07/01/2015,3761854,41943,356.48,REDACTED PERSONAL DATA,544228,,HOME CARE SERVICES            
SHORT BREAKS FUNDING FOR DISAB,9120,OTHER AGENCIES                ,07/01/2015,3761870,21114,1200.96,BURTON STREET PROJECT                   ,342774,,CHARITIES & VOLUNTARY ORGANISA
ECCLESALL WOODS SAWMILL SITE  ,8260,WOODLAND DEVELOPMENT EXPENSES ,07/01/2015,3761874,10/5639/57EC/40310       ,6120.00,SHEFFIELD WILDLIFE TRUST                ,270716,,CHARITIES & VOLUNTARY ORGANISA
LEACHATE                      ,8060,MATERIALS AND SUPPLIES GENERAL,07/01/2015,3762056,SIN010259                ,5340.69,ALPHEUS ENVIRONMENTAL LIMITED           ,490217,,DRAIN & SEWER CLEARANCE       
SECURE PLACEMENTS             ,9270,SECURE PLACEMENTS - REMAND    ,07/01/2015,3762057,SII009375                ,9061.00,YOUTH JUSTICE BOARD FOR                 ,346047,,CENTRAL GOVERNMENT            
CORONIAL SERVICES             ,8440,PATHOLOGIST INVOICE           ,07/01/2015,3762061,2100162039,3630.00,SHEFFIELD CHILDRENS HOSPITAL            ,489904,,HOSPITALS                     
MI-21/WORLD METAL INDEX       ,8440,FEE EXPENSES                  ,07/01/2015,3762080,8584,2000.00,GRANTA DESIGN LTD                       ,564803,,COMPUTER SYSTEMS & SOFTWARE (D
MI-21/WORLD METAL INDEX       ,8440,FEE EXPENSES                  ,07/01/2015,3762081,8439,1250.00,GRANTA DESIGN LTD                       ,564803,,COMPUTER SYSTEMS & SOFTWARE (D
DISAB CHILD ACCESS CHILDCARE  ,9120,OTHER AGENCIES                ,07/01/2015,3762145,42003,1080.45,LOXLEY AFTER SCHOOL CLUB                ,481650,,SCHOOLS - LOCAL AUTHORITY     
CHANCET WOOD                  ,8010,EQUIPMENT PURCHASE AND REPAIR ,07/01/2015,3762350,72884,264.85,BARNSLEY CATERING SERVICES LTD          ,203262,,CATERING EQUIPMENT            
SPECIALIST MARKETS            ,8020,EQUIPMENT LEASE/ RENTAL/ HIRE ,07/01/2015,3762425,2851,480.00,HALL'S SOUND SYSTEMS                    ,297670,,SOUND EQUIPMENT HIRE & INSTALL
OFF THE SHELF                 ,8440,FEE EXPENSES                  ,07/01/2015,3762455,21/15                    ,450.00,THE WRITING SQUAD                       ,618152,,WRITERS - TECHNICAL & COMMERCI
INWARD INVESTMENT             ,6280,HIRE OF PREMISES              ,07/01/2015,3762712,8547,250.00,ELECTRIC WORKS                          ,512542,,BUSINESS CENTRES              
DEVELOPMENT CONTROL           ,8270,SUBSCRIPTIONS                 ,07/01/2015,3762937,9000807958,1423.00,THOMSON REUTERS PROFESSIONAL            ,430165,,INFORMATION SERVICES          
OBSOLETE HEATING              ,1157,DWELLINGS MAIN CONTRACT       ,07/01/2015,3762952,32115,3079.83,P.T.S (PLUMBING TRADE SUPPLIERS)        ,616318,,PLUMBERS' MERCHANTS           
OBSOLETE HEATING              ,1157,DWELLINGS MAIN CONTRACT       ,07/01/2015,3762953,32438,7207.34,P.T.S (PLUMBING TRADE SUPPLIERS)        ,616318,,PLUMBERS' MERCHANTS           
OBSOLETE HEATING              ,1157,DWELLINGS MAIN CONTRACT       ,07/01/2015,3762954,32417,7009.40,P.T.S (PLUMBING TRADE SUPPLIERS)        ,616318,,PLUMBERS' MERCHANTS           
OBSOLETE HEATING              ,1157,DWELLINGS MAIN CONTRACT       ,07/01/2015,3762955,32355,6925.45,P.T.S (PLUMBING TRADE SUPPLIERS)        ,616318,,PLUMBERS' MERCHANTS           
OBSOLETE HEATING              ,1157,DWELLINGS MAIN CONTRACT       ,07/01/2015,3762956,32957,3053.29,P.T.S (PLUMBING TRADE SUPPLIERS)        ,616318,,PLUMBERS' MERCHANTS           
BUILDING STANDARD PSU+CON DEMO,8440,FEE EXPENSES                  ,07/01/2015,3762957,995053,1752.63,BRITISH TELECOMMUNICATIONS PLC          ,515110,,TELECOMMUNICATION SERVICES    
OBSOLETE HEATING              ,1157,DWELLINGS MAIN CONTRACT       ,07/01/2015,3762960,SH04366B/10065/1         ,22710.54,AQUA INTERIORS                          ,594293,,LIGHTING CONTRACTORS          
INSULATION (COUNCIL HSG)      ,1157,DWELLINGS MAIN CONTRACT       ,07/01/2015,3762963,SH04233/10067/8          ,5206.46,MILLER PATTISON LTD                     ,591668,,INSULATION INSTALLERS         
PURCHASING LEARNING DISABILITI,9250,INDEPENDENT DAY CARE          ,07/01/2015,3763242,6688,320.00,ENABLE (SHEFFIELD)                      ,329346,,CHARITIES & VOLUNTARY ORGANISA
INSULATION (COUNCIL HSG)      ,1157,DWELLINGS MAIN CONTRACT       ,07/01/2015,3762966,SH04233/10068/9          ,1092.75,MILLER PATTISON LTD                     ,591668,,INSULATION INSTALLERS         
OBSOLETE HEATING              ,1157,DWELLINGS MAIN CONTRACT       ,07/01/2015,3762967,SH04366C/10066/2         ,31265.40,YORKSHIRE PLUMBING & HEATING SERVICES   ,320935,,PLUMBERS                      
INWARD INVESTMENT             ,8600,MOBILE TELEPHONES             ,07/01/2015,3763062,670158868/1              ,305.00,VODAFONE LIMITED (CORPORATE)            ,209321,,MOBILE PHONES                 
23) SWYP ST SMOKING PROJECT   ,9030,HEALTH                        ,07/01/2015,3763066,SOARCO/1690              ,1666.00,SOUTHEY & OWLERTON AREA REGENERATION    ,431475,,CHARITIES & VOLUNTARY ORGANISA
MEDICO LEGAL CENTRE           ,5750,TRAINING EXPENDITURE          ,07/01/2015,3763078,2627543,1266.32,PULSE HEALTHCARE LIMITED                ,616685,,EMPLOYMENT & RECRUITMENT AGENC
MGMT OF NRQ PROPERTIES        ,6210,RENTS                         ,07/01/2015,3763080,440765/1799              ,2625.00,HAMMERSON (SHEFFIELD NRQ) LTD           ,616259,,PROPERTY DEVELOPERS           
SHORT BREAKS FUNDING FOR DISAB,9120,OTHER AGENCIES                ,07/01/2015,3763093,27104,318.60,SPECTRUM SOCIAL CARE LTD                ,328608,,EMPLOYMENT & RECRUITMENT AGENC
SEN TAXIS                     ,7060,EXTERNAL VEHICLE HIRE         ,07/01/2015,3763094,HPCS1214(501)            ,3380.00,S1 TAXIS LTD                            ,527712,,TAXIS & PRIVATE HIRE          
SHORT BREAKS FUNDING FOR DISAB,9120,OTHER AGENCIES                ,07/01/2015,3763095,522,866.38,WOODTHORPE DEVELOPMENT TRUST            ,419565,,CHARITIES & VOLUNTARY ORGANISA
SHORT BREAKS FUNDING FOR DISAB,9120,OTHER AGENCIES                ,07/01/2015,3763096,SNIPS0009/2014           ,1200.00,STEPHEN HARRISON ACADEMY                ,479429,,"SNOOKER, BILLIARDS & POOL HALL"
XMAS ILLUMINATIONS            ,8550,OTHER SERVICES                ,07/01/2015,3763099,EF30740                  ,1538.00,ELVEDON FARMS LTD                       ,409642,,CHRISTMAS GOODS               
MGMT OF NRQ PROPERTIES        ,6210,RENTS                         ,07/01/2015,3763107,440765/1806              ,7493.75,HAMMERSON (SHEFFIELD NRQ) LTD           ,616259,,PROPERTY DEVELOPERS           
MGMT OF NRQ PROPERTIES        ,6210,RENTS                         ,07/01/2015,3763108,440765/1788              ,18000.00,HAMMERSON (SHEFFIELD NRQ) LTD           ,616259,,PROPERTY DEVELOPERS           
EP DOOR ENTRY WORKS           ,1161,NC&A MAIN CONTRACT            ,07/01/2015,3763111,SH04054/4                ,47700.00,KIER SERVICES MAINTENANCE EAST          ,591748,,CONSTRUCTION CONTRACTORS - GEN
COMMUNICATIONS                ,8550,OTHER SERVICES                ,07/01/2015,3763279,335161,2077.34,BAUER RADIO LTD                         ,366884,,RADIO & TELEVISION STATIONS   
BCPD                          ,5750,TRAINING EXPENDITURE          ,07/01/2015,3763359,IN00535116               ,950.00,HAPPY COMPUTERS LTD                     ,535359,,COMPUTER TRAINING             
STRATEGY AND SKILLS           ,8230,HOSPITALITY                   ,07/01/2015,3763381,CAGMCUT-D-28937          ,1503.20,KUDOS CATERING (UK) LTD                 ,570303,,FUNCTION ROOMS                
GATEWAY GROUP 1A              ,7140,PUBLIC TRANSPORT COSTS        ,07/01/2015,3763437,SL0062445                ,999.70,SYPTE                                   ,208757,,BUS & COACH OPERATORS & STATIO
PEACE GARDENS                 ,8540,SECURITY SERVICES             ,07/01/2015,3763457,INV069827                ,1611.23,CONSTANT SECURITY SERVICES LIMITED      ,501937,,SECURITY SERVICES             
STANIFORTH ROAD WORKSHOPS     ,7010,ROUTINE VEHICLE REPAIR & MTCE ,07/01/2015,3763360,14845,408.40,RODDISONS RECOVERY                      ,517591,,COMMERCIAL VEHICLE BREAKDOWN &
CORPORATE MAIL                ,8570,POSTAGE & DELIVERY            ,07/01/2015,3763376,9048852473,8115.65,ROYAL MAIL GROUP LTD                    ,295326,,DELIVERY SERVICES             
CORPORATE MAIL                ,8570,POSTAGE & DELIVERY            ,07/01/2015,3763379,9048797497,9364.92,ROYAL MAIL GROUP LTD                    ,295326,,DELIVERY SERVICES             
STANIFORTH ROAD WORKSHOPS     ,7010,ROUTINE VEHICLE REPAIR & MTCE ,07/01/2015,3763387,42640430,612.86,NORTHSIDE TRUCK CENTRE                  ,207176,,COMMERCIAL VEHICLE DEALERS    
CLOSED LANDFILL SITES         ,8590,LANDLINE TELEPHONES           ,07/01/2015,3763391,SL46765222I0019Y         ,1017.31,BRITISH TELECOMMUNICATIONS PLC          ,295860,,TELECOMMUNICATION SERVICES    
STANIFORTH ROAD WORKSHOPS     ,7010,ROUTINE VEHICLE REPAIR & MTCE ,07/01/2015,3763392,14491543,424.14,LOOKERS FORD                            ,474939,,CAR DEALERS                   
STANIFORTH ROAD WORKSHOPS     ,7010,ROUTINE VEHICLE REPAIR & MTCE ,07/01/2015,3763394,14491419,1214.17,LOOKERS FORD                            ,474939,,CAR DEALERS                   
STANIFORTH ROAD WORKSHOPS     ,8070,STOCKS AND STORES             ,07/01/2015,3763547,106827,761.50,F R SHARROCK LTD                        ,440994,,AGRICULTURAL ENGINEERS        
PURCHASING LEARNING DISABILITI,9190,DIRECT PAYMENTS               ,07/01/2015,3763226,J1046296                 ,1680.00,REDACTED PERSONAL DATA,542636,Unclassified Non Trade,OUT OF SCOPE FOR SIC MONITORIN
PURCHASING LEARNING DISABILITI,9250,INDEPENDENT DAY CARE          ,07/01/2015,3763228,6674,320.00,ENABLE (SHEFFIELD)                      ,329346,,CHARITIES & VOLUNTARY ORGANISA
PURCHASING LEARNING DISABILITI,9250,INDEPENDENT DAY CARE          ,07/01/2015,3763229,6675,480.00,ENABLE (SHEFFIELD)                      ,329346,,CHARITIES & VOLUNTARY ORGANISA
PURCHASING LEARNING DISABILITI,9250,INDEPENDENT DAY CARE          ,07/01/2015,3763230,6676,320.00,ENABLE (SHEFFIELD)                      ,329346,,CHARITIES & VOLUNTARY ORGANISA
PURCHASING LEARNING DISABILITI,9250,INDEPENDENT DAY CARE          ,07/01/2015,3763231,6677,480.00,ENABLE (SHEFFIELD)                      ,329346,,CHARITIES & VOLUNTARY ORGANISA
PURCHASING LEARNING DISABILITI,9250,INDEPENDENT DAY CARE          ,07/01/2015,3763232,6678,480.00,ENABLE (SHEFFIELD)                      ,329346,,CHARITIES & VOLUNTARY ORGANISA
PURCHASING LEARNING DISABILITI,9250,INDEPENDENT DAY CARE          ,07/01/2015,3763233,6679,320.00,ENABLE (SHEFFIELD)                      ,329346,,CHARITIES & VOLUNTARY ORGANISA
PURCHASING LEARNING DISABILITI,9250,INDEPENDENT DAY CARE          ,07/01/2015,3763234,6680,320.00,ENABLE (SHEFFIELD)                      ,329346,,CHARITIES & VOLUNTARY ORGANISA
PURCHASING LEARNING DISABILITI,9250,INDEPENDENT DAY CARE          ,07/01/2015,3763238,6684,320.00,ENABLE (SHEFFIELD)                      ,329346,,CHARITIES & VOLUNTARY ORGANISA
PURCHASING LEARNING DISABILITI,9250,INDEPENDENT DAY CARE          ,07/01/2015,3763239,6685,480.00,ENABLE (SHEFFIELD)                      ,329346,,CHARITIES & VOLUNTARY ORGANISA
PURCHASING LEARNING DISABILITI,9250,INDEPENDENT DAY CARE          ,07/01/2015,3763243,6689,320.00,ENABLE (SHEFFIELD)                      ,329346,,CHARITIES & VOLUNTARY ORGANISA
PURCHASING LEARNING DISABILITI,9250,INDEPENDENT DAY CARE          ,07/01/2015,3763244,6690,480.00,ENABLE (SHEFFIELD)                      ,329346,,CHARITIES & VOLUNTARY ORGANISA
ADULT SOCIAL CARE PURCHASING  ,9250,INDEPENDENT DAY CARE          ,07/01/2015,3763246,6692,320.00,ENABLE (SHEFFIELD)                      ,329346,,CHARITIES & VOLUNTARY ORGANISA
PDSI PURCHASING               ,9190,BLOCK CONTRACT                ,07/01/2015,3763247,J1043986 141214          ,1694.20,HOUSING AND CARE 21                     ,531533,,"HOUSING ASSOCIATIONS, SOCIETIE"
PURCHASING LEARNING DISABILITI,9190,BLOCK CONTRACT                ,07/01/2015,3763247,J1043986 141214          ,1479.20,HOUSING AND CARE 21                     ,531533,,"HOUSING ASSOCIATIONS, SOCIETIE"
ADULT SOCIAL CARE PURCHASING  ,9190,FUNDED HOME SUPPORT           ,07/01/2015,3763247,J1043986 141214          ,2881.00,HOUSING AND CARE 21                     ,531533,,"HOUSING ASSOCIATIONS, SOCIETIE"
ADULT SOCIAL CARE PURCHASING  ,9190,BLOCK CONTRACT                ,07/01/2015,3763247,J1043986 141214          ,46576.99,HOUSING AND CARE 21                     ,531533,,"HOUSING ASSOCIATIONS, SOCIETIE"
PDSI PURCHASING               ,9190,FUNDED HOME SUPPORT           ,07/01/2015,3763247,J1043986 141214          ,1393.20,HOUSING AND CARE 21                     ,531533,,"HOUSING ASSOCIATIONS, SOCIETIE"
ADULT SOCIAL CARE PURCHASING  ,9190,FUNDED HOME SUPPORT           ,07/01/2015,3763248,J1043988 141214          ,11194.68,SANCTUARY HOMECARE                      ,583116,,HOME CARE SERVICES            
ADULT SOCIAL CARE PURCHASING  ,9190,BLOCK CONTRACT                ,07/01/2015,3763248,J1043988 141214          ,43375.01,SANCTUARY HOMECARE                      ,583116,,HOME CARE SERVICES            
PDSI PURCHASING               ,9190,BLOCK CONTRACT                ,07/01/2015,3763248,J1043988 141214          ,1212.20,SANCTUARY HOMECARE                      ,583116,,HOME CARE SERVICES            
PURCHASING LEARNING DISABILITI,9190,BLOCK CONTRACT                ,07/01/2015,3763249,J1043989 141214          ,1323.12,REDACTED PERSONAL DATA,552184,,HOME CARE SERVICES            
PDSI PURCHASING               ,9190,BLOCK CONTRACT                ,07/01/2015,3763249,J1043989 141214          ,4749.04,REDACTED PERSONAL DATA,552184,,HOME CARE SERVICES            
ADULT SOCIAL CARE PURCHASING  ,9190,FUNDED HOME SUPPORT           ,07/01/2015,3763249,J1043989 141214          ,1429.16,REDACTED PERSONAL DATA,552184,,HOME CARE SERVICES            
ADULT SOCIAL CARE PURCHASING  ,9190,BLOCK CONTRACT                ,07/01/2015,3763249,J1043989 141214          ,35960.51,REDACTED PERSONAL DATA,552184,,HOME CARE SERVICES            
PURCHASING LEARNING DISABILITI,9190,BLOCK CONTRACT                ,07/01/2015,3763250,J1043990 141214          ,1053.64,REDACTED PERSONAL DATA,552184,,HOME CARE SERVICES            
ADULT SOCIAL CARE PURCHASING  ,9190,BLOCK CONTRACT                ,07/01/2015,3763250,J1043990 141214          ,31823.01,REDACTED PERSONAL DATA,552184,,HOME CARE SERVICES            
PDSI PURCHASING               ,9190,BLOCK CONTRACT                ,07/01/2015,3763250,J1043990 141214          ,392.00,REDACTED PERSONAL DATA,552184,,HOME CARE SERVICES            
PURCHASING LEARNING DISABILITI,9190,FUNDED HOME SUPPORT           ,07/01/2015,3763251,J1043991 141214          ,347.76,REDACTED PERSONAL DATA,362074,,HOME CARE SERVICES            
PDSI PURCHASING               ,9190,BLOCK CONTRACT                ,07/01/2015,3763251,J1043991 141214          ,1382.76,REDACTED PERSONAL DATA,362074,,HOME CARE SERVICES            
ADULT SOCIAL CARE PURCHASING  ,9190,FUNDED HOME SUPPORT           ,07/01/2015,3763251,J1043991 141214          ,4140.00,REDACTED PERSONAL DATA,362074,,HOME CARE SERVICES            
PURCHASING LEARNING DISABILITI,9190,BLOCK CONTRACT                ,07/01/2015,3763252,J1043992 141214          ,985.32,REDACTED PERSONAL DATA,362074,,HOME CARE SERVICES            
ADULT SOCIAL CARE PURCHASING  ,9190,FUNDED HOME SUPPORT           ,07/01/2015,3763252,J1043992 141214          ,9697.52,REDACTED PERSONAL DATA,362074,,HOME CARE SERVICES            
PURCHASING LEARNING DISABILITI,9190,BLOCK CONTRACT                ,07/01/2015,3763253,J1043993 141214          ,516.88,HOUSING AND CARE 21                     ,531533,,"HOUSING ASSOCIATIONS, SOCIETIE"
PDSI PURCHASING               ,9190,BLOCK CONTRACT                ,07/01/2015,3763253,J1043993 141214          ,645.28,HOUSING AND CARE 21                     ,531533,,"HOUSING ASSOCIATIONS, SOCIETIE"
PURCHASING LEARNING DISABILITI,9190,FUNDED HOME SUPPORT           ,07/01/2015,3763253,J1043993 141214          ,258.00,HOUSING AND CARE 21                     ,531533,,"HOUSING ASSOCIATIONS, SOCIETIE"
ADULT SOCIAL CARE PURCHASING  ,9190,FUNDED HOME SUPPORT           ,07/01/2015,3763253,J1043993 141214          ,4328.81,HOUSING AND CARE 21                     ,531533,,"HOUSING ASSOCIATIONS, SOCIETIE"
ADULT SOCIAL CARE PURCHASING  ,9190,BLOCK CONTRACT                ,07/01/2015,3763253,J1043993 141214          ,38686.74,HOUSING AND CARE 21                     ,531533,,"HOUSING ASSOCIATIONS, SOCIETIE"
ADULT SOCIAL CARE PURCHASING  ,9190,FUNDED HOME SUPPORT           ,07/01/2015,3763254,J1043994 141214          ,2512.52,SEVACARE UK LTD                         ,594201,,HOME CARE SERVICES            
ADULT SOCIAL CARE PURCHASING  ,9190,BLOCK CONTRACT                ,07/01/2015,3763254,J1043994 141214          ,23013.13,SEVACARE UK LTD                         ,594201,,HOME CARE SERVICES            
PDSI PURCHASING               ,9190,BLOCK CONTRACT                ,07/01/2015,3763254,J1043994 141214          ,1524.56,SEVACARE UK LTD                         ,594201,,HOME CARE SERVICES            
PURCHASING LEARNING DISABILITI,9190,BLOCK CONTRACT                ,07/01/2015,3763254,J1043994 141214          ,348.84,SEVACARE UK LTD                         ,594201,,HOME CARE SERVICES            
ADULT SOCIAL CARE PURCHASING  ,9190,BLOCK CONTRACT                ,07/01/2015,3763255,J1043995 141214          ,36429.38,WESTMINSTER HOMECARE LTD                ,487993,,NURSING AGENCIES              
PURCHASING                    ,9190,BLOCK CONTRACT                ,07/01/2015,3763255,J1043995 141214          ,296.84,WESTMINSTER HOMECARE LTD                ,487993,,NURSING AGENCIES              
PDSI PURCHASING               ,9190,BLOCK CONTRACT                ,07/01/2015,3763255,J1043995 141214          ,920.20,WESTMINSTER HOMECARE LTD                ,487993,,NURSING AGENCIES              
PDSI PURCHASING               ,9190,BLOCK CONTRACT                ,07/01/2015,3763256,J1043996 141214          ,704.18,SEVACARE UK LTD                         ,594201,,HOME CARE SERVICES            
ADULT SOCIAL CARE PURCHASING  ,9190,BLOCK CONTRACT                ,07/01/2015,3763256,J1043996 141214          ,41708.10,SEVACARE UK LTD                         ,594201,,HOME CARE SERVICES            
ADULT SOCIAL CARE PURCHASING  ,9190,FUNDED HOME SUPPORT           ,07/01/2015,3763256,J1043996 141214          ,478.04,SEVACARE UK LTD                         ,594201,,HOME CARE SERVICES            
ADULT SOCIAL CARE PURCHASING  ,9190,BLOCK CONTRACT                ,07/01/2015,3763257,J1043998 141214          ,53086.94,WESTMINSTER HOMECARE LTD                ,487993,,NURSING AGENCIES              
ADULT SOCIAL CARE PURCHASING  ,9190,FUNDED HOME SUPPORT           ,07/01/2015,3763257,J1043998 141214          ,2347.80,WESTMINSTER HOMECARE LTD                ,487993,,NURSING AGENCIES              
PDSI PURCHASING               ,9190,BLOCK CONTRACT                ,07/01/2015,3763257,J1043998 141214          ,1212.60,WESTMINSTER HOMECARE LTD                ,487993,,NURSING AGENCIES              
ADULT SOCIAL CARE PURCHASING  ,9190,FUNDED HOME SUPPORT           ,07/01/2015,3763258,J1044006 141214          ,1713.96,REDACTED PERSONAL DATA,362074,,HOME CARE SERVICES            
PDSI PURCHASING               ,9190,BLOCK CONTRACT                ,07/01/2015,3763258,J1044006 141214          ,1664.28,REDACTED PERSONAL DATA,362074,,HOME CARE SERVICES            
PURCHASING LEARNING DISABILITI,9190,BLOCK CONTRACT                ,07/01/2015,3763258,J1044006 141214          ,521.64,REDACTED PERSONAL DATA,362074,,HOME CARE SERVICES            
ADULT SOCIAL CARE PURCHASING  ,9190,FUNDED HOME SUPPORT           ,07/01/2015,3763259,J1044007 141214          ,8401.80,REDACTED PERSONAL DATA,328494,,HOME CARE SERVICES            
PDSI PURCHASING               ,9190,BLOCK CONTRACT                ,07/01/2015,3763259,J1044007 141214          ,1737.00,REDACTED PERSONAL DATA,328494,,HOME CARE SERVICES            
ADULT SOCIAL CARE PURCHASING  ,9190,BLOCK CONTRACT                ,07/01/2015,3763259,J1044007 141214          ,59296.24,REDACTED PERSONAL DATA,328494,,HOME CARE SERVICES            
PURCHASING LEARNING DISABILITI,9190,BLOCK CONTRACT                ,07/01/2015,3763259,J1044007 141214          ,2495.24,REDACTED PERSONAL DATA,328494,,HOME CARE SERVICES            
ADULT SOCIAL CARE PURCHASING  ,9190,FUNDED HOME SUPPORT           ,07/01/2015,3763260,J1044008 141214          ,4439.52,REDACTED PERSONAL DATA,328494,,HOME CARE SERVICES            
ADULT SOCIAL CARE PURCHASING  ,9190,BLOCK CONTRACT                ,07/01/2015,3763260,J1044008 141214          ,31641.35,REDACTED PERSONAL DATA,328494,,HOME CARE SERVICES            
PURCHASING LEARNING DISABILITI,9190,BLOCK CONTRACT                ,07/01/2015,3763260,J1044008 141214          ,5204.60,REDACTED PERSONAL DATA,328494,,HOME CARE SERVICES            
ADULT SOCIAL CARE PURCHASING  ,9190,BLOCK CONTRACT                ,07/01/2015,3763261,J1044009 141214          ,48575.59,REDACTED PERSONAL DATA,328494,,HOME CARE SERVICES            
PDSI PURCHASING               ,9190,BLOCK CONTRACT                ,07/01/2015,3763261,J1044009 141214          ,1992.44,REDACTED PERSONAL DATA,328494,,HOME CARE SERVICES            
PURCHASING LEARNING DISABILITI,9190,BLOCK CONTRACT                ,07/01/2015,3763261,J1044009 141214          ,279.32,REDACTED PERSONAL DATA,328494,,HOME CARE SERVICES            
PURCHASING                    ,9190,BLOCK CONTRACT                ,07/01/2015,3763261,J1044009 141214          ,4264.68,REDACTED PERSONAL DATA,328494,,HOME CARE SERVICES            
ADULT SOCIAL CARE PURCHASING  ,9190,FUNDED HOME SUPPORT           ,07/01/2015,3763261,J1044009 141214          ,2309.72,REDACTED PERSONAL DATA,328494,,HOME CARE SERVICES            
ADULT SOCIAL CARE PURCHASING  ,9190,FUNDED HOME SUPPORT           ,07/01/2015,3763262,J1044010 141214          ,8188.92,REDACTED PERSONAL DATA,362074,,HOME CARE SERVICES            
ADULT SOCIAL CARE PURCHASING  ,9190,FUNDED HOME SUPPORT           ,07/01/2015,3763263,J1044011 141214          ,1808.74,REDACTED PERSONAL DATA,204388,,HOME CARE SERVICES            
ADULT SOCIAL CARE PURCHASING  ,9190,BLOCK CONTRACT                ,07/01/2015,3763263,J1044011 141214          ,52953.31,REDACTED PERSONAL DATA,204388,,HOME CARE SERVICES            
PURCHASING LEARNING DISABILITI,9190,FUNDED HOME SUPPORT           ,07/01/2015,3763263,J1044011 141214          ,1695.20,REDACTED PERSONAL DATA,204388,,HOME CARE SERVICES            
PDSI PURCHASING               ,9190,BLOCK CONTRACT                ,07/01/2015,3763264,J1044012 141214          ,708.52,REDACTED PERSONAL DATA,204388,,HOME CARE SERVICES            
ADULT SOCIAL CARE PURCHASING  ,9190,BLOCK CONTRACT                ,07/01/2015,3763264,J1044012 141214          ,45242.56,REDACTED PERSONAL DATA,204388,,HOME CARE SERVICES            
PURCHASING LEARNING DISABILITI,9190,CITYWIDE SPOT                 ,07/01/2015,3763265,253717,2344.14,UNITED RESPONSE                         ,329604,,CHARITIES & VOLUNTARY ORGANISA
PDSI PURCHASING               ,9190,CITYWIDE SPOT                 ,07/01/2015,3763266,253884,812.00,UNITED RESPONSE                         ,329604,,CHARITIES & VOLUNTARY ORGANISA
PURCHASING LEARNING DISABILITI,9190,CITYWIDE SPOT                 ,07/01/2015,3763267,253885,870.00,UNITED RESPONSE                         ,329604,,CHARITIES & VOLUNTARY ORGANISA
PURCHASING LEARNING DISABILITI,9190,CITYWIDE SPOT                 ,07/01/2015,3763268,253887,1522.50,UNITED RESPONSE                         ,329604,,CHARITIES & VOLUNTARY ORGANISA
PURCHASING LEARNING DISABILITI,9190,CITYWIDE SPOT                 ,07/01/2015,3763269,25390,1203.50,UNITED RESPONSE                         ,329604,,CHARITIES & VOLUNTARY ORGANISA
PURCHASING LEARNING DISABILITI,9190,CITYWIDE SPOT                 ,07/01/2015,3763270,253988,290.00,UNITED RESPONSE                         ,329604,,CHARITIES & VOLUNTARY ORGANISA
PURCHASING LEARNING DISABILITI,9190,FUNDED HOME SUPPORT           ,07/01/2015,3763271,25408 8                  ,453.52,UNITED RESPONSE                         ,329604,,CHARITIES & VOLUNTARY ORGANISA
PURCHASING LEARNING DISABILITI,9190,CITYWIDE SPOT                 ,07/01/2015,3763271,25408 8                  ,550.48,UNITED RESPONSE                         ,329604,,CHARITIES & VOLUNTARY ORGANISA
PURCHASING LEARNING DISABILITI,9190,CITYWIDE SPOT                 ,07/01/2015,3763272,254083,928.00,UNITED RESPONSE                         ,329604,,CHARITIES & VOLUNTARY ORGANISA
PURCHASING LEARNING DISABILITI,9190,CITYWIDE SPOT                 ,07/01/2015,3763273,254092,656.00,UNITED RESPONSE                         ,329604,,CHARITIES & VOLUNTARY ORGANISA
PURCHASING LEARNING DISABILITI,9190,CITYWIDE SPOT                 ,07/01/2015,3763274,254095,656.00,UNITED RESPONSE                         ,329604,,CHARITIES & VOLUNTARY ORGANISA
PURCHASING LEARNING DISABILITI,9190,CITYWIDE SPOT                 ,07/01/2015,3763275,254098,812.00,UNITED RESPONSE                         ,329604,,CHARITIES & VOLUNTARY ORGANISA
INDEPENDENT FOSTERING PLACEMEN,9270,INDEPENDENT FOSTERING         ,07/01/2015,3763206,10284,3064.20,CHILDRENS FAMILY TRUST                  ,599314,,CHILDREN'S HOMES              
LEAVING CARE                  ,9270,INDEPENDENT FOSTERING         ,07/01/2015,3763207,156837,874.00,REDACTED PERSONAL DATA,349291,,ADOPTION & FOSTERING          
INDEPENDENT FOSTERING PLACEMEN,9270,INDEPENDENT FOSTERING         ,07/01/2015,3763208,156838,830.00,REDACTED PERSONAL DATA,349291,,ADOPTION & FOSTERING          
INDEPENDENT FOSTERING PLACEMEN,9270,INDEPENDENT FOSTERING         ,07/01/2015,3763209,156839,794.99,REDACTED PERSONAL DATA,349291,,ADOPTION & FOSTERING          
INDEPENDENT FOSTERING PLACEMEN,9270,INDEPENDENT FOSTERING         ,07/01/2015,3763210,156840,675.71,REDACTED PERSONAL DATA,349291,,ADOPTION & FOSTERING          
INDEPENDENT FOSTERING PLACEMEN,9270,INDEPENDENT FOSTERING         ,07/01/2015,3763211,27740,560.00,REDACTED PERSONAL DATA,366456,,ADOPTION & FOSTERING          
INDEPENDENT FOSTERING PLACEMEN,9270,INDEPENDENT FOSTERING         ,07/01/2015,3763212,10207,3277.01,CHILDRENS FAMILY TRUST                  ,599314,,CHILDREN'S HOMES              
INDEPENDENT FOSTERING PLACEMEN,9270,INDEPENDENT FOSTERING         ,07/01/2015,3763213,10208,3166.34,CHILDRENS FAMILY TRUST                  ,599314,,CHILDREN'S HOMES              
INDEPENDENT FOSTERING PLACEMEN,9270,INDEPENDENT FOSTERING         ,07/01/2015,3763214,10283,3171.30,CHILDRENS FAMILY TRUST                  ,599314,,CHILDREN'S HOMES              
LEAVING CARE                  ,9270,CARELEAVERS ACCOMMODATION     ,07/01/2015,3763215,TAMIN2                   ,420.00,EARL MARSHALL GUEST HOUSE LTD           ,391589,,GUEST HOUSES                  
LEAVING CARE                  ,9270,CARELEAVERS ACCOMMODATION     ,07/01/2015,3763216,7886,3200.00,PROGRESSIVE CARE LTD                    ,343548,,CHILDREN'S HOMES              
INDEPENDENT RES BLOCK PLACEMEN,9270,INDEPENDENT RESIDENTIAL PMENT ,07/01/2015,3763217,7968,4780.00,PROGRESSIVE CARE LTD                    ,343548,,CHILDREN'S HOMES              
LEAVING CARE                  ,9270,CARELEAVERS ACCOMMODATION     ,07/01/2015,3763218,BALOG60                  ,396.90,EARL MARSHALL GUEST HOUSE LTD           ,391589,,GUEST HOUSES                  
NORTH SA - LAC                ,9270,PAYMENTS TO RELATIVES/FRIENDS ,07/01/2015,3763220,NORTH/918                ,395.55,REDACTED PERSONAL DATA,595324,,ADOPTION & FOSTERING          
FOSTERING NON-PLACEMENT LAC 1 ,9440,LOOKED AFTER CHILDREN         ,07/01/2015,3763221,23798,295.20,REDACTED PERSONAL DATA,543672,,ADOPTION & FOSTERING          
ADULT SOCIAL CARE PURCHASING  ,9210,CONTINUING NURSING CARE       ,07/01/2015,3763159,J1045103 010215          ,8140.00,SEVENHILLS NURSING                      ,362104,,NURSING HOMES                 
ADULT SOCIAL CARE PURCHASING  ,9200,CONTINUING RESIDENTIAL CARE   ,07/01/2015,3763160,J1045106 010215          ,28676.00,HEELEY BANK CARE HOME                   ,362923,,RESIDENTIAL CARE HOMES        
ADULT SOCIAL CARE PURCHASING  ,9210,CONTINUING NURSING CARE       ,07/01/2015,3763160,J1045106 010215          ,30700.00,HEELEY BANK CARE HOME                   ,362923,,RESIDENTIAL CARE HOMES        
ADULT SOCIAL CARE PURCHASING  ,9210,CONTINUING NURSING CARE       ,07/01/2015,3763161,J1045112 010215          ,1455.72,VALLEY PARK RESIDENTIAL HOME            ,368312,,RESIDENTIAL CARE HOMES        
ADULT SOCIAL CARE PURCHASING  ,9200,CONTINUING RESIDENTIAL CARE   ,07/01/2015,3763162,J1045122 010215          ,1675.60,WATER ROYD HOUSE                        ,383521,,NURSING HOMES                 
PURCHASING LEARNING DISABILITI,9200,CONTINUING RESIDENTIAL CARE   ,07/01/2015,3763164,J1045134 010215          ,5212.36,SHAFTESBURY HOUSE                       ,403791,,CHARITIES & VOLUNTARY ORGANISA
PURCHASING LEARNING DISABILITI,9200,CONTINUING RESIDENTIAL CARE   ,07/01/2015,3763165,J1045136 010215          ,12870.36,ROSEBERRY CARE CENTRES UK LTD           ,412186,,RESIDENTIAL CARE HOMES        
PURCHASING LEARNING DISABILITI,9200,CONTINUING RESIDENTIAL CARE   ,07/01/2015,3763166,J1045144 010215          ,6184.84,PRIORY LODGE                            ,430728,,RESIDENTIAL CARE HOMES        
PURCHASING LEARNING DISABILITI,9200,CONTINUING RESIDENTIAL CARE   ,07/01/2015,3763167,J1045155 010215          ,18098.68,REDCLIFFE HOUSE                         ,446985,,GUEST HOUSES                  
PURCHASING LEARNING DISABILITI,9200,CONTINUING RESIDENTIAL CARE   ,07/01/2015,3763168,J1045156 010215          ,7907.60,UNITED HEALTH LTD C/O WOODVIEW CARE HOME,456477,,NURSING HOMES                 
PURCHASING LEARNING DISABILITI,9210,CONTINUING NURSING CARE       ,07/01/2015,3763168,J1045156 010215          ,5550.56,UNITED HEALTH LTD C/O WOODVIEW CARE HOME,456477,,NURSING HOMES                 
ADULT SOCIAL CARE PURCHASING  ,9200,CONTINUING RESIDENTIAL CARE   ,07/01/2015,3763169,J1045158 010215          ,1640.00,YOLANTA HOUSE RESIDENTIAL HOME          ,461087,,RESIDENTIAL CARE HOMES        
ADULT SOCIAL CARE PURCHASING  ,9200,CONTINUING RESIDENTIAL CARE   ,07/01/2015,3763170,J1045178 010215          ,1580.00,PILLING CARE HOME                       ,513118,,RESIDENTIAL CARE HOMES        
ADULT SOCIAL CARE PURCHASING  ,9200,CONTINUING RESIDENTIAL CARE   ,07/01/2015,3763171,J1045189 010215          ,15328.00,WOOD HILL GRANGE CARE HOME              ,552397,,RESIDENTIAL CARE HOMES        
ADULT SOCIAL CARE PURCHASING  ,9210,CONTINUING NURSING CARE       ,07/01/2015,3763171,J1045189 010215          ,25664.84,WOOD HILL GRANGE CARE HOME              ,552397,,RESIDENTIAL CARE HOMES        
ADULT SOCIAL CARE PURCHASING  ,9210,CONTINUING NURSING CARE       ,07/01/2015,3763172,J1045191 010215          ,1564.00,THE POPLARS NURSING HOME                ,553979,,NURSING HOMES                 
PURCHASING                    ,9200,CONTINUING RESIDENTIAL CARE   ,07/01/2015,3763173,J1045201 010215          ,6185.64,WESTFIELD MEWS -                        ,563592,,RESIDENTIAL CARE HOMES        
PURCHASING                    ,9210,CONTINUING NURSING CARE       ,07/01/2015,3763174,J1045202 010215          ,5373.36,PRECEPTORY LODGE                        ,565226,,RESIDENTIAL CARE HOMES        
PURCHASING LEARNING DISABILITI,9200,CONTINUING RESIDENTIAL CARE   ,07/01/2015,3763175,J1032757 040115          ,9359.20,H F TRUST LIMITED                       ,362078,,CHARITIES & VOLUNTARY ORGANISA
PURCHASING LEARNING DISABILITI,9200,CONTINUING RESIDENTIAL CARE   ,07/01/2015,3763176,J1032868 040115          ,5212.36,SHAFTESBURY HOUSE                       ,403791,,CHARITIES & VOLUNTARY ORGANISA
PURCHASING                    ,9200,CONTINUING RESIDENTIAL CARE   ,07/01/2015,3763177,J1032937 040115          ,4093.88,FREEMAN COLLEGE                         ,449127,,SCHOOLS & COLLEGES - FURTHER E
ADULT SOCIAL CARE PURCHASING  ,4260,NURSING COSTS RECOVERED       ,07/01/2015,3763181,J1044801 040115          ,1345.69,KERSAL MOUNT NURSING HOME               ,361765,,NURSING HOMES                 
PURCHASING                    ,9200,CONTINUING RESIDENTIAL CARE   ,07/01/2015,3763182,J1044946 010215          ,6600.00,SANDFORD HOUSE LTD                      ,578938,,RESIDENTIAL CARE HOMES        
ADULT SOCIAL CARE PURCHASING  ,9200,CONTINUING RESIDENTIAL CARE   ,07/01/2015,3763183,J1044960 010215          ,5911.48,SANDFORD HOUSE                          ,361790,,RESIDENTIAL CARE HOMES        
PURCHASING                    ,9200,CONTINUING RESIDENTIAL CARE   ,07/01/2015,3763183,J1044960 010215          ,17177.28,SANDFORD HOUSE                          ,361790,,RESIDENTIAL CARE HOMES        
ADULT SOCIAL CARE PURCHASING  ,9200,CONTINUING RESIDENTIAL CARE   ,07/01/2015,3763184,J1044968 010215          ,13440.64,142 WENSLEY STREET                      ,361819,,"HOUSING ASSOCIATIONS, SOCIETIE"
PURCHASING LEARNING DISABILITI,9200,CONTINUING RESIDENTIAL CARE   ,07/01/2015,3763184,J1044968 010215          ,20713.64,142 WENSLEY STREET                      ,361819,,"HOUSING ASSOCIATIONS, SOCIETIE"
PURCHASING LEARNING DISABILITI,9200,CONTINUING RESIDENTIAL CARE   ,07/01/2015,3763185,J1044986 010215          ,18767.92,NEWFIELD VIEW                           ,361863,,NURSING HOMES                 
ADULT SOCIAL CARE PURCHASING  ,9200,CONTINUING RESIDENTIAL CARE   ,07/01/2015,3763185,J1044986 010215          ,2460.00,NEWFIELD VIEW                           ,361863,,NURSING HOMES                 
ADULT SOCIAL CARE PURCHASING  ,9200,CONTINUING RESIDENTIAL CARE   ,07/01/2015,3763186,J1044987 010215          ,7276.00,ROSE COTTAGE CARE HOME                  ,361940,,NURSING HOMES                 
ADULT SOCIAL CARE PURCHASING  ,9210,CONTINUING NURSING CARE       ,07/01/2015,3763186,J1044987 010215          ,3366.29,ROSE COTTAGE CARE HOME                  ,361940,,NURSING HOMES                 
ADULT SOCIAL CARE PURCHASING  ,9200,CONTINUING RESIDENTIAL CARE   ,07/01/2015,3763187,J1044992 010215          ,23532.00,ROSEBANK CARE HOME                      ,361802,,RESIDENTIAL CARE HOMES        
ADULT SOCIAL CARE PURCHASING  ,9200,CONTINUING RESIDENTIAL CARE   ,07/01/2015,3763188,J1044998 010215          ,4615.40,TAPTON EDGE REST HOME LTD               ,361786,,REST & RETIREMENT HOMES       
ADULT SOCIAL CARE PURCHASING  ,9200,CONTINUING RESIDENTIAL CARE   ,07/01/2015,3763189,J1044999 010215          ,2908.00,WHISTON HALL RESIDENTIAL HOME           ,361816,,RESIDENTIAL CARE HOMES        
PURCHASING LEARNING DISABILITI,9210,CONTINUING NURSING CARE       ,07/01/2015,3763190,J1045002 010215          ,2437.20,OAKWOOD (DEVON COURT)                   ,362087,,RESIDENTIAL CARE HOMES        
ADULT SOCIAL CARE PURCHASING  ,9210,CONTINUING NURSING CARE       ,07/01/2015,3763191,J1045014 010215          ,6042.40,SHEFFIELD HEALTH AND SOCIAL CARE N'HS FO,361800,,NURSING HOMES                 
ADULT SOCIAL CARE PURCHASING  ,9200,CONTINUING RESIDENTIAL CARE   ,07/01/2015,3763192,J1045018 010215          ,19708.00,KERSAL MOUNT NURSING HOME               ,361765,,NURSING HOMES                 
ADULT SOCIAL CARE PURCHASING  ,9210,CONTINUING NURSING CARE       ,07/01/2015,3763192,J1045018 010215          ,7500.86,KERSAL MOUNT NURSING HOME               ,361765,,NURSING HOMES                 
PURCHASING                    ,9210,CONTINUING NURSING CARE       ,07/01/2015,3763192,J1045018 010215          ,1564.00,KERSAL MOUNT NURSING HOME               ,361765,,NURSING HOMES                 
ADULT SOCIAL CARE PURCHASING  ,9200,CONTINUING RESIDENTIAL CARE   ,07/01/2015,3763193,J1045023 010215          ,12640.00,HADDON COURT NURSING HOME               ,361916,,NURSING HOMES                 
ADULT SOCIAL CARE PURCHASING  ,9210,CONTINUING NURSING CARE       ,07/01/2015,3763193,J1045023 010215          ,20764.00,HADDON COURT NURSING HOME               ,361916,,NURSING HOMES                 
ADULT SOCIAL CARE PURCHASING  ,9200,CONTINUING RESIDENTIAL CARE   ,07/01/2015,3763194,J1045028 010215          ,9160.00,PRIOR BANK HOUSE                        ,361772,,RESIDENTIAL CARE HOMES        
PURCHASING LEARNING DISABILITI,9200,CONTINUING RESIDENTIAL CARE   ,07/01/2015,3763195,J1045031 010215          ,9406.16,ORCHARD CARE RESIDENTIAL HOME           ,362100,,NURSING HOMES                 
ADULT SOCIAL CARE PURCHASING  ,9200,CONTINUING RESIDENTIAL CARE   ,07/01/2015,3763195,J1045031 010215          ,5151.40,ORCHARD CARE RESIDENTIAL HOME           ,362100,,NURSING HOMES                 
ADULT SOCIAL CARE PURCHASING  ,9210,CONTINUING NURSING CARE       ,07/01/2015,3763196,J1045042 010215          ,9624.00,PEXTON GRANGE LTD                       ,361942,,NURSING HOMES                 
ADULT SOCIAL CARE PURCHASING  ,9210,CONTINUING NURSING CARE       ,07/01/2015,3763197,J1045049 010215          ,7416.00,WILLOWBECK CARE CENTRE                  ,362132,,NURSING HOMES                 
PURCHASING LEARNING DISABILITI,9210,CONTINUING NURSING CARE       ,07/01/2015,3763197,J1045049 010215          ,5078.40,WILLOWBECK CARE CENTRE                  ,362132,,NURSING HOMES                 
PURCHASING                    ,9210,CONTINUING NURSING CARE       ,07/01/2015,3763197,J1045049 010215          ,26294.76,WILLOWBECK CARE CENTRE                  ,362132,,NURSING HOMES                 
ADULT SOCIAL CARE PURCHASING  ,9200,CONTINUING RESIDENTIAL CARE   ,07/01/2015,3763198,J1045051 010215          ,3396.00,TAPTONHOLME                             ,208851,,RESIDENTIAL CARE HOMES        
ADULT SOCIAL CARE PURCHASING  ,9200,CONTINUING RESIDENTIAL CARE   ,07/01/2015,3763199,J1045056 010215          ,4508.00,NORTHFIELD NURSING HOME                 ,361770,,NURSING HOMES                 
ADULT SOCIAL CARE PURCHASING  ,9210,CONTINUING NURSING CARE       ,07/01/2015,3763199,J1045056 010215          ,20380.00,NORTHFIELD NURSING HOME                 ,361770,,NURSING HOMES                 
PURCHASING                    ,9200,CONTINUING RESIDENTIAL CARE   ,07/01/2015,3763200,J1045059 010215          ,4804.80,CRAEGMOOR WOODTHORPE LODGE              ,362021,,NURSING HOMES                 
ADULT SOCIAL CARE PURCHASING  ,9200,CONTINUING RESIDENTIAL CARE   ,07/01/2015,3763201,J1045083 010215          ,19040.00,SILVER LODGE CARE HOME                  ,361763,,NURSING HOMES                 
ADULT SOCIAL CARE PURCHASING  ,9200,CONTINUING RESIDENTIAL CARE   ,07/01/2015,3763202,J1045096 010215          ,5952.00,ROSEBERRY CARE CENTRES GB LTD           ,361953,,NURSING HOMES                 
ADULT SOCIAL CARE PURCHASING  ,9210,CONTINUING NURSING CARE       ,07/01/2015,3763202,J1045096 010215          ,19614.42,ROSEBERRY CARE CENTRES GB LTD           ,361953,,NURSING HOMES                 
PURCHASING                    ,9200,CONTINUING RESIDENTIAL CARE   ,07/01/2015,3763203,J1045100 010215          ,2899.56,WESTFIELD HOUSE                         ,362081,,RESIDENTIAL CARE HOMES        
PURCHASING LEARNING DISABILITI,9200,CONTINUING RESIDENTIAL CARE   ,07/01/2015,3763204,J1045101 010215          ,3100.08,SHEFFIELD CHESHIRE HOME                 ,361768,,NURSING HOMES                 
PDSI PURCHASING               ,9210,CONTINUING NURSING CARE       ,07/01/2015,3763204,J1045101 010215          ,19962.76,SHEFFIELD CHESHIRE HOME                 ,361768,,NURSING HOMES                 
ADULT SOCIAL CARE PURCHASING  ,9210,CONTINUING NURSING CARE       ,07/01/2015,3763204,J1045101 010215          ,16087.44,SHEFFIELD CHESHIRE HOME                 ,361768,,NURSING HOMES                 
PURCHASING LEARNING DISABILITI,9200,CONTINUING RESIDENTIAL CARE   ,07/01/2015,3763205,J1045102 010215          ,2824.00,WESTBOURNE HOUSE                        ,361791,,NURSING HOMES                 
ADULT SOCIAL CARE PURCHASING  ,9200,CONTINUING RESIDENTIAL CARE   ,07/01/2015,3763205,J1045102 010215          ,2852.00,WESTBOURNE HOUSE                        ,361791,,NURSING HOMES                 
PURCHASING                    ,9200,CONTINUING RESIDENTIAL CARE   ,07/01/2015,3763205,J1045102 010215          ,7600.56,WESTBOURNE HOUSE                        ,361791,,NURSING HOMES                 
INCOME MANAGEMENT             ,9120,OTHER AGENCIES                ,08/01/2015,3764210,ERS INVOICE112367        ,19892.25,AON LIMITED                             ,319158,,INSURANCE - OTHER             
ADULT SOCIAL CARE PURCHASING  ,8350,MISCELLANEOUS EXPENSES        ,08/01/2015,3764211,ERS INVOICE112368        ,504.00,REDACTED PERSONAL DATA,619456,Unclassified Non Trade,OUT OF SCOPE FOR SIC MONITORIN
SSCB                          ,8440,FEE EXPENSES                  ,08/01/2015,3764212,ERS INVOICE112369        ,1884.10,MATTHEW THOMAS ASSOCIATES               ,615696,,DEFAULT DO NOT DELETE         
16 - 19 BURSARY FUNDS         ,8440,FEE EXPENSES                  ,08/01/2015,3764214,ERS INVOICE112371        ,300.00,REDACTED PERSONAL DATA,618950,Unclassified Non Trade,OUT OF SCOPE FOR SIC MONITORIN
DISABLED GRANTS               ,1165,NC&A OTHER                    ,08/01/2015,3764330,ERS INVOICE112397        ,1914.00,STANNAH LIFT SERVICES LTD.              ,208625,,STAIRLIFTS - MNFRS & INSTALLER
MINOR WORK GRANTS             ,1165,NC&A OTHER                    ,08/01/2015,3764331,ERS INVOICE112398        ,1925.00,GOLDGLAZE LTD                           ,528255,,DOUBLE GLAZING INSTALLERS     
DISABLED GRANTS               ,1165,NC&A OTHER                    ,08/01/2015,3764332,ERS INVOICE112399        ,1334.83,STANNAH LIFT SERVICES LTD.              ,208625,,STAIRLIFTS - MNFRS & INSTALLER
16 - 19 BURSARY FUNDS         ,8440,FEE EXPENSES                  ,08/01/2015,3764333,ERS INVOICE112400        ,260.00,REDACTED PERSONAL DATA,619547,Unclassified Non Trade,OUT OF SCOPE FOR SIC MONITORIN
PARKING ENFORCEMENT EQUIPMENT ,1194,OTHER FEES                    ,08/01/2015,3714413,138722,874.50,H HARROLD & SONS LTD                    ,205285,,LOCK SMITHS                   
PARKING ENFORCEMENT EQUIPMENT ,1194,OTHER FEES                    ,08/01/2015,3714417,138781,726.00,H HARROLD & SONS LTD                    ,205285,,LOCK SMITHS                   
RECRUITMENT AND RETENTION     ,7140,PUBLIC TRANSPORT COSTS        ,08/01/2015,3717049,01/5053814               ,386.00,CO-OPERATIVE TRAVEL MANAGEMENT          ,202987,,TRAVEL AGENTS & HOLIDAY COMPAN
PARKING ENFORCEMENT EQUIPMENT ,1194,OTHER FEES                    ,08/01/2015,3719879,139004,742.50,H HARROLD & SONS LTD                    ,205285,,LOCK SMITHS                   
PARKING ENFORCEMENT EQUIPMENT ,1194,OTHER FEES                    ,08/01/2015,3719880,139003,502.93,H HARROLD & SONS LTD                    ,205285,,LOCK SMITHS                   
PARKING ENFORCEMENT EQUIPMENT ,1194,OTHER FEES                    ,08/01/2015,3725959,139140,6179.00,H HARROLD & SONS LTD                    ,205285,,LOCK SMITHS                   
HEALTH TRAINERS               ,9030,HEALTH                        ,08/01/2015,3738910,DWB/11/14/37             ,2732.00,DARNALL WELL BEING CENTRE LTD           ,582732,,PUBLIC HEALTH SUPPLIERS       
NEW PRIMARY NORTH EAST (3)    ,1192,DESIGN FEES                   ,08/01/2015,3738983,I00425                   ,10269.75,LONGLEY PARK SIXTH FORM COLLEGE         ,375671,,SCHOOLS & COLLEGES - FURTHER E
CITY WIDE ALARMS SERVICE      ,8550,OTHER SERVICES                ,08/01/2015,3744561,47245,777.70,SOUTH YORKSHIRE POLICE                  ,346385,,POLICE                        
HEALTH TRAINERS               ,9030,HEALTH                        ,08/01/2015,3746899,DWB/12/14/47             ,2732.00,DARNALL WELL BEING CENTRE LTD           ,582732,,PUBLIC HEALTH SUPPLIERS       
DISABILITY SPORTS PROJECTS    ,6280,HIRE OF PREMISES              ,08/01/2015,3753497,2486,1248.00,WITHIN REACH                            ,441787,,CHARITIES & VOLUNTARY ORGANISA
MONTGOMERY TERRACE            ,8010,EQUIPMENT PURCHASE AND REPAIR ,08/01/2015,3753748,5605159RI                ,465.78,ARGOS SUPERSTORE                        ,203031,,CATALOGUE SHOWROOMS           
CATERING PREMISES & EQUIPMENT ,8010,EQUIPMENT PURCHASE AND REPAIR ,08/01/2015,3754133,8603,534.95,DENBY CATERING EQUIPMENT LIMITED        ,580220,,CATERING EQUIPMENT            
EXECUTOR SERVICES             ,8090,BEREAVEMENT SUPPLIES          ,08/01/2015,3756280,F49960-06064             ,2944.22,SHEFFIELD CO-OPERATIVE FUNERALCARE      ,203171,,FUNERAL SERVICES              
MATERIALS FUND                ,8080,LIBRARY MATERIALS             ,08/01/2015,3756303,23388,255.05,THE READING AGENCY                      ,370437,,CHARITIES & VOLUNTARY ORGANISA
DOMESTIC ABUSE                ,9030,HEALTH                        ,08/01/2015,3757615,DAOS/Q4/14               ,84344.00,SHEFFIELD DOMESTIC ABUSE OUTREACH SERVIC,586290,,PUBLIC HEALTH SUPPLIERS       
MATERIALS FUND                ,8080,LIBRARY MATERIALS             ,08/01/2015,3757727,411717,383.25,NEWSTIME LIMITED                        ,417522,,DISTRIBUTION SERVICES         
DOMESTIC ABUSE                ,8620,COMPUTER MAINTENANCE          ,08/01/2015,3758987,205893,11160.00,PALOMA SYSTEMS LTD                      ,528089,,COMPUTER SYSTEMS & SOFTWARE (S
DOMESTIC ABUSE                ,8620,COMPUTER SOFTWARE LICENCES    ,08/01/2015,3758987,205893,6200.00,PALOMA SYSTEMS LTD                      ,528089,,COMPUTER SYSTEMS & SOFTWARE (S
TTAPS GENERAL                 ,8350,MISCELLANEOUS EXPENSES        ,08/01/2015,3760904,MAIN256077               ,461.00,FIRST SOUTH YORKSHIRE LTD               ,349357,,BUS & COACH OPERATORS & STATIO
TTAPS GENERAL                 ,8350,MISCELLANEOUS EXPENSES        ,08/01/2015,3760909,MAIN256076               ,15230.75,FIRST SOUTH YORKSHIRE                   ,591021,,BUS & COACH OPERATORS & STATIO
SAFEGUARDING CHILDREN SERVICE ,8440,FEE EXPENSES                  ,08/01/2015,3760979,977,600.00,CONSILIENT CONSULTING LTD               ,446779,,BUSINESS & MANAGEMENT CONSULTA
SAFEGUARDING CHILDREN SERVICE ,8440,FEE EXPENSES                  ,08/01/2015,3760982,976,600.00,CONSILIENT CONSULTING LTD               ,446779,,BUSINESS & MANAGEMENT CONSULTA
NON CONTRACT TREATMENT COSTS  ,9030,HEALTH                        ,08/01/2015,3761025,73957,3517.95,EXCHANGE SUPPLIES LTD                   ,420328,,PUBLISHERS                    
NON CONTRACT TREATMENT COSTS  ,9030,HEALTH                        ,08/01/2015,3761026,74438,1347.40,EXCHANGE SUPPLIES LTD                   ,420328,,PUBLISHERS                    
SUPPORTED HOUSING             ,8050,ELECTRICAL GOODS              ,08/01/2015,3761067,CMD2480446               ,5985.00,DOMESTIC APPLIANCE DISTRIBUTORS         ,527171,,ELECTRICAL GOODS - SALES      
NON CONTRACT TREATMENT COSTS  ,9030,HEALTH                        ,08/01/2015,3761109,7016200561,120809.02,NHS SHEFFIELD CCG                       ,504799,,CLINICS - N.H.S.              
NON CONTRACT TREATMENT COSTS  ,8060,MATERIALS AND SUPPLIES GENERAL,08/01/2015,3761234,2100092148,5399.06,SHEFFIELD HEALTH & SOCIAL CARE NHS FT   ,585469,,PUBLIC HEALTH SUPPLIERS       
ADULT SOCIAL CARE PURCHASING  ,9160,PARTNERSHIP CONTRACTS         ,08/01/2015,3761266,14949,3758.00,SHEFFIELD ROYAL SOCIETY FOR THE BLIND   ,306116,,CHARITIES & VOLUNTARY ORGANISA
EXECUTOR SERVICES             ,8090,BEREAVEMENT SUPPLIES          ,08/01/2015,3761323,F49960-06141             ,420.00,SHEFFIELD CO-OPERATIVE FUNERALCARE      ,203171,,FUNERAL SERVICES              
HARD FM                       ,6030,REPAIRS AND MTCE - RESPONSIVE ,08/01/2015,3761337,5/1070/25LM/40813        ,1095.00,WILDSCAPES LTD                          ,472494,,LANDSCAPE ARCHITECTS & DESIGNE
ADULT SOCIAL CARE PURCHASING  ,9160,PARTNERSHIP CONTRACTS         ,08/01/2015,3761379,14948,7776.00,SHEFFIELD ROYAL SOCIETY FOR THE BLIND   ,306116,,CHARITIES & VOLUNTARY ORGANISA
NORTH - NEW PARSON CROSS      ,1157,DWELLINGS MAIN CONTRACT       ,08/01/2015,3761410,15882,818.00,LOXLEY COURT                            ,362146,,NURSING HOMES                 
HARD FM                       ,6030,REPAIRS AND MTCE - RESPONSIVE ,08/01/2015,3761474,9527,850.00,AMK FENCE-IN  LTD                       ,202934,,FENCING CONTRACTORS           
GENERAL ADMINISTRATION & SUPPO,8390,STATIONERY                    ,08/01/2015,3761801,6900752219,270.22,LYRECO UK LTD                           ,593417,,OFFICE FURNITURE & EQUIPMENT  
REGISTRY OFFICE               ,7060,EXTERNAL VEHICLE HIRE         ,08/01/2015,3761925,1145,677.85,SHEFFIELD CITY TAXIS LTD                ,301182,,TAXIS & PRIVATE HIRE          
CAR PARKING MANAGEMENT        ,6210,RENTS                         ,08/01/2015,3762280,0209/0014                ,546.71,IPM PERSONAL PENSION TRUSTEES LIMITED   ,573191,,PENSIONS                      
CAR PARKING MANAGEMENT        ,6210,RENTS                         ,08/01/2015,3762281,0209/0012                ,8000.00,IPM PERSONAL PENSION TRUSTEES LIMITED   ,573191,,PENSIONS                      
SGMT (MUSEUMS SHEFFIELD)      ,8180,GRANTS                        ,08/01/2015,3762285,SIN002620                ,423500.00,MUSEUMS SHEFFIELD                       ,380579,,MUSEUMS                       
OUT OF HOURS SERVICE          ,8550,OTHER SERVICES                ,08/01/2015,3762412,47731,21593.09,SOUTH YORKSHIRE POLICE                  ,346385,,POLICE                        
OUT OF CITY GUM               ,9030,HEALTH                        ,08/01/2015,3762418,6002803,1257.07,BARNSLEY HOSPITAL NHS FT                ,308864,,HOSPITALS                     
OUT OF CITY GUM               ,9030,HEALTH                        ,08/01/2015,3762420,6002922,2065.06,BARNSLEY HOSPITAL NHS FT                ,308864,,HOSPITALS                     
ADULT SOCIAL CARE PURCHASING  ,9160,PARTNERSHIP CONTRACTS         ,08/01/2015,3762947,42009,4117.50,NORTH SHEFFIELD FEDERATION FOR THE      ,304728,,CHARITIES & VOLUNTARY ORGANISA
REGISTRATION & REGULATION     ,7060,EXTERNAL VEHICLE HIRE         ,08/01/2015,3762988,690398,468.20,CITY CAR CLUB (UK) LTD                  ,465053,,CAR RENTAL                    
THE MOOR INDOOR MARKET        ,8020,EQUIPMENT LEASE/ RENTAL/ HIRE ,08/01/2015,3763069,5120004002,1005.00,CHEMSEARCH A DIVISION OF NCH UK LTD     ,557600,,CLEANING MATERIALS & EQUIPMENT
GP HEALTH CHECKS              ,9120,OTHER AGENCIES                ,08/01/2015,3763092,C88007_0002              ,1700.00,PORTER BROOK MEDICAL CENTRE             ,582165,,PUBLIC HEALTH SUPPLIERS       
GP HEALTH CHECKS              ,9120,OTHER AGENCIES                ,08/01/2015,3763098,C88073_0002              ,250.00,HEELEY GREEN SURGERY                    ,581086,,PUBLIC HEALTH SUPPLIERS       
ADULT SOCIAL CARE PURCHASING  ,9160,PARTNERSHIP CONTRACTS         ,08/01/2015,3763104,INV292                   ,11480.75,DARNALL DEMENTIA GROUP                  ,299898,,DISABILITY & SPECIAL NEEDS - S
GP HEALTH CHECKS              ,9120,OTHER AGENCIES                ,08/01/2015,3763152,C88019_0002              ,1490.00,GLEADLESS MEDICAL CENTRE                ,581164,,PUBLIC HEALTH SUPPLIERS       
DACT INFRASTRUCTURE           ,8350,MISCELLANEOUS EXPENSES        ,08/01/2015,3763155,507,345.00,ST WILFRID'S CENTRE                     ,537536,,CHARITIES & VOLUNTARY ORGANISA
SCHOOL MEALS                  ,8440,FEE EXPENSES                  ,08/01/2015,3763378,SI-TSS-10001861          ,5704.55,TAYLOR SHAW LIMITED T/A TAYLOR SHAW     ,520165,,CATERERS                      
SUPPORTED & TEMP ACCOM TEAM   ,6210,BED & BREAKFAST PAYMENTS      ,08/01/2015,3763393,393,495.00,BURNGREAVE B & B                        ,466986,,GUEST HOUSES                  
SUPPORTED & TEMP ACCOM TEAM   ,6210,BED & BREAKFAST PAYMENTS      ,08/01/2015,3763395,2347,1008.26,EARL MARSHALL GUEST HOUSE LTD           ,391589,,GUEST HOUSES                  
SCHOOL MEALS                  ,8440,FEE EXPENSES                  ,08/01/2015,3763396,SI-TSS-10001860          ,845.17,TAYLOR SHAW LIMITED T/A TAYLOR SHAW     ,520165,,CATERERS                      
PEI STRATEGY DEVELOP PERFORM  ,5750,TRAINING EXPENDITURE          ,08/01/2015,3763404,971,1500.00,CONSILIENT CONSULTING LTD               ,446779,,BUSINESS & MANAGEMENT CONSULTA
GP HEALTH CHECKS              ,9120,OTHER AGENCIES                ,08/01/2015,3763409,C88086_0002              ,500.00,DR NH PATEL SOUTHEY GREEN MED CNTR      ,582182,,PUBLIC HEALTH SUPPLIERS       
SCHOOL MEALS                  ,8130,CATERING SUPPLIES             ,08/01/2015,3763411,SI-TSS-10001859          ,513166.00,TAYLOR SHAW LIMITED T/A TAYLOR SHAW     ,520165,,CATERERS                      
SCHOOL MEALS                  ,8150,CONTRACT CATERING             ,08/01/2015,3763411,SI-TSS-10001859          ,273657.00,TAYLOR SHAW LIMITED T/A TAYLOR SHAW     ,520165,,CATERERS                      
GREY TO GREEN                 ,1192,DESIGN FEES                   ,08/01/2015,3763459,24396,10937.90,ROBERT BRAY ASSOCIATES                  ,352321,,LANDSCAPE ARCHITECTS & DESIGNE
SEN TAXIS                     ,7060,EXTERNAL VEHICLE HIRE         ,08/01/2015,3763460,42009,7058.71,EUROCAB 2000 LTD                        ,596360,,TAXIS & PRIVATE HIRE          
GP HEALTH CHECKS              ,9120,OTHER AGENCIES                ,08/01/2015,3763465,C88655_0002              ,990.00,DR N M OKORIE - THE MEDICAL CENTRE      ,582367,,PUBLIC HEALTH SUPPLIERS       
GP HEALTH CHECKS              ,9120,OTHER AGENCIES                ,08/01/2015,3763466,C88652_0002              ,510.00,GREYSTONES MEDICAL CENTRE               ,581142,,PUBLIC HEALTH SUPPLIERS       
SOCIAL CARE TAXIS             ,7060,EXTERNAL VEHICLE HIRE         ,08/01/2015,3763471,78608,2218.40, DIAL A CAB                             ,598412,,TAXIS & PRIVATE HIRE          
INWARD INVESTMENT             ,8420,ADVERTISING AND PUBLICITY     ,08/01/2015,3763482,12413,258.00,WHITE SPACE CREATIVE                    ,615582,,"EXHIBITION, EVENT & TRADE FAIR"
ADULT SOCIAL CARE PURCHASING  ,9160,PARTNERSHIP CONTRACTS         ,08/01/2015,3763549,2015/01                  ,37514.50,SHEFFIELD CHURCHES COUNCIL FOR COMM CARE,337028,,CHARITIES & VOLUNTARY ORGANISA
COMMUNICATIONS                ,8550,OTHER SERVICES                ,08/01/2015,3763550,9012520,4855.74,CANON UK LTD                            ,207216,,OFFICE EQUIPMENT MNFRS & DISTR
SOCIAL CARE TAXIS             ,7060,EXTERNAL VEHICLE HIRE         ,08/01/2015,3763614,558426,1798.60,MERCURY TAXIS                           ,362003,,TAXIS & PRIVATE HIRE          
HEALTH TRAINERS               ,9030,HEALTH                        ,08/01/2015,3763629,2533,5293.70,SHARROW COMMUNITY FORUM                 ,582920,,PUBLIC HEALTH SUPPLIERS       
INWARD INVESTMENT             ,8420,ADVERTISING AND PUBLICITY     ,08/01/2015,3763954,111035,336.00,SHEFFIELD CITY COUNCIL                  ,516704,,LOCAL GOVERNMENT              
GENERAL COMM AREAS - INC AREA ,6080,CONTRACT CLEANING             ,08/01/2015,3763963,2777,3874.98,ATKIN & SON                             ,203113,,WINDOW CLEANERS               
GP HEALTH CHECKS              ,9120,OTHER AGENCIES                ,08/01/2015,3763977,C88039_0002              ,1490.00,ECCLESFIELD GROUP PRACTICE              ,582203,,PUBLIC HEALTH SUPPLIERS       
GP HEALTH CHECKS              ,9120,OTHER AGENCIES                ,08/01/2015,3763981,C88005_0002              ,1370.00,WALKLEY HOUSE MEDICAL CENTRE            ,581103,,PUBLIC HEALTH SUPPLIERS       
GP HEALTH CHECKS              ,9120,OTHER AGENCIES                ,08/01/2015,3763989,C88044_0002              ,760.00,MANCHESTER ROAD SURGERY                 ,581101,,PUBLIC HEALTH SUPPLIERS       
GP HEALTH CHECKS              ,9120,OTHER AGENCIES                ,08/01/2015,3763994,C88079_0002              ,1640.00,THE CROOKES PRACTICE                    ,582168,,PUBLIC HEALTH SUPPLIERS       
TRANSPORT FLEET MANAGEMENT    ,8070,STOCKS AND STORES             ,08/01/2015,3764077,3663253,20222.40,CARLTON FUELS                           ,466741,,FUEL DEALERS                  
TRANSPORT FLEET MANAGEMENT    ,8070,STOCKS AND STORES             ,08/01/2015,3764079,3621671,4737.50,CARLTON FUELS                           ,466741,,FUEL DEALERS                  
TRANSPORT FLEET MANAGEMENT    ,7060,EXTERNAL VEHICLE HIRE         ,08/01/2015,3764081,8430365,556.50,ARROW SELF DRIVE                        ,597893,,CONTAINER HIRE & TRANSPORT    
TRANSPORT FLEET MANAGEMENT    ,7060,EXTERNAL VEHICLE HIRE         ,08/01/2015,3764082,8430328,821.50,ARROW SELF DRIVE                        ,597893,,CONTAINER HIRE & TRANSPORT    
TRANSPORT FLEET MANAGEMENT    ,7060,EXTERNAL VEHICLE HIRE         ,08/01/2015,3764083,8430331,821.50,ARROW SELF DRIVE                        ,597893,,CONTAINER HIRE & TRANSPORT    
TRANSPORT FLEET MANAGEMENT    ,7060,EXTERNAL VEHICLE HIRE         ,08/01/2015,3764084,62806,1955.00,DAWSON RENTALS SWEEPERS                 ,446765,,PLANT & MACHINERY HIRE & LEASI
TRANSPORT FLEET MANAGEMENT    ,7060,EXTERNAL VEHICLE HIRE         ,08/01/2015,3764085,2134099,382.05,BURNT TREE GROUP                        ,203618,,VAN & TRUCK HIRE              
BNDFC - VESTRY HALL           ,8620,COMPUTER MAINTENANCE          ,08/01/2015,3764104,02122014/8806            ,3515.00,ESP PROJECTS LTD.                       ,374718,,COMPUTER SYSTEMS & SOFTWARE (D
OSP2 KIER LTD CONTROL ACCOUNT ,9620,FINANCIAL PROCESSES           ,08/01/2015,3764106,150701,530248.00,KIER LIMITED                            ,516733,,FACILITIES MANAGEMENT         
100 APPRENTICES               ,9120,OTHER AGENCIES                ,08/01/2015,3764147,41963,1016.54,195 HAIRLINES MRS J A SHIRT T/A         ,599281,,HAIRDRESSERS - UNISEX         
SEN TAXIS                     ,7060,EXTERNAL VEHICLE HIRE         ,08/01/2015,3764157,SCC/SEN-1214             ,8989.95,TRAVELLERS TAXIS                        ,573383,,TAXIS & PRIVATE HIRE          
TRANSPORT FLEET MANAGEMENT    ,7060,EXTERNAL VEHICLE HIRE         ,08/01/2015,3764172,SL02905480INV            ,5316.53,NORTHGATE VEHICLE HIRE LTD              ,454183,,VAN & TRUCK HIRE              
ADMIN - GENERAL               ,8390,STATIONERY                    ,08/01/2015,3764178,6900761458,253.70,LYRECO UK LTD                           ,593417,,OFFICE FURNITURE & EQUIPMENT  
TRANSPORT FLEET MANAGEMENT    ,7060,EXTERNAL VEHICLE HIRE         ,08/01/2015,3764185,SL02905492INV            ,1570.80,NORTHGATE VEHICLE HIRE LTD              ,454183,,VAN & TRUCK HIRE              
SHORT BREAKS FUNDING FOR DISAB,9120,OTHER AGENCIES                ,08/01/2015,3764202,AMY0115                  ,1273.98,AMY'S HOUSE LTD                         ,513258,,CHARITIES & VOLUNTARY ORGANISA
TRANSPORT FLEET MANAGEMENT    ,7010,ROUTINE VEHICLE REPAIR & MTCE ,08/01/2015,3764259,1603,700.00,ASHWOODS AUTOMOTIVE LIMITED             ,566042,,MECHANICAL ENGINEERS          
BIS TELECOMMS                 ,8600,MOBILE TELEPHONES - INVOICE   ,08/01/2015,3763987,1157548124,869.29,EE LIMITED                              ,207254,,MOBILE PHONES                 
BIS TELECOMMS                 ,8600,MOBILE TELEPHONES - INVOICE   ,08/01/2015,3763990,1157392366,859.59,EE LIMITED                              ,207254,,MOBILE PHONES                 
BIS TELECOMMS                 ,8600,MOBILE TELEPHONES - INVOICE   ,08/01/2015,3763995,1157382148,716.48,EE LIMITED                              ,207254,,MOBILE PHONES                 
BIS TELECOMMS                 ,8600,MOBILE TELEPHONES - INVOICE   ,08/01/2015,3763997,1157543736,549.41,EE LIMITED                              ,207254,,MOBILE PHONES                 
BIS TELECOMMS                 ,8600,MOBILE TELEPHONES - INVOICE   ,08/01/2015,3764000,1157545802,7252.48,EE LIMITED                              ,207254,,MOBILE PHONES                 
BIS TELECOMMS                 ,8600,MOBILE TELEPHONES - INVOICE   ,08/01/2015,3764002,1157547854,11224.89,EE LIMITED                              ,207254,,MOBILE PHONES                 
BIS TELECOMMS                 ,8600,MOBILE TELEPHONES - INVOICE   ,08/01/2015,3764003,1157581354,7983.13,EE LIMITED                              ,207254,,MOBILE PHONES                 
BIS TELECOMMS                 ,8600,MOBILE TELEPHONES - INVOICE   ,08/01/2015,3764114,670158866/1              ,390.00,VODAFONE LIMITED (CORPORATE)            ,209321,,MOBILE PHONES                 
BIS TELECOMMS                 ,8600,MOBILE TELEPHONES - INVOICE   ,08/01/2015,3764115,670158865/1              ,750.00,VODAFONE LIMITED (CORPORATE)            ,209321,,MOBILE PHONES                 
BIS TELECOMMS                 ,8600,MOBILE TELEPHONES - INVOICE   ,08/01/2015,3764116,670158865/1              ,280.00,VODAFONE LIMITED (CORPORATE)            ,209321,,MOBILE PHONES                 
RED TAPE CENTRAL              ,8590,LANDLINE TELEPHONES           ,08/01/2015,3764124,SL46809532Q003NC         ,320.46,BRITISH TELECOMMUNICATIONS PLC          ,295860,,TELECOMMUNICATION SERVICES    
ADULT SOCIAL CARE PURCHASING  ,9190,DIRECT PAYMENTS               ,08/01/2015,3763812,J1046728                 ,432.00,REDACTED PERSONAL DATA,367525,Social Community Care,CAREFIRST DIRECT PAYMENTS     
ADULT SOCIAL CARE PURCHASING  ,9190,DIRECT PAYMENTS               ,08/01/2015,3763813,J1046728                 ,14724.92,A4E                                     ,547567,,TRAINING SERVICES             
PURCHASING                    ,9190,DIRECT PAYMENTS               ,08/01/2015,3763814,J1046728                 ,3359.93,REDACTED PERSONAL DATA,556296,Social Community Care,CAREFIRST DIRECT PAYMENTS     
ADULT SOCIAL CARE PURCHASING  ,9190,DIRECT PAYMENTS               ,08/01/2015,3763815,J1046728                 ,1890.49,REDACTED PERSONAL DATA,556454,Social Community Care,CAREFIRST DIRECT PAYMENTS     
ADULT SOCIAL CARE PURCHASING  ,9190,DIRECT PAYMENTS               ,08/01/2015,3763816,J1046728                 ,534.60,REDACTED PERSONAL DATA,556909,Social Community Care,CAREFIRST DIRECT PAYMENTS     
ADULT SOCIAL CARE PURCHASING  ,9190,DIRECT PAYMENTS               ,08/01/2015,3763817,J1046728                 ,758.22,REDACTED PERSONAL DATA,562178,Social Community Care,CAREFIRST DIRECT PAYMENTS     
ADULT SOCIAL CARE PURCHASING  ,9190,DIRECT PAYMENTS               ,08/01/2015,3763818,J1046728                 ,1372.00,REDACTED PERSONAL DATA,566598,Social Community Care,CAREFIRST DIRECT PAYMENTS     
PURCHASING LEARNING DISABILITI,9190,DIRECT PAYMENTS               ,08/01/2015,3763819,J1046728                 ,1161.35,REDACTED PERSONAL DATA,576122,Social Community Care,CAREFIRST DIRECT PAYMENTS     
PURCHASING LEARNING DISABILITI,9190,DIRECT PAYMENTS               ,08/01/2015,3763820,J1046728                 ,1779.36,REDACTED PERSONAL DATA,582659,Social Community Care,CAREFIRST DIRECT PAYMENTS     
ADULT SOCIAL CARE PURCHASING  ,9190,DIRECT PAYMENTS               ,08/01/2015,3763821,J1046728                 ,364.00,REDACTED PERSONAL DATA,585867,Social Community Care,CAREFIRST DIRECT PAYMENTS     
ADULT SOCIAL CARE PURCHASING  ,9190,DIRECT PAYMENTS               ,08/01/2015,3763822,J1046728                 ,482.44,REDACTED PERSONAL DATA,590461,Social Community Care,CAREFIRST DIRECT PAYMENTS     
CARERS SPECIAL GRANT          ,9190,DIRECT PAYMENTS               ,08/01/2015,3763823,J1046728                 ,757.47,REDACTED PERSONAL DATA,592035,Unclassified Non Trade,OUT OF SCOPE FOR SIC MONITORIN
ADULT SOCIAL CARE PURCHASING  ,9190,DIRECT PAYMENTS               ,08/01/2015,3763824,J1046728                 ,502.32,REDACTED PERSONAL DATA,616550,Social Community Care,CAREFIRST DIRECT PAYMENTS     
PURCHASING LEARNING DISABILITI,9190,DIRECT PAYMENTS               ,08/01/2015,3763825,J1046728                 ,37051.42,THE MONEY CARER FOUNDATION              ,619366,Social Community Care,CAREFIRST DIRECT PAYMENTS     
PURCHASING LEARNING DISABILITI,9190,DIRECT PAYMENTS               ,08/01/2015,3763827,J1046728                 ,880.00,REDACTED PERSONAL DATA,619369,Social Community Care,CAREFIRST DIRECT PAYMENTS     
ADULT SOCIAL CARE PURCHASING  ,9190,DIRECT PAYMENTS               ,08/01/2015,3763828,J1046728                 ,2310.16,REDACTED PERSONAL DATA,619376,Social Community Care,CAREFIRST DIRECT PAYMENTS     
PURCHASING                    ,9250,INDEPENDENT DAY CARE          ,08/01/2015,3763831,AT 1610                  ,270.00,ST WILFRID'S CENTRE                     ,537536,,CHARITIES & VOLUNTARY ORGANISA
PURCHASING LEARNING DISABILITI,9250,INDEPENDENT DAY CARE          ,08/01/2015,3763834,GP1616                   ,510.00,ST WILFRID'S CENTRE                     ,537536,,CHARITIES & VOLUNTARY ORGANISA
PURCHASING LEARNING DISABILITI,9250,INDEPENDENT DAY CARE          ,08/01/2015,3763836,JB1626                   ,300.00,ST WILFRID'S CENTRE                     ,537536,,CHARITIES & VOLUNTARY ORGANISA
PURCHASING                    ,9250,INDEPENDENT DAY CARE          ,08/01/2015,3763837,JH1625                   ,270.00,ST WILFRID'S CENTRE                     ,537536,,CHARITIES & VOLUNTARY ORGANISA
PURCHASING                    ,9250,INDEPENDENT DAY CARE          ,08/01/2015,3763838,JM1621                   ,270.00,ST WILFRID'S CENTRE                     ,537536,,CHARITIES & VOLUNTARY ORGANISA
PURCHASING LEARNING DISABILITI,9250,INDEPENDENT DAY CARE          ,08/01/2015,3763841,SB1413                   ,420.00,ORCHARD CARE RESIDENTIAL HOME           ,362100,,NURSING HOMES                 
PURCHASING LEARNING DISABILITI,9210,FUNDED NURSING CARE (INCOME)  ,08/01/2015,3763846,1285,1356.00,THE GOOD DAYS PROJECT                   ,532126,,CHARITIES & VOLUNTARY ORGANISA
PURCHASING LEARNING DISABILITI,9250,INDEPENDENT DAY CARE          ,08/01/2015,3763846,1285,1010.00,THE GOOD DAYS PROJECT                   ,532126,,CHARITIES & VOLUNTARY ORGANISA
PDSI PURCHASING               ,9190,BLOCK CONTRACT                ,08/01/2015,3763847,J1044001 141214          ,969.28,CAREFORCE  (USE SUPP 368340)            ,362136,,NURSING AGENCIES              
ADULT SOCIAL CARE PURCHASING  ,9190,BLOCK CONTRACT                ,08/01/2015,3763847,J1044001 141214          ,11418.80,CAREFORCE  (USE SUPP 368340)            ,362136,,NURSING AGENCIES              
ADULT SOCIAL CARE PURCHASING  ,9190,FUNDED HOME SUPPORT           ,08/01/2015,3763848,J1044002 141214          ,1924.00,REDACTED PERSONAL DATA,328494,,HOME CARE SERVICES            
PURCHASING LEARNING DISABILITI,9190,BLOCK CONTRACT                ,08/01/2015,3763848,J1044002 141214          ,370.08,REDACTED PERSONAL DATA,328494,,HOME CARE SERVICES            
ADULT SOCIAL CARE PURCHASING  ,9190,BLOCK CONTRACT                ,08/01/2015,3763848,J1044002 141214          ,14878.61,REDACTED PERSONAL DATA,328494,,HOME CARE SERVICES            
PURCHASING LEARNING DISABILITI,9190,CITYWIDE SPOT                 ,08/01/2015,3763849,J1044003 141214          ,145755.00,CITIZENSHIP FIRST                       ,329379,,CHARITIES & VOLUNTARY ORGANISA
PDSI PURCHASING               ,9190,BLOCK CONTRACT                ,08/01/2015,3763850,J1044017 141214          ,1115.24,REDACTED PERSONAL DATA,532473,,HOME CARE SERVICES            
ADULT SOCIAL CARE PURCHASING  ,9190,BLOCK CONTRACT                ,08/01/2015,3763850,J1044017 141214          ,9184.33,REDACTED PERSONAL DATA,532473,,HOME CARE SERVICES            
ADULT SOCIAL CARE PURCHASING  ,9190,BLOCK CONTRACT                ,08/01/2015,3763851,J1044018 141214          ,23487.12,REDACTED PERSONAL DATA,552184,,HOME CARE SERVICES            
ADULT SOCIAL CARE PURCHASING  ,9190,BLOCK CONTRACT                ,08/01/2015,3763852,J1044019 141214          ,25674.58,HOUSING AND CARE 21                     ,531533,,"HOUSING ASSOCIATIONS, SOCIETIE"
PDSI PURCHASING               ,9190,BLOCK CONTRACT                ,08/01/2015,3763852,J1044019 141214          ,328.00,HOUSING AND CARE 21                     ,531533,,"HOUSING ASSOCIATIONS, SOCIETIE"
ADULT SOCIAL CARE PURCHASING  ,9190,FUNDED HOME SUPPORT           ,08/01/2015,3763852,J1044019 141214          ,373.12,HOUSING AND CARE 21                     ,531533,,"HOUSING ASSOCIATIONS, SOCIETIE"
PURCHASING LEARNING DISABILITI,9250,INDEPENDENT DAY CARE          ,08/01/2015,3763854,2735,440.00,SHEFFIELD MENCAP                        ,431582,,SOCIAL SERVICES               
PURCHASING LEARNING DISABILITI,9190,CITYWIDE SPOT                 ,08/01/2015,3763855,31079,7065.20,AFFINITY TRUST                          ,565909,,CHARITIES & VOLUNTARY ORGANISA
PURCHASING LEARNING DISABILITI,9190,FUNDED HOME SUPPORT           ,08/01/2015,3763856,31080,8366.96,AFFINITY TRUST                          ,565909,,CHARITIES & VOLUNTARY ORGANISA
ADULT SOCIAL CARE PURCHASING  ,9190,CITYWIDE SPOT                 ,08/01/2015,3763857,31082,741.48,AFFINITY TRUST                          ,565909,,CHARITIES & VOLUNTARY ORGANISA
PURCHASING LEARNING DISABILITI,9190,CITYWIDE SPOT                 ,08/01/2015,3763858,31083,3171.00,AFFINITY TRUST                          ,565909,,CHARITIES & VOLUNTARY ORGANISA
PURCHASING LEARNING DISABILITI,9190,FUNDED HOME SUPPORT           ,08/01/2015,3763858,31083,3171.00,AFFINITY TRUST                          ,565909,,CHARITIES & VOLUNTARY ORGANISA
PURCHASING LEARNING DISABILITI,9190,CITYWIDE SPOT                 ,08/01/2015,3763859,31085,2440.80,AFFINITY TRUST                          ,565909,,CHARITIES & VOLUNTARY ORGANISA
PURCHASING                    ,9190,CITYWIDE SPOT                 ,08/01/2015,3763868,14345,274.54,ST ANNE'S COMMUNITY SERVICES            ,351501,,HOME SUPPORT SERVICES         
PURCHASING                    ,9190,CITYWIDE SPOT                 ,08/01/2015,3763869,14349,313.76,ST ANNE'S COMMUNITY SERVICES            ,351501,,HOME SUPPORT SERVICES         
PURCHASING                    ,9190,CITYWIDE SPOT                 ,08/01/2015,3763876,14356,313.76,ST ANNE'S COMMUNITY SERVICES            ,351501,,HOME SUPPORT SERVICES         
PURCHASING                    ,9190,CITYWIDE SPOT                 ,08/01/2015,3763881,14370,313.76,ST ANNE'S COMMUNITY SERVICES            ,351501,,HOME SUPPORT SERVICES         
PURCHASING                    ,9190,CITYWIDE SPOT                 ,08/01/2015,3763882,14371,313.76,ST ANNE'S COMMUNITY SERVICES            ,351501,,HOME SUPPORT SERVICES         
PURCHASING                    ,9190,CITYWIDE SPOT                 ,08/01/2015,3763889,14390,313.76,ST ANNE'S COMMUNITY SERVICES            ,351501,,HOME SUPPORT SERVICES         
PURCHASING                    ,9190,CITYWIDE SPOT                 ,08/01/2015,3763892,14446,453.36,ST ANNE'S COMMUNITY SERVICES            ,351501,,HOME SUPPORT SERVICES         
PURCHASING                    ,9190,CITYWIDE SPOT                 ,08/01/2015,3763898,14452,604.48,ST ANNE'S COMMUNITY SERVICES            ,351501,,HOME SUPPORT SERVICES         
PURCHASING LEARNING DISABILITI,9190,CITYWIDE SPOT                 ,08/01/2015,3763899,31078,1139.04,AFFINITY TRUST                          ,565909,,CHARITIES & VOLUNTARY ORGANISA
PURCHASING                    ,9190,CITYWIDE SPOT                 ,08/01/2015,3763902,14456,313.76,ST ANNE'S COMMUNITY SERVICES            ,351501,,HOME SUPPORT SERVICES         
PURCHASING LEARNING DISABILITI,9190,CITYWIDE SPOT                 ,08/01/2015,3763906,18336,502.74,SSA SOCIAL CARE & COMMUNITY SERVICES LTD,301604,,EMPLOYMENT & RECRUITMENT AGENC
PURCHASING                    ,9190,CITYWIDE SPOT                 ,08/01/2015,3763906,18336,375.14,SSA SOCIAL CARE & COMMUNITY SERVICES LTD,301604,,EMPLOYMENT & RECRUITMENT AGENC
ADULT SOCIAL CARE PURCHASING  ,9190,CITYWIDE SPOT                 ,08/01/2015,3763906,18336,2141.82,SSA SOCIAL CARE & COMMUNITY SERVICES LTD,301604,,EMPLOYMENT & RECRUITMENT AGENC
ADULT SOCIAL CARE PURCHASING  ,9190,CITYWIDE SPOT                 ,08/01/2015,3763907,18420,2141.82,SSA SOCIAL CARE & COMMUNITY SERVICES LTD,301604,,EMPLOYMENT & RECRUITMENT AGENC
PURCHASING LEARNING DISABILITI,9190,CITYWIDE SPOT                 ,08/01/2015,3763907,18420,502.74,SSA SOCIAL CARE & COMMUNITY SERVICES LTD,301604,,EMPLOYMENT & RECRUITMENT AGENC
PURCHASING                    ,9190,CITYWIDE SPOT                 ,08/01/2015,3763907,18420,372.32,SSA SOCIAL CARE & COMMUNITY SERVICES LTD,301604,,EMPLOYMENT & RECRUITMENT AGENC
PURCHASING LEARNING DISABILITI,9250,INDEPENDENT DAY CARE          ,08/01/2015,3763908,1991,260.00,SHEFFIELD MENCAP                        ,431582,,SOCIAL SERVICES               
PURCHASING LEARNING DISABILITI,9250,INDEPENDENT DAY CARE          ,08/01/2015,3763909,2118,530.00,SHEFFIELD MENCAP                        ,431582,,SOCIAL SERVICES               
PURCHASING LEARNING DISABILITI,9190,CITYWIDE SPOT                 ,08/01/2015,3763910,31084,985.54,AFFINITY TRUST                          ,565909,,CHARITIES & VOLUNTARY ORGANISA
